account_party,address,code,date,document_number,expense_code_name,expense_code_name_short,id,party_cell,party_cell_code,party_cell_geoobject,purpose,source_bank_account_number,source_bank_account_type,sum,target_legal_personality,target_legal_personality_code,target_type
УГП,"Львівська область, Львів, вулиця Сербська, 1",70,2016-12-29,393230,Банківські послуги,Інші витрати,249643,Центральний офіс,39481037,Україна,"Сплата комісії за переказ коштів з поточного рахунку в операційний час за межі Банку за допомогою системи Клієнт-Банк по документу №157, від 29.12.2016. Без ПДВ",2600671275,current,5.00,"АТ ""АКБ ""Львів""",09801546,юридична особа
УГП,"Львівська область, Львів, вулиця Сербська, 1",70,2016-12-29,393235,Банківські послуги,Інші витрати,249642,Центральний офіс,39481037,Україна,"Сплата комісії за переказ коштів з поточного рахунку в операційний час за межі Банку за допомогою системи Клієнт-Банк по документу №156, від 29.12.2016. Без ПДВ",2600671275,current,5.00,"АТ ""АКБ ""Львів""",09801546,юридична особа
УГП,"Львівська область, Львів, вулиця Сербська, 1",70,2016-12-29,393236,Банківські послуги,Інші витрати,249641,Центральний офіс,39481037,Україна,"Сплата комісії за переказ коштів з поточного рахунку в операційний час за межі Банку за допомогою системи Клієнт-Банк по документу №158, від 29.12.2016. Без ПДВ",2600671275,current,5.00,"АТ ""АКБ ""Львів""",09801546,юридична особа
УГП,"Львівська область, Львів, вулиця Сербська, 1",70,2016-12-29,394569,Банківські послуги,Інші витрати,249640,Центральний офіс,39481037,Україна,"Сплата комісії за зарахуванню коштів на рахунки фізичних осіб підприємства по зарплатному проекту по документу №394568, від 29.12.2016. Без ПДВ.",2600671275,current,59.58,"АТ ""АКБ ""Львів""",09801546,юридична особа
УГП,"Львівська область, Львів, вулиця Стрийська, 35",62,2016-12-29,158,Сплата ЄСВ,Податкові платежі,249639,Центральний офіс,39481037,Україна,"*;201;39481037; 22,0% нарах. єдиного внеску на зароб.плату за 2 пол.грудня 2016р. - 2714,00 грн.;;;",2600671275,current,2714.00,ДПІ у Франківському районі м. Львова,39508247,юридична особа
УГП,"Львівська область, Львів, вулиця Конотопська, 6",63,2016-12-29,157,Податок на доходи,Податкові платежі,249638,Центральний офіс,39481037,Україна,*;101;39481037; податок з доходів фіз.осіб із заробітної плати за 2 пол.грудня 2016р. 18% - 2220.54 грн..;;;,2600671275,current,2220.54,УДКСУ у Франківському районі м. Львова,37965138,юридична особа
УГП,"Львівська область, Львів, вулиця Конотопська, 6",61,2016-12-29,156,Військовий збір,Податкові платежі,249637,Центральний офіс,39481037,Україна,"*;101;39481037; утриманий військовий збір із заробітної плати за 2 пол.грудня 2016р.,1,5% - 185.04 грн.;;;",2600671275,current,185.04,УДКСУ у Франківському районі м. Львова,37965138,юридична особа
УГП,"Львівська область, Львів",84,2016-12-29,394570,"Заробітна плата, премії","Заробітна плата, лікарняні, вагітності, відрядження, компенсації",249362,Центральний офіс,39481037,Україна,Заробітна плата за 2 половину грудня 2016 року,2600671275,current,1006.25,Герич Ганна Вікторівна,,фізична особа
УГП,Львівська область,84,2016-12-29,394571,"Заробітна плата, премії","Заробітна плата, лікарняні, вагітності, відрядження, компенсації",249361,Центральний офіс,39481037,Україна,Заробітна плата за 2 половину грудня 2016 року,2600671275,current,1207.50,Федорович Уляна Орестівна,,фізична особа
УГП,"Львівська область, Львів",84,2016-12-29,394572,"Заробітна плата, премії","Заробітна плата, лікарняні, вагітності, відрядження, компенсації",249360,Центральний офіс,39481037,Україна,Заробітна плата за 2 половину грудня 2016 року,2600671275,current,823.30,Лозинський Роман Михайлович,,фізична особа
УГП,"Львівська область, Львів",84,2016-12-29,394573,"Заробітна плата, премії","Заробітна плата, лікарняні, вагітності, відрядження, компенсації",249359,Центральний офіс,39481037,Україна,Заробітна плата за 2 половину грудня 2016 року,2600671275,current,2788.23,Гаврилко Іванна Володимирівна,,фізична особа
УГП,"Львівська область, Львів",84,2016-12-29,394574,"Заробітна плата, премії","Заробітна плата, лікарняні, вагітності, відрядження, компенсації",249358,Центральний офіс,39481037,Україна,Заробітна плата за 2 половину грудня 2016 року,2600671275,current,4105.50,Панкевич Богдан Романович,,фізична особа
УГП,"Івано-Франківська область, Івано-Франківськ, вулиця Січових стрільців, 15",70,2016-12-28,1228Ь2КЬТ У,Банківські послуги,Інші витрати,249804,Івано-Франківська обласна організація,40026836,Івано-Франківська область,"Комісія за виконання платежів в національній валюті, згідно з відкритою офертою банку N б/н від 29.09.2015 та тарифів банку, без ПДВ.",26005052517967,current,3.00,"ПАТ КБ ""Приватбанк""",14360570,юридична особа
УГП,"Львівська область, Львів, вулиця Сербська, 1",70,2016-12-27,347217,Банківські послуги,Інші витрати,249872,Львівська обласна організація,40014820,Львівська область,"Сплата комісії за переказ коштів з поточного рахунку в операційний час за межі Банку за допомогою системи Клієнт-Банк по документу №19, від 27.12.2016. Без ПДВ.",2600477437,current,5.00,"АТ ""АКБ ""Львів""",09801546,юридична особа
УГП,"Львівська область, Яворівський район, Яворів, площа Ринок, 14",58,2016-12-27,19,"Виготовлення друкованих матеріалів (плакатів, листівок, буклетів та інших агітаційних матеріалів)",Друкована агітація,249871,Львівська обласна організація,40014820,Львівська область,"Оплата за Вкладку зг.рах. №СФ-0001717 від 22.12.2016, зг. Дог. №01/16 від 21.01.16р., в т.ч.ПДВ -420,00 грн.",2600477437,current,2520.00,"ТОВ ""ВД ""Молода Галичина""",32148930,юридична особа
УГП,"Івано-Франківська область, Івано-Франківськ, вулиця Січових стрільців, 15",70,2016-12-23,16С2000034,Банківські послуги,Інші витрати,249802,Івано-Франківська обласна організація,40026836,Івано-Франківська область,Оплата комісії за касове обслуговування по УКРАЇНСЬКА ГАЛИЦЬКА ПАРТЫ.,26005052517967,current,3.02,"ПАТ КБ ""Приватбанк""",14360570,юридична особа
УГП,"Львівська область, Львів, вулиця Сербська, 1",70,2016-12-22,291977,Банківські послуги,Інші витрати,249870,Львівська обласна організація,40014820,Львівська область,"Сплата комісії за переказ коштів з поточного рахунку в операційний час за межі Банку за допомогою системи Клієнт-Банк по документу №18, від 22.12.2016. Без ПДВ.",2600477437,current,5.00,"АТ ""АКБ ""Львів""",09801546,юридична особа
УГП,"Львівська область, Львів, вулиця Зелена, 135",58,2016-12-22,18,"Виготовлення друкованих матеріалів (плакатів, листівок, буклетів та інших агітаційних матеріалів)",Друкована агітація,249869,Львівська обласна організація,40014820,Львівська область,"Оплата за плакати згідно рахунку №139 від 20.12.2016р., в тому числі ПДВ 2450,00 грн.",2600477437,current,14700.00,ТОВ ʼНео Друкʼ,40547038,юридична особа
УГП,"Івано-Франківська область, Івано-Франківськ",84,2016-12-22,87,"Заробітна плата, премії","Заробітна плата, лікарняні, вагітності, відрядження, компенсації",249659,Івано-Франківська обласна організація,40026836,Івано-Франківська область,Аванс за грудень 2016г.,26005052517967,current,1207.00,Романчук Любомир Петрович,,фізична особа
УГП,"Львівська область, Львів, вулиця Сербська, 1",70,2016-12-20,244394,Банківські послуги,Інші витрати,249868,Львівська обласна організація,40014820,Львівська область,"Сплата комісії за переказ коштів з поточного рахунку в операційний час за межі Банку за допомогою системи Клієнт-Банк по документу №17, від 20.12.2016. Без ПДВ.",2600477437,current,5.00,"АТ ""АКБ ""Львів""",09801546,юридична особа
УГП,"Львівська область, Яворівський район, Яворів, площа Ринок, 14",58,2016-12-20,17,"Виготовлення друкованих матеріалів (плакатів, листівок, буклетів та інших агітаційних матеріалів)",Друкована агітація,249867,Львівська обласна організація,40014820,Львівська область,"Оплата за друк газети ""Наша Галичина"" 10 зг.рах.№СФ-0001598 від 19.12.16р., зг.дог.№01/16 від 21.01.2016р., в тому числі ПДВ - 5400.00 грн.",2600477437,current,32400.00,"ТОВ ""ВД ""Молода Галичина""",32148930,юридична особа
УГП,"Івано-Франківська область, Івано-Франківськ, вулиця Січових стрільців, 15",70,2016-12-20,1220ЫХ0Б У,Банківські послуги,Інші витрати,249801,Івано-Франківська обласна організація,40026836,Івано-Франківська область,"Комісія за виконання платежів в національній валюті, згідно з відкритою офертою банку N б/н від 29.09.2015 та тарифів банку, без ПДВ.",26005052517967,current,3.00,"ПАТ КБ ""Приватбанк""",14360570,юридична особа
УГП,"Івано-Франківська область, Івано-Франківськ, вулиця Січових стрільців, 15",70,2016-12-20,1220ЫУ05 У,Банківські послуги,Інші витрати,249800,Івано-Франківська обласна організація,40026836,Івано-Франківська область,"Комісія за виконання платежів в національній валюті, згідно з відкритою офертою банку N б/н від 29.09.2015 та тарифів банку, без ПДВ.",26005052517967,current,3.00,"ПАТ КБ ""Приватбанк""",14360570,юридична особа
УГП,"Івано-Франківська область, Івано-Франківськ, вулиця Січових стрільців, 15",70,2016-12-20,1220Ь1^ ОУ,Банківські послуги,Інші витрати,249799,Івано-Франківська обласна організація,40026836,Івано-Франківська область,"Комісія за виконання платежів в національній валюті, згідно з відкритою офертою банку N б/н від 29.09.2015 та тарифів банку, без ПДВ.",26005052517967,current,3.00,"ПАТ КБ ""Приватбанк""",14360570,юридична особа
УГП,"Івано-Франківська область, Івано-Франківськ, вулиця Незалежності, 46",61,2016-12-20,86,Військовий збір,Податкові платежі,249798,Івано-Франківська обласна організація,40026836,Івано-Франківська область,Військовий збір із авансу за грудень 2016р.,26005052517967,current,22.50,УДКСУ у м. Івано-Франківську,37952250,юридична особа
УГП,"Івано-Франківська область, Івано-Франківськ, вулиця Незалежності, 46",63,2016-12-20,85,Податок на доходи,Податкові платежі,249797,Івано-Франківська обласна організація,40026836,Івано-Франківська область,Податок з доходів фізичних осіб із авансу за грудень 2016р,26005052517967,current,270.00,УДКСУ у м. Івано-Франківську,37952250,юридична особа
УГП,"Івано-Франківська область, Івано-Франківськ, вулиця Незалежності",62,2016-12-20,84,Сплата ЄСВ,Податкові платежі,249796,Івано-Франківська обласна організація,40026836,Івано-Франківська область,Сплата єдиного соціального внеску із авансу за грудень 2016р.,26005052517967,current,330.00,ДПІ в м. Івано-Франківську ГУ ДФС в Івано-Франківській області,39508514,юридична особа
УГП,"Тернопільська область, Тернопіль, проспект Степана Бандери, 38",70,2016-12-16,1216Б3617У,Банківські послуги,Інші витрати,249944,Тернопільська обласна організація,40011526,Тернопільська область,"Комісія за виконання платежів в національній валюті, згідно з відкритою офертою банку N б/н від 21.09.2015 та тарифів банку, без ПДВ.",26006055117228,current,3.00,"ПАТ КБ ""Приватбанк""",14360570,юридична особа
УГП,"Тернопільська область, Тернопіль, проспект Степана Бандери, 38",70,2016-12-16,1216Б361К У,Банківські послуги,Інші витрати,249943,Тернопільська обласна організація,40011526,Тернопільська область,"Комісія за виконання платежів в національній валюті, згідно з відкритою офертою банку N б/н від 21.09.2015 та тарифів банку, без ПДВ.",26006055117228,current,3.00,"ПАТ КБ ""Приватбанк""",14360570,юридична особа
УГП,"Тернопільська область, Тернопіль",79,2016-12-16,56,"Оренда будинків і приміщень та експлуатаційні витрати (прибирання, страхування орендованих будинків, охорона, сигналізація, ремонт, вивіз сміття, тощо)",Оренда нерухомості,249890,Тернопільська обласна організація,40011526,Тернопільська область,Оплата за оренду згідно договору N28 від 01.11.2015р. за грудень 2016р.,26006055117228,current,2500.68,Клепач Валентина Анатоліївна,,фізична особа
УГП,"Львівська область, Львів, вулиця Сербська, 1",70,2016-12-15,193495,Банківські послуги,Інші витрати,249636,Центральний офіс,39481037,Україна,"Сплата комісії за переказ коштів з поточного рахунку в операційний час за межі Банку за допомогою системи Клієнт-Банк по документу №154, від 15.12.2016. Без ПДВ",2600671275,current,5.00,"АТ ""АКБ ""Львів""",09801546,юридична особа
УГП,"Львівська область, Львів, вулиця Сербська, 1",70,2016-12-15,193498,Банківські послуги,Інші витрати,249635,Центральний офіс,39481037,Україна,"Сплата комісії за переказ коштів з поточного рахунку в операційний час за межі Банку за допомогою системи Клієнт-Банк по документу №155, від 15.12.2016. Без ПДВ",2600671275,current,5.00,"АТ ""АКБ ""Львів""",09801546,юридична особа
УГП,"Львівська область, Львів, вулиця Сербська, 1",70,2016-12-15,193494,Банківські послуги,Інші витрати,249634,Центральний офіс,39481037,Україна,"Сплата комісії за переказ коштів з поточного рахунку в операційний час за межі Банку за допомогою системи Клієнт-Банк по документу №153, від 15.12.2016. Без ПДВ",2600671275,current,5.00,"АТ ""АКБ ""Львів""",09801546,юридична особа
УГП,"Львівська область, Львів",84,2016-12-15,194876,"Заробітна плата, премії","Заробітна плата, лікарняні, вагітності, відрядження, компенсації",249357,Центральний офіс,39481037,Україна,Заробітна плата за 1 половину грудня 2016 року,2600671275,current,548.86,Герич Ганна Вікторівна,,фізична особа
УГП,Львівська область,84,2016-12-15,194877,"Заробітна плата, премії","Заробітна плата, лікарняні, вагітності, відрядження, компенсації",249356,Центральний офіс,39481037,Україна,Заробітна плата за 1 половину грудня 2016 року,2600671275,current,1207.50,Федорович Уляна Орестівна,,фізична особа
УГП,"Львівська область, Львів",84,2016-12-15,194878,"Заробітна плата, премії","Заробітна плата, лікарняні, вагітності, відрядження, компенсації",249355,Центральний офіс,39481037,Україна,Заробітна плата за 1 половину грудня 2016 року,2600671275,current,3018.75,Лозинський Роман Михайлович,,фізична особа
УГП,"Львівська область, Львів",84,2016-12-15,194879,"Заробітна плата, премії","Заробітна плата, лікарняні, вагітності, відрядження, компенсації",249354,Центральний офіс,39481037,Україна,Заробітна плата за 1 половину грудня 2016 року,2600671275,current,548.86,Гаврилко Іванна Володимирівна,,фізична особа
УГП,"Львівська область, Львів",84,2016-12-15,194880,"Заробітна плата, премії","Заробітна плата, лікарняні, вагітності, відрядження, компенсації",249353,Центральний офіс,39481037,Україна,Заробітна плата за 1 половину грудня 2016 року,2600671275,current,4025.00,Панкевич Богдан Романович,,фізична особа
УГП,"Івано-Франківська область, Івано-Франківськ, вулиця Січових стрільців, 15",70,2016-12-14,1214Ь0ЖЭ МУ,Банківські послуги,Інші витрати,249795,Івано-Франківська обласна організація,40026836,Івано-Франківська область,"Комісія за виконання платежів в національній валюті, згідно з відкритою офертою банку N б/н від 29.09.2015 та тарифів банку, без ПДВ.",26005052517967,current,3.00,"ПАТ КБ ""Приватбанк""",14360570,юридична особа
УГП,"Івано-Франківська область, Івано-Франківськ, вулиця Січових стрільців, 30А",51,2016-12-14,83,Оплата ефірного часу на ТБ,Телереклама,249794,Івано-Франківська обласна організація,40026836,Івано-Франківська область,Оплата за передачу хв.за грудень 2016р. згідно рахунку N 23 від 07.12.2016р. у т.ч. ПДВ - 20 % 306.72 грн.,26005052517967,current,1840.32,"Філія ПАТ ""НСТУ"" ""Івано-Франківська регіональна дирекція ""Карпати""",40020572,юридична особа
УГП,"Львівська область, Львів, вулиця Володимира Великого, 5А",49,2016-12-13,151,Публікування матеріалів у друкованих ЗМІ,Реклама в друкованих ЗМІ,249632,Центральний офіс,39481037,Україна,"Оплата за рекл.-інформац.послуги у газеті ""Експрес"" 15.12.2016,Четвер, Львівські новини, згідно рахунку №1203/1 від 12.12.2016р., в т.ч. ПДВ 1064,00 грн.",2600671275,current,6384.00,"ТОВ ""Газета ""Експрес”""",30823524,юридична особа
УГП,"Івано-Франківська область, Івано-Франківськ, вулиця Січових стрільців, 15",70,2016-12-08,1208Ь08К7 У,Банківські послуги,Інші витрати,249793,Івано-Франківська обласна організація,40026836,Івано-Франківська область,"Комісія за виконання платежів в національній валюті, згідно з відкритою офертою банку N б/н від 29.09.2015 та тарифів банку, без ПДВ.",26005052517967,current,3.00,"ПАТ КБ ""Приватбанк""",14360570,юридична особа
УГП,"Івано-Франківська область, Івано-Франківськ, площа Міцкевича, 8",79,2016-12-08,82,"Оренда будинків і приміщень та експлуатаційні витрати (прибирання, страхування орендованих будинків, охорона, сигналізація, ремонт, вивіз сміття, тощо)",Оренда нерухомості,249792,Івано-Франківська обласна організація,40026836,Івано-Франківська область,Оплата за оренду приміщення за грудень 2016 року згідно рахунку N СФ-1203016 від 03.12.2016р. Без ПДВ,26005052517967,current,4400.00,"ТОВ ""Крокус-Станіслав""",38162070,юридична особа
УГП,"Тернопільська область, Тернопіль, проспект Степана Бандери, 38",70,2016-12-06,1206Ь32ЕО У,Банківські послуги,Інші витрати,249942,Тернопільська обласна організація,40011526,Тернопільська область,"Комісія за виконання платежів в національній валюті, згідно з відкритою офертою банку N б/н від 21.09.2015 та тарифів банку, без ПДВ.",26006055117228,current,3.00,"ПАТ КБ ""Приватбанк""",14360570,юридична особа
УГП,Тернопільська область,45,2016-12-06,55,Перерахування коштів на виборчі рахунки кандидата від партії,Перерахування коштів до виборчих фондів,249889,Тернопільська обласна організація,40011526,Тернопільська область,Поповнення виборчого фонду кандидата на Голову громади селищної Ради Теслюк Андрій Олегович,26006055117228,current,3502.00,Теслюк Андрій Олегович,,фізична особа
УГП,"Івано-Франківська область, Івано-Франківськ, вулиця Січових стрільців, 15",70,2016-12-06,1206ЬіиИ3 А,Банківські послуги,Інші витрати,249791,Івано-Франківська обласна організація,40026836,Івано-Франківська область,Комісія за виплату по зарплатній відомості 1261035811 Зарплата за листопад 2016р.,26005052517967,current,5.04,"ПАТ КБ ""Приватбанк""",14360570,юридична особа
УГП,"Івано-Франківська область, Івано-Франківськ, вулиця Січових стрільців, 15",70,2016-12-06,12060803 У,Банківські послуги,Інші витрати,249790,Івано-Франківська обласна організація,40026836,Івано-Франківська область,"Комісія за виконання платежів в національній валюті, згідно з відкритою офертою банку N б/н від 29.09.2015 та тарифів банку, без ПДВ.",26005052517967,current,3.00,"ПАТ КБ ""Приватбанк""",14360570,юридична особа
УГП,"Івано-Франківська область, Івано-Франківськ, вулиця Січових стрільців, 15",70,2016-12-06,1206Ь1И2Х У,Банківські послуги,Інші витрати,249789,Івано-Франківська обласна організація,40026836,Івано-Франківська область,"Комісія за виконання платежів в національній валюті, згідно з відкритою офертою банку N б/н від 29.09.2015 та тарифів банку, без ПДВ.",26005052517967,current,3.00,"ПАТ КБ ""Приватбанк""",14360570,юридична особа
УГП,"Івано-Франківська область, Івано-Франківськ, вулиця Січових стрільців, 15",70,2016-12-06,1206ЫРТ3 У,Банківські послуги,Інші витрати,249788,Івано-Франківська обласна організація,40026836,Івано-Франківська область,"Комісія за виконання платежів в національній валюті, згідно з відкритою офертою банку N б/н від 29.09.2015 та тарифів банку, без ПДВ.",26005052517967,current,3.00,"ПАТ КБ ""Приватбанк""",14360570,юридична особа
УГП,"Івано-Франківська область, Івано-Франківськ, вулиця Незалежності, 46",61,2016-12-06,80,Військовий збір,Податкові платежі,249787,Івано-Франківська обласна організація,40026836,Івано-Франківська область,Військовий з6ір із зарплати за листопад 2016р,26005052517967,current,18.75,УДКСУ у м. Івано-Франківську,37952250,юридична особа
УГП,"Івано-Франківська область, Івано-Франківськ, вулиця Незалежності, 46",63,2016-12-06,79,Податок на доходи,Податкові платежі,249786,Івано-Франківська обласна організація,40026836,Івано-Франківська область,Податок з доходів фізичних огіб із зарплати за листопад 2016р,26005052517967,current,225.00,УДКСУ у м. Івано-Франківську,37952250,юридична особа
УГП,"Івано-Франківська область, Івано-Франківськ, вулиця Незалежності",62,2016-12-06,78,Сплата ЄСВ,Податкові платежі,249785,Івано-Франківська обласна організація,40026836,Івано-Франківська область,Сплата єдиного соціального внеску із зарплати за листопад 2016р.,26005052517967,current,275.00,ДПІ в м. Івано-Франківську ГУ ДФС в Івано-Франківській області,39508514,юридична особа
УГП,"Івано-Франківська область, Івано-Франківськ",84,2016-12-06,81,"Заробітна плата, премії","Заробітна плата, лікарняні, вагітності, відрядження, компенсації",249658,Івано-Франківська обласна організація,40026836,Івано-Франківська область,Зарплата за листопад 2016р.,26005052517967,current,1007.50,Романчук Любомир Петрович,,фізична особа
УГП,"Тернопільська область, Тернопіль, проспект Степана Бандери, 38",70,2016-12-05,1205Ь1МУБ У,Банківські послуги,Інші витрати,249941,Тернопільська обласна організація,40011526,Тернопільська область,"Комісія за виконання платежів в національній валюті, згідно з відкритою офертою банку N б/н від 21.09.2015 та тарифів банку, без ПДВ.",26006055117228,current,3.00,"ПАТ КБ ""Приватбанк""",14360570,юридична особа
УГП,"Тернопільська область, Тернопіль",43,2016-12-05,54,Інші витрати,Інші витрати,249888,Тернопільська обласна організація,40011526,Тернопільська область,Оплата згідно рах. N 207 від 01.12.2016р.,26006055117228,current,5442.00,Глогусь Тетяна Іванівна,,фізична особа
УГП,"Львівська область, Львів, вулиця Сербська, 1",70,2016-12-05,60608,Банківські послуги,Інші витрати,249631,Центральний офіс,39481037,Україна,"Сплата комісії за переказ коштів з поточного рахунку в операційний час за межі Банку за допомогою системи Клієнт-Банк по документу №150, від 05.12.2016. Без ПДВ",2600671275,current,5.00,"АТ ""АКБ ""Львів""",09801546,юридична особа
УГП,"Львівська область, Львів, вулиця Петра Дорошенка, 43",76,2016-12-05,150,Послуги зв’язку,Послуги зв’язку,249630,Центральний офіс,39481037,Україна,"Оплата за телекомунікац.послуги за листопад 2016р. зг.дог. № 4600000000017884 від 26.10.16, зг.рах. №4600000000017884.11.201 6 від 30.11.16р, в т.ч.ПДВ 17,11 грн",2600671275,current,102.66,"ПАТ ""Укртелеком""",21560766,юридична особа
УГП,"Львівська область, Львів, вулиця Сербська, 1",70,2016-12-05,58427,Банківські послуги,Інші витрати,249629,Центральний офіс,39481037,Україна,"Сплата комісії за переказ коштів з поточного рахунку в операційний час за межі Банку за допомогою системи Клієнт-Банк по документу №149, від 05.12.2016. Без ПДВ",2600671275,current,5.00,"АТ ""АКБ ""Львів""",09801546,юридична особа
УГП,"Львівська область, Львів",79,2016-12-05,149,"Оренда будинків і приміщень та експлуатаційні витрати (прибирання, страхування орендованих будинків, охорона, сигналізація, ремонт, вивіз сміття, тощо)",Оренда нерухомості,249352,Центральний офіс,39481037,Україна,"Попередня оплата орендної плати за грудень 2016р., згідно рахунку №4 від 02.12.2016р., згідно договору №01/2016 від 05.09.2016р., без ПДВ.",2600671275,current,5280.00,Монастирська Олеся Володимирівна,,фізична особа
УГП,"Тернопільська область, Тернопіль, проспект Степана Бандери, 38",70,2016-12-02,АБ6Ьи6есор,Банківські послуги,Інші витрати,249940,Тернопільська обласна організація,40011526,Тернопільська область,"Комісія за обслуговування рахунку листопад 2016р. згідно договору банківського рахунку від 21.09.2015, без ПДВ",26006055117228,current,100.00,"ПАТ КБ ""Приватбанк""",14360570,юридична особа
УГП,"Львівська область, Львів, вулиця Сербська, 1",70,2016-12-02,35639,Банківські послуги,Інші витрати,249628,Центральний офіс,39481037,Україна,"Сплата комісії за переказ коштів з поточного рахунку в операційний час за межі Банку за допомогою системи Клієнт-Банк по документу №145, від 02.12.2016. Без ПДВ",2600671275,current,5.00,"АТ ""АКБ ""Львів""",09801546,юридична особа
УГП,"Львівська область, Львів, вулиця Сербська, 1",70,2016-12-02,35668,Банківські послуги,Інші витрати,249627,Центральний офіс,39481037,Україна,"Сплата комісії за переказ коштів з поточного рахунку в операційний час за межі Банку за допомогою системи Клієнт-Банк по документу №147, від 02.12.2016. Без ПДВ",2600671275,current,5.00,"АТ ""АКБ ""Львів""",09801546,юридична особа
УГП,"Львівська область, Львів, вулиця Сербська, 1",70,2016-12-02,35645,Банківські послуги,Інші витрати,249626,Центральний офіс,39481037,Україна,"Сплата комісії за переказ коштів з поточного рахунку в операційний час за межі Банку за допомогою системи Клієнт-Банк по документу №146, від 02.12.2016. Без ПДВ",2600671275,current,5.00,"АТ ""АКБ ""Львів""",09801546,юридична особа
УГП,"Львівська область, Львів, вулиця Сербська, 1",70,2016-12-02,35553,Банківські послуги,Інші витрати,249625,Центральний офіс,39481037,Україна,"Сплата комісії за переказ коштів з поточного рахунку в операційний час за межі Банку за допомогою системи Клієнт-Банк по документу №144, від 02.12.2016. Без ПДВ",2600671275,current,5.00,"АТ ""АКБ ""Львів""",09801546,юридична особа
УГП,"Львівська область, Львів, вулиця Сербська, 1",70,2016-12-02,36467,Банківські послуги,Інші витрати,249624,Центральний офіс,39481037,Україна,"Сплата комісії за переказ коштів з поточного рахунку в післяопераційний час за межі Банку за допомогою системи Клієнт-Банк по документу №148, від 02.12.2016. Без ПДВ.",2600671275,current,10.00,"АТ ""АКБ ""Львів""",09801546,юридична особа
УГП,"Львівська область, Львів, вулиця Сербська, 1",70,2016-12-02,36246,Банківські послуги,Інші витрати,249623,Центральний офіс,39481037,Україна,"Сплата комісії за зарахуванню коштів на рахунки фізичних осіб підприємства по зарплатному проекту по документу №36245, від 02.12.2016. Без ПДВ.",2600671275,current,90.66,"АТ ""АКБ ""Львів""",09801546,юридична особа
УГП,"Львівська область, Львів, вулиця Стрийська, 35",62,2016-12-02,147,Сплата ЄСВ,Податкові платежі,249621,Центральний офіс,39481037,Україна,"*;201;39481037; 22,0% нарах. єдиного внеску на зароб.плату за 2 пол.листопада та відпуск.за груд.2016р. - 4129,31 грн.;;;",2600671275,current,4129.31,ДПІ у Франківському районі м. Львова,39508247,юридична особа
УГП,"Львівська область, Львів, вулиця Конотопська, 6",63,2016-12-02,146,Податок на доходи,Податкові платежі,249620,Центральний офіс,39481037,Україна,"*;101;39481037; податок з доходів фіз.осіб із зароб.плати за 2 пол.листопада 2016р. та відпуск. 18% - 3378,53 грн..;;;",2600671275,current,3378.53,УДКСУ у Франківському районі м. Львова,37965138,юридична особа
УГП,"Львівська область, Львів, вулиця Конотопська, 6",61,2016-12-02,145,Військовий збір,Податкові платежі,249619,Центральний офіс,39481037,Україна,"*;101;39481037; утриманий військовий збір із зароб.плати та відпуск. за 2 пол.листопада 2016р.,1,5% -281.54 грн.;;;",2600671275,current,281.54,УДКСУ у Франківському районі м. Львова,37965138,юридична особа
УГП,"Львівська область, Львів",84,2016-12-02,36251,"Заробітна плата, премії","Заробітна плата, лікарняні, вагітності, відрядження, компенсації",249351,Центральний офіс,39481037,Україна,Заробітна плата за 2 пол.листопада 2016р.,2600671275,current,1006.25,Герич Ганна Вікторівна,,фізична особа
УГП,Львівська область,84,2016-12-02,36248,"Заробітна плата, премії","Заробітна плата, лікарняні, вагітності, відрядження, компенсації",249350,Центральний офіс,39481037,Україна,Заробітна плата за 2 пол.листопада 2016р.,2600671275,current,1207.50,Федорович Уляна Орестівна,,фізична особа
УГП,"Львівська область, Львів",84,2016-12-02,36250,"Заробітна плата, премії","Заробітна плата, лікарняні, вагітності, відрядження, компенсації",249349,Центральний офіс,39481037,Україна,Заробітна плата за 2 пол.листопада 2016р.,2600671275,current,3018.75,Лозинський Роман Михайлович,,фізична особа
УГП,"Львівська область, Львів",84,2016-12-02,36247,"Заробітна плата, премії","Заробітна плата, лікарняні, вагітності, відрядження, компенсації",249348,Центральний офіс,39481037,Україна,Заробітна плата за 2 пол.листопада 2016р. Та відпускні за грудень 2017р.,2600671275,current,5852.03,Гаврилко Іванна Володимирівна,,фізична особа
УГП,"Львівська область, Львів",84,2016-12-02,36249,"Заробітна плата, премії","Заробітна плата, лікарняні, вагітності, відрядження, компенсації",249347,Центральний офіс,39481037,Україна,Заробітна плата за 2 пол.листопада 2016р.,2600671275,current,4025.00,Панкевич Богдан Романович,,фізична особа
УГП,"Тернопільська область, Тернопіль, проспект Степана Бандери, 38",70,2016-12-01,1201Ь2Ь89У,Банківські послуги,Інші витрати,249939,Тернопільська обласна організація,40011526,Тернопільська область,"Комісія за виконання платежів в національній валюті, згідно з відкритою офертою банку N б/н від 21.09.2015 та тарифів банку, без ПДВ.",26006055117228,current,3.00,"ПАТ КБ ""Приватбанк""",14360570,юридична особа
УГП,"Тернопільська область, Борщівський район, Шупарка, вулиця Голятин, 290",46,2016-12-01,52,Перерахування коштів на виборчі рахунки партії,Перерахування коштів до виборчих фондів,249938,Тернопільська обласна організація,40011526,Тернопільська область,"Поповнення виборчого фонду Борщівської районної організації політичної партії ""Українська Галицька партія""",26006055117228,current,6730.00,Тернопільська обласна організація Українська Галицька Партія,40011526,юридична особа
УГП,Тернопільська область,45,2016-12-01,53,Перерахування коштів на виборчі рахунки кандидата від партії,Перерахування коштів до виборчих фондів,249887,Тернопільська обласна організація,40011526,Тернопільська область,Поповнення виборчого фонду кандидата на Голову громади Кізюка ТЙ.,26006055117228,current,1810.00,Кізюк Іван Йосипович,,фізична особа
УГП,"Івано-Франківська область, Івано-Франківськ, вулиця Січових стрільців, 15",70,2016-12-01,А86Ьи3тхр,Банківські послуги,Інші витрати,249784,Івано-Франківська обласна організація,40026836,Івано-Франківська область,"Комісія за обслуговування рахунку листопад 2016р. згідно договору банківського рахунку від 29.09.2015, без ПДВ",26005052517967,current,100.00,"ПАТ КБ ""Приватбанк""",14360570,юридична особа
УГП,"Львівська область, Львів, вулиця Сербська, 1",70,2016-11-30,408662,Банківські послуги,Інші витрати,249866,Львівська обласна організація,40014820,Львівська область,"Комісія за pозрахункове обслуговування Клієнтів по системі ""Клієнт-Банк"" за період 01.11.16-30.11.16 зг. договору. №Ш0.00.002425/РКО від",2600477437,current,50.00,"АТ ""АКБ ""Львів""",09801546,юридична особа
УГП,"Львівська область, Львів, вулиця Сербська, 1",70,2016-11-30,408661,Банківські послуги,Інші витрати,249865,Львівська обласна організація,40014820,Львівська область,Комісія за ведення функціонуючого рахунку за період 01.11.16-30.11.16 зг. договору. №Ш0.00.002425/РКО від 17.09.2015.,2600477437,current,100.00,"АТ ""АКБ ""Львів""",09801546,юридична особа
УГП,"Львівська область, Львів, вулиця Сербська, 1",70,2016-11-30,407425,Банківські послуги,Інші витрати,249617,Центральний офіс,39481037,Україна,Комісія за ведення функціонуючого рахунку за період 01.11.16-30.11.16 зг. договору. №Ш0.00.002175/РКО від 10.12.2014.,2600671275,current,100.00,"АТ ""АКБ ""Львів""",09801546,юридична особа
УГП,"Львівська область, Львів, вулиця Сербська, 1",70,2016-11-30,407428,Банківські послуги,Інші витрати,249616,Центральний офіс,39481037,Україна,"Комісія за pозрахункове обслуговування Клієнтів по системі ""Клієнт-Банк"" за період 01.11.16-30.11.16 зг. договору. №N40.00.002175/РКО від 10.12.2014.",2600671275,current,50.00,"АТ ""АКБ ""Львів""",09801546,юридична особа
УГП,"Львівська область, Львів, вулиця Сербська, 1",70,2016-11-30,398712,Банківські послуги,Інші витрати,249615,Центральний офіс,39481037,Україна,"Сплата комісії за переказ коштів з поточного рахунку в операційний час за межі Банку за допомогою системи Клієнт-Банк по документу №143, від 30.11.2016. Без ПДВ",2600671275,current,5.00,"АТ ""АКБ ""Львів""",09801546,юридична особа
УГП,"Івано-Франківська область, Івано-Франківськ, вулиця Січових стрільців, 15",70,2016-11-29,1129L1WTH У,Банківські послуги,Інші витрати,249783,Івано-Франківська обласна організація,40026836,Івано-Франківська область,"Комісія за виконання платежів в національній валюті, згідно з відкритою офертою банку N б/н від 29.09.2015 та тарифів банку, без ПДВ.",26005052517967,current,3.00,"ПАТ КБ ""Приватбанк""",14360570,юридична особа
УГП,"Івано-Франківська область, Івано-Франківськ, вулиця Січових стрільців, 30А",51,2016-11-29,77,Оплата ефірного часу на ТБ,Телереклама,249782,Івано-Франківська обласна організація,40026836,Івано-Франківська область,Оплата за передачу хв.за листопад 2016р. згідно рахунку N 34 від 24.11.2016р. у т.ч. ПДВ - 20 % 306.72 грн.,26005052517967,current,1840.32,"Філія ПАТ ""НСТУ"" ""Івано-Франківська регіональна дирекція ""Карпати""",40020572,юридична особа
УГП,"Львівська область, Львів, вулиця Сербська, 1",70,2016-11-29,380358,Банківські послуги,Інші витрати,249613,Центральний офіс,39481037,Україна,"Сплата комісії за переказ коштів з поточного рахунку в операційний час в межах системи Банку за допомогою системи Клієнт-Банк по документу №142, від 29.11.2016.",2600671275,current,3.00,"АТ ""АКБ ""Львів""",09801546,юридична особа
УГП,"Львівська область, Львів, вулиця Сербська, 1",70,2016-11-29,379480,Банківські послуги,Інші витрати,249611,Центральний офіс,39481037,Україна,"Сплата комісії за переказ коштів з поточного рахунку в операційний час за межі Банку за допомогою системи Клієнт-Банк по документу №141, від 29.11.2016. Без ПДВ",2600671275,current,5.00,"АТ ""АКБ ""Львів""",09801546,юридична особа
УГП,"Львівська область, Львів, вулиця Володимира Великого, 5А",49,2016-11-29,141,Публікування матеріалів у друкованих ЗМІ,Реклама в друкованих ЗМІ,249610,Центральний офіс,39481037,Україна,"Оплата за рекл.-інформац.послуги у газеті ""Експрес"" 01.12.2016,Четр., Івано-Франківські новини, згідно рахунку №1103/1 від 29.11.2016р., в т.ч. ПДВ 1005,76 грн.",2600671275,current,6034.56,"ТОВ ""Газета ""Експрес”""",30823524,юридична особа
УГП,"Львівська область, Львів, вулиця Сербська, 1",70,2016-11-24,320052,Банківські послуги,Інші витрати,249864,Львівська обласна організація,40014820,Львівська область,"Сплата комісії за переказ коштів з поточного рахунку в операційний час в межах системи Банку за допомогою системи Клієнт-Банк по документу №16, від 24.11.2016.",2600477437,current,3.00,"АТ ""АКБ ""Львів""",09801546,юридична особа
УГП,"Львівська область, Львів, вулиця Сербська, 1",70,2016-11-24,311616,Банківські послуги,Інші витрати,249609,Центральний офіс,39481037,Україна,"Сплата комісії за переказ коштів з поточного рахунку в операційний час за межі Банку за допомогою системи Клієнт-Банк по документу №140, від 24.11.2016. Без ПДВ",2600671275,current,5.00,"АТ ""АКБ ""Львів""",09801546,юридична особа
УГП,"Київ, вулиця Бастіонна, 6",60,2016-11-24,140,Інші податки,Податкові платежі,249608,Центральний офіс,39481037,Україна,"22010300;39481037; Адміністративний збір за проведення змін до установчих документів державної реєстрації юрид.осіб, фіз.ос.-підпр. та гром.форм. ПП ""УГП"" :::",2600671275,current,410.00,ДКСУ,37567646,юридична особа
УГП,"Тернопільська область, Тернопіль, проспект Степана Бандери, 38",70,2016-11-22,1122Б262К У,Банківські послуги,Інші витрати,249937,Тернопільська обласна організація,40011526,Тернопільська область,"Комісія за виконання платежів в національній валюті, згідно з відкритою офертою банку N б/н від 21.09.2015 та тарифів банку, без ПДВ.",26006055117228,current,3.00,"ПАТ КБ ""Приватбанк""",14360570,юридична особа
УГП,"Тернопільська область, Тернопіль",79,2016-11-22,51,"Оренда будинків і приміщень та експлуатаційні витрати (прибирання, страхування орендованих будинків, охорона, сигналізація, ремонт, вивіз сміття, тощо)",Оренда нерухомості,249886,Тернопільська обласна організація,40011526,Тернопільська область,Оплата за оренду згідно договору N28 від 01.11.2015р. за листопад 2016р.,26006055117228,current,2500.68,Клепач Валентина Анатоліївна,,фізична особа
УГП,"Івано-Франківська область, Івано-Франківськ, вулиця Січових стрільців, 15",70,2016-11-22,1122Ь26Тв А,Банківські послуги,Інші витрати,249781,Івано-Франківська обласна організація,40026836,Івано-Франківська область,Комісія за виплату по зарплатній відомості 11221026385 Зарплата аванс за листопад 2016,26005052517967,current,5.03,"ПАТ КБ ""Приватбанк""",14360570,юридична особа
УГП,"Івано-Франківська область, Івано-Франківськ, вулиця Січових стрільців, 15",70,2016-11-22,1122Ь250М У,Банківські послуги,Інші витрати,249780,Івано-Франківська обласна організація,40026836,Івано-Франківська область,"Комісія за виконання платежів в національній валюті, згідно з відкритою офертою банку N б/н від 29.09.2015 та тарифів банку, без ПДВ.",26005052517967,current,3.00,"ПАТ КБ ""Приватбанк""",14360570,юридична особа
УГП,"Івано-Франківська область, Івано-Франківськ, вулиця Січових стрільців, 15",70,2016-11-22,1122L24WT У,Банківські послуги,Інші витрати,249779,Івано-Франківська обласна організація,40026836,Івано-Франківська область,"Комісія за виконання платежів в національній валюті, згідно з відкритою офертою банку N б/н від 29.09.2015 та тарифів банку, без ПДВ.",26005052517967,current,3.00,"ПАТ КБ ""Приватбанк""",14360570,юридична особа
УГП,"Івано-Франківська область, Івано-Франківськ, вулиця Січових стрільців, 15",70,2016-11-22,П22Ь246в У,Банківські послуги,Інші витрати,249778,Івано-Франківська обласна організація,40026836,Івано-Франківська область,"Комісія за виконання платежів в національній валюті, згідно з відкритою офертою банку N б/н від 29.09.2015 та тарифів банку, без ПДВ.",26005052517967,current,3.00,"ПАТ КБ ""Приватбанк""",14360570,юридична особа
УГП,"Івано-Франківська область, Івано-Франківськ, вулиця Незалежності, 46",61,2016-11-22,75,Військовий збір,Податкові платежі,249777,Івано-Франківська обласна організація,40026836,Івано-Франківська область,Військовий збір із авансу за листопад 2016р,26005052517967,current,18.75,УДКСУ у м. Івано-Франківську,37952250,юридична особа
УГП,"Івано-Франківська область, Івано-Франківськ, вулиця Незалежності, 46",63,2016-11-22,74,Податок на доходи,Податкові платежі,249776,Івано-Франківська обласна організація,40026836,Івано-Франківська область,Податок з доходів фізичних осіб із авансу за листопад 2016р,26005052517967,current,225.00,УДКСУ у м. Івано-Франківську,37952250,юридична особа
УГП,"Івано-Франківська область, Івано-Франківськ, вулиця Незалежності",62,2016-11-22,73,Сплата ЄСВ,Податкові платежі,249775,Івано-Франківська обласна організація,40026836,Івано-Франківська область,Сплата єдиного соціального внеску із авансу за листопад 2016р,26005052517967,current,275.00,ДПІ в м. Івано-Франківську ГУ ДФС в Івано-Франківській області,39508514,юридична особа
УГП,"Івано-Франківська область, Івано-Франківськ",84,2016-11-22,76,"Заробітна плата, премії","Заробітна плата, лікарняні, вагітності, відрядження, компенсації",249657,Івано-Франківська обласна організація,40026836,Івано-Франківська область,Зарплата аванс за листопад 2016,26005052517967,current,1005.00,Романчук Любомир Петрович,,фізична особа
УГП,"Львівська область, Львів, вулиця Сербська, 1",70,2016-11-18,234424,Банківські послуги,Інші витрати,249607,Центральний офіс,39481037,Україна,"Сплата комісії за переказ коштів з поточного рахунку в операційний час за межі Банку за допомогою системи Клієнт-Банк по документу №139, від 18.11.2016. Без ПДВ",2600671275,current,5.00,"АТ ""АКБ ""Львів""",09801546,юридична особа
УГП,"Львівська область, Львів, вулиця Сербська, 1",70,2016-11-17,229696,Банківські послуги,Інші витрати,249605,Центральний офіс,39481037,Україна,"Сплата комісії за переказ коштів з поточного рахунку в операційний час за межі Банку за допомогою системи Клієнт-Банк по документу №137, від 17.11.2016. Без ПДВ",2600671275,current,5.00,"АТ ""АКБ ""Львів""",09801546,юридична особа
УГП,"Львівська область, Львів, вулиця Сербська, 1",70,2016-11-17,229697,Банківські послуги,Інші витрати,249604,Центральний офіс,39481037,Україна,"Сплата комісії за переказ коштів з поточного рахунку в операційний час за межі Банку за допомогою системи Клієнт-Банк по документу №138, від 17.11.2016. Без ПДВ",2600671275,current,5.00,"АТ ""АКБ ""Львів""",09801546,юридична особа
УГП,"Львівська область, Львів, вулиця Сербська, 1",70,2016-11-17,229693,Банківські послуги,Інші витрати,249603,Центральний офіс,39481037,Україна,"Сплата комісії за переказ коштів з поточного рахунку в операційний час за межі Банку за допомогою системи Клієнт-Банк по документу №136, від 17.11.2016. Без ПДВ",2600671275,current,5.00,"АТ ""АКБ ""Львів""",09801546,юридична особа
УГП,"Львівська область, Львів, вулиця Сербська, 1",70,2016-11-17,230206,Банківські послуги,Інші витрати,249602,Центральний офіс,39481037,Україна,"Сплата комісії за зарахуванню коштів на рахунки фізичних осіб підприємства по зарплатному проекту по документу №230205, від 17.11.2016. Без ПДВ.",2600671275,current,73.66,"АТ ""АКБ ""Львів""",09801546,юридична особа
УГП,"Львівська область, Львів, вулиця Стрийська, 35",62,2016-11-17,138,Сплата ЄСВ,Податкові платежі,249601,Центральний офіс,39481037,Україна,"*;201;39481037; 22,0% нарах. єдиного внеску на зароб.плату за 1 пол.листопада 2016р.-3355,00 грн.;;;",2600671275,current,3355.00,ДПІ у Франківському районі м. Львова,39508247,юридична особа
УГП,"Львівська область, Львів, вулиця Конотопська, 6",63,2016-11-17,137,Податок на доходи,Податкові платежі,249600,Центральний офіс,39481037,Україна,"*;101;39481037; податок з доходів фіз.осіб із зароб.плати за 1 пол. листопада 2016р. 18% -2745,00 грн..;;;",2600671275,current,2745.00,УДКСУ у Франківському районі м. Львова,37965138,юридична особа
УГП,"Львівська область, Львів, вулиця Конотопська, 6",61,2016-11-17,136,Військовий збір,Податкові платежі,249599,Центральний офіс,39481037,Україна,"*;101;39481037; утриманий військовий збір із зароб.плати за 1 пол.листопада 2016р.,1,5% -228,75 грн.;;;",2600671275,current,228.75,УДКСУ у Франківському районі м. Львова,37965138,юридична особа
УГП,"Львівська область, Львів",84,2016-11-17,230209,"Заробітна плата, премії","Заробітна плата, лікарняні, вагітності, відрядження, компенсації",249346,Центральний офіс,39481037,Україна,Заробітна плата за 1 пол.листопада 2016р.,2600671275,current,1006.25,Герич Ганна Вікторівна,,фізична особа
УГП,Львівська область,84,2016-11-17,230207,"Заробітна плата, премії","Заробітна плата, лікарняні, вагітності, відрядження, компенсації",249345,Центральний офіс,39481037,Україна,Заробітна плата за 1 пол.листопада 2016р.,2600671275,current,1207.50,Федорович Уляна Орестівна,,фізична особа
УГП,"Львівська область, Львів",84,2016-11-17,230208,"Заробітна плата, премії","Заробітна плата, лікарняні, вагітності, відрядження, компенсації",249344,Центральний офіс,39481037,Україна,Заробітна плата за 1 пол.листопада 2016р.,2600671275,current,3018.75,Лозинський Роман Михайлович,,фізична особа
УГП,"Львівська область, Львів",84,2016-11-17,230210,"Заробітна плата, премії","Заробітна плата, лікарняні, вагітності, відрядження, компенсації",249343,Центральний офіс,39481037,Україна,Заробітна плата за 1 пол.листопада 2016р.,2600671275,current,3018.75,Гаврилко Іванна Володимирівна,,фізична особа
УГП,"Львівська область, Львів",84,2016-11-17,230211,"Заробітна плата, премії","Заробітна плата, лікарняні, вагітності, відрядження, компенсації",249342,Центральний офіс,39481037,Україна,Заробітна плата за 1 пол.листопада 2016р.,2600671275,current,4025.00,Панкевич Богдан Романович,,фізична особа
УГП,"Тернопільська область, Тернопіль, проспект Степана Бандери, 38",70,2016-11-15,1115Ь2157У,Банківські послуги,Інші витрати,249936,Тернопільська обласна організація,40011526,Тернопільська область,"Комісія за виконання платежів в національній валюті, згідно з відкритою офертою банку N б/н від 21.09.2015 та тарифів банку, без ПДВ.",26006055117228,current,3.00,"ПАТ КБ ""Приватбанк""",14360570,юридична особа
УГП,"Тернопільська область, Тернопіль, проспект Степана Бандери, 38",70,2016-11-15,1115Ь2151У,Банківські послуги,Інші витрати,249934,Тернопільська обласна організація,40011526,Тернопільська область,"Комісія за виконання платежів в національній валюті, згідно з відкритою офертою банку N б/н від 21.09.2015 та тарифів банку, без ПДВ.",26006055117228,current,3.00,"ПАТ КБ ""Приватбанк""",14360570,юридична особа
УГП,"Тернопільська область, Борщівський район, Борщів, вулиця Грушевського, 2",59,2016-11-15,49,Грошова застава,Грошова застава,249933,Тернопільська обласна організація,40011526,Тернопільська область,"Грошова застава для виборчого списку кандидатів у депутати Борщівської міської ради, висунутого в багатомандатному виборчому окрузі",26006055117228,current,804.00,Борщівська МВК Борщівського району Тернопільської області,34035350,юридична особа
УГП,"Івано-Франківська область, Івано-Франківськ, вулиця Січових стрільців, 15",70,2016-11-10,птиохг У,Банківські послуги,Інші витрати,249774,Івано-Франківська обласна організація,40026836,Івано-Франківська область,"Комісія за виконання платежів в національній валюті, згідно з відкритою офертою банку N б/н від 29.09.2015 та тарифів банку, без ПДВ.",26005052517967,current,3.00,"ПАТ КБ ""Приватбанк""",14360570,юридична особа
УГП,"Івано-Франківська область, Івано-Франківськ, площа Міцкевича, 8",79,2016-11-10,71,"Оренда будинків і приміщень та експлуатаційні витрати (прибирання, страхування орендованих будинків, охорона, сигналізація, ремонт, вивіз сміття, тощо)",Оренда нерухомості,249773,Івано-Франківська обласна організація,40026836,Івано-Франківська область,Оплата за оренду приміщення за листопад 2016 року згідно рахунку N СФ-1031018 від 31.10.2016р.,26005052517967,current,3889.00,"ТОВ ""Крокус-Станіслав""",38162070,юридична особа
УГП,"Львівська область, Львів, вулиця Сербська, 1",70,2016-11-10,133405,Банківські послуги,Інші витрати,249598,Центральний офіс,39481037,Україна,"Сплата комісії за переказ коштів з поточного рахунку в операційний час за межі Банку за допомогою системи Клієнт-Банк по документу №135, від 10.11.2016. Без ПДВ",2600671275,current,5.00,"АТ ""АКБ ""Львів""",09801546,юридична особа
УГП,"Львівська область, Львів, вулиця Петра Дорошенка, 43",76,2016-11-10,135,Послуги зв’язку,Послуги зв’язку,249597,Центральний офіс,39481037,Україна,"Оплата за телекомунікац.послуги за жовтень 2016р. зг.дог. № 4600000000017884 від 26.10.16, зг.рах. №4600000000017884.10.201 6 від 31.10.16р., в т.ч.ПДВ",2600671275,current,173.29,"ПАТ ""Укртелеком""",21560766,юридична особа
УГП,"Івано-Франківська область, Івано-Франківськ, вулиця Січових стрільців, 15",70,2016-11-04,1104Ь26Ш А,Банківські послуги,Інші витрати,249772,Івано-Франківська обласна організація,40026836,Івано-Франківська область,Комісія за виплату по зарплатній відомості 1141013427 Зарплата за жовтень 2016 р.,26005052517967,current,5.04,"ПАТ КБ ""Приватбанк""",14360570,юридична особа
УГП,"Івано-Франківська область, Івано-Франківськ, вулиця Січових стрільців, 15",70,2016-11-04,1104L23QW У,Банківські послуги,Інші витрати,249771,Івано-Франківська обласна організація,40026836,Івано-Франківська область,"Комісія за виконання платежів в національній валюті, згідно з відкритою офертою банку N б/н від 29.09.2015 та тарифів банку, без ПДВ.",26005052517967,current,3.00,"ПАТ КБ ""Приватбанк""",14360570,юридична особа
УГП,"Івано-Франківська область, Івано-Франківськ, вулиця Січових стрільців, 15",70,2016-11-04,1104Ь224и У,Банківські послуги,Інші витрати,249770,Івано-Франківська обласна організація,40026836,Івано-Франківська область,"Комісія за виконання платежів в національній валюті, згідно з відкритою офертою банку N б/н від 29.09.2015 та тарифів банку, без ПДВ.",26005052517967,current,3.00,"ПАТ КБ ""Приватбанк""",14360570,юридична особа
УГП,"Івано-Франківська область, Івано-Франківськ, вулиця Січових стрільців, 15",70,2016-11-04,1104Ь20ЄК У,Банківські послуги,Інші витрати,249769,Івано-Франківська обласна організація,40026836,Івано-Франківська область,"Комісія за виконання платежів в національній валюті, згідно з відкритою офертою банку N б/н від 29.09.2015 та тарифів банку, без ПДВ.",26005052517967,current,3.00,"ПАТ КБ ""Приватбанк""",14360570,юридична особа
УГП,"Івано-Франківська область, Івано-Франківськ, вулиця Незалежності, 46",61,2016-11-04,69,Військовий збір,Податкові платежі,249768,Івано-Франківська обласна організація,40026836,Івано-Франківська область,Військовий збір із зарплати за жовтень 2016р,26005052517967,current,18.75,УДКСУ у м. Івано-Франківську,37952250,юридична особа
УГП,"Івано-Франківська область, Івано-Франківськ, вулиця Незалежності, 46",63,2016-11-04,68,Податок на доходи,Податкові платежі,249767,Івано-Франківська обласна організація,40026836,Івано-Франківська область,Податок з доходів фізичних осіб із зарплати за жовтень 2016р,26005052517967,current,225.00,УДКСУ у м. Івано-Франківську,37952250,юридична особа
УГП,"Івано-Франківська область, Івано-Франківськ, вулиця Незалежності",62,2016-11-04,67,Сплата ЄСВ,Податкові платежі,249766,Івано-Франківська обласна організація,40026836,Івано-Франківська область,Сплата єдиного соціального внеску із зарплати за жовтень 2016р,26005052517967,current,275.00,ДПІ в м. Івано-Франківську ГУ ДФС в Івано-Франківській області,39508514,юридична особа
УГП,"Івано-Франківська область, Івано-Франківськ",84,2016-11-04,70,"Заробітна плата, премії","Заробітна плата, лікарняні, вагітності, відрядження, компенсації",249656,Івано-Франківська обласна організація,40026836,Івано-Франківська область,Зарплата за жовтень 2016 р.,26005052517967,current,1007.50,Романчук Любомир Петрович,,фізична особа
УГП,"Львівська область, Львів, вулиця Сербська, 1",70,2016-11-03,40260,Банківські послуги,Інші витрати,249596,Центральний офіс,39481037,Україна,"Сплата комісії за переказ коштів з поточного рахунку в операційний час за межі Банку за допомогою системи Клієнт-Банк по документу №134, від 03.11.2016. Без ПДВ",2600671275,current,5.00,"АТ ""АКБ ""Львів""",09801546,юридична особа
УГП,"Львівська область, Львів",79,2016-11-03,134,"Оренда будинків і приміщень та експлуатаційні витрати (прибирання, страхування орендованих будинків, охорона, сигналізація, ремонт, вивіз сміття, тощо)",Оренда нерухомості,249341,Центральний офіс,39481037,Україна,"Попередня оплата орендної плати за листопад 2016р., згідно рахунку №3 від 03.11.2016р., згідно договору №01/2016 від 05.09.2016р.. без ПДВ.",2600671275,current,5280.00,Монастирська Олеся Володимирівна,,фізична особа
УГП,"Львівська область, Львів, вулиця Сербська, 1",70,2016-11-02,24584,Банківські послуги,Інші витрати,249595,Центральний офіс,39481037,Україна,"Сплата комісії за переказ коштів з поточного рахунку в операційний час за межі Банку за допомогою системи Клієнт-Банк по документу №133, від 02.11.2016. Без ПДВ",2600671275,current,5.00,"АТ ""АКБ ""Львів""",09801546,юридична особа
УГП,"Львівська область, Львів, вулиця Сербська, 1",70,2016-11-02,24560,Банківські послуги,Інші витрати,249593,Центральний офіс,39481037,Україна,"Сплата комісії за переказ коштів з поточного рахунку в операційний час за межі Банку за допомогою системи Клієнт-Банк по документу №130, від 02.11.2016. Без ПДВ",2600671275,current,5.00,"АТ ""АКБ ""Львів""",09801546,юридична особа
УГП,"Львівська область, Львів, вулиця Сербська, 1",70,2016-11-02,24535,Банківські послуги,Інші витрати,249592,Центральний офіс,39481037,Україна,"Сплата комісії за переказ коштів з поточного рахунку в операційний час за межі Банку за допомогою системи Клієнт-Банк по документу №128, від 02.11.2016. Без ПДВ",2600671275,current,5.00,"АТ ""АКБ ""Львів""",09801546,юридична особа
УГП,"Львівська область, Львів, вулиця Сербська, 1",70,2016-11-02,24533,Банківські послуги,Інші витрати,249591,Центральний офіс,39481037,Україна,"Сплата комісії за переказ коштів з поточного рахунку в операційний час за межі Банку за допомогою системи Клієнт-Банк по документу №129, від 02.11.2016. Без ПДВ",2600671275,current,5.00,"АТ ""АКБ ""Львів""",09801546,юридична особа
УГП,"Львівська область, Львів, вулиця Сербська, 1",70,2016-11-02,132,Банківські послуги,Інші витрати,249590,Центральний офіс,39481037,Україна,Комісія банку за зарахування коштів на картки працівників заробітної плати за 2 пол.жовтня 2016р. згідно договору №N70.00.000051 від 11.05.2016р.,2600671275,current,81.02,"АТ ""АКБ ""Львів""",09801546,юридична особа
УГП,"Львівська область, Львів, вулиця Стрийська, 35",62,2016-11-02,130,Сплата ЄСВ,Податкові платежі,249589,Центральний офіс,39481037,Україна,"*;201;39481037; 22,0% нарах. єдиного внеску на зароб.плату за 2 пол.жовтня 2016р.- 3690,50 грн.;;;",2600671275,current,3690.50,ДПІ у Франківському районі м. Львова,39508247,юридична особа
УГП,"Львівська область, Львів, вулиця Конотопська, 6",63,2016-11-02,129,Податок на доходи,Податкові платежі,249588,Центральний офіс,39481037,Україна,"*;101;39481037; податок з доходів фіз.осіб із зароб.плати за 2 пол.жовтня 2016р. 18% - 3019,50 грн..;;;",2600671275,current,3019.50,УДКСУ у Франківському районі м. Львова,37965138,юридична особа
УГП,"Львівська область, Львів, вулиця Конотопська, 6",61,2016-11-02,128,Військовий збір,Податкові платежі,249587,Центральний офіс,39481037,Україна,"*;101;39481037; утриманий військовий збір із зароб.плати за 2 пол.жовтня 2016р.,1,5% - 251,63 грн.;;;",2600671275,current,251.63,УДКСУ у Франківському районі м. Львова,37965138,юридична особа
УГП,"Львівська область, Львів",84,2016-11-02,131,"Заробітна плата, премії","Заробітна плата, лікарняні, вагітності, відрядження, компенсації",249340,Центральний офіс,39481037,Україна,Заробітна плата за 2 пол.жовтня 2016р.,2600671275,current,1106.87,Герич Ганна Вікторівна,,фізична особа
УГП,Львівська область,84,2016-11-02,131,"Заробітна плата, премії","Заробітна плата, лікарняні, вагітності, відрядження, компенсації",249339,Центральний офіс,39481037,Україна,Заробітна плата за 2 пол.жовтня 2016р.,2600671275,current,1328.25,Федорович Уляна Орестівна,,фізична особа
УГП,"Львівська область, Львів",84,2016-11-02,131,"Заробітна плата, премії","Заробітна плата, лікарняні, вагітності, відрядження, компенсації",249338,Центральний офіс,39481037,Україна,Заробітна плата за 2 пол.жовтня 2016р.,2600671275,current,3320.62,Лозинський Роман Михайлович,,фізична особа
УГП,"Львівська область, Львів",84,2016-11-02,131,"Заробітна плата, премії","Заробітна плата, лікарняні, вагітності, відрядження, компенсації",249337,Центральний офіс,39481037,Україна,Заробітна плата за 2 пол.жовтня 2016р.,2600671275,current,3320.63,Гаврилко Іванна Володимирівна,,фізична особа
УГП,"Львівська область, Львів",84,2016-11-02,131,"Заробітна плата, премії","Заробітна плата, лікарняні, вагітності, відрядження, компенсації",249336,Центральний офіс,39481037,Україна,Заробітна плата за 2 пол.жовтня 2016р.,2600671275,current,4427.50,Панкевич Богдан Романович,,фізична особа
УГП,"Тернопільська область, Тернопіль, проспект Степана Бандери, 38",70,2016-11-01,АБ6ау68аір,Банківські послуги,Інші витрати,249932,Тернопільська обласна організація,40011526,Тернопільська область,"Комісія за обслуговування рахунку жовтень 2016р. згідно договору банківського рахунку від 21.09.2015, без ПДВ",26006055117228,current,100.00,"ПАТ КБ ""Приватбанк""",14360570,юридична особа
УГП,"Івано-Франківська область, Івано-Франківськ, вулиця Січових стрільців, 15",70,2016-11-01,А§6ау4єа7р,Банківські послуги,Інші витрати,249765,Івано-Франківська обласна організація,40026836,Івано-Франківська область,"Комісія за обслуговування рахунку жовтень 2016р. згідно договору банківського рахунку від 29.09.2015, без ПДВ",26005052517967,current,100.00,"ПАТ КБ ""Приватбанк""",14360570,юридична особа
УГП,"Тернопільська область, Тернопіль, проспект Степана Бандери, 38",70,2016-10-31,1031Ь4Б0И У,Банківські послуги,Інші витрати,249931,Тернопільська обласна організація,40011526,Тернопільська область,"Комісія за виконання платежів в національній валюті, згідно з відкритою офертою банку N б/н від 21.09.2015 та тарифів банку, без ПДВ.",26006055117228,current,3.00,"ПАТ КБ ""Приватбанк""",14360570,юридична особа
УГП,"Тернопільська область, Тернопіль",43,2016-10-31,48,Інші витрати,Інші витрати,249885,Тернопільська обласна організація,40011526,Тернопільська область,Оплата згідно рах. N176 від 31.10.2016р.,26006055117228,current,7084.00,Глогусь Тетяна Іванівна,,фізична особа
УГП,"Львівська область, Львів, вулиця Сербська, 1",70,2016-10-31,415128,Банківські послуги,Інші витрати,249862,Львівська обласна організація,40014820,Львівська область,"Комісія за pозрахункове обслуговування Клієнтів по системі ""Клієнт-Банк"" за період 01.10.16-31.10.16 зг. договору. №Ш0.00.002425/РКО від 17.09.2015.",2600477437,current,50.00,"АТ ""АКБ ""Львів""",09801546,юридична особа
УГП,"Львівська область, Львів, вулиця Сербська, 1",70,2016-10-31,415127,Банківські послуги,Інші витрати,249861,Львівська обласна організація,40014820,Львівська область,Комісія за ведення функціонуючого рахунку за період 01.10.16-31.10.16 зг. договору. №Ш0.00.002425/РКО від 17.09.2015.,2600477437,current,100.00,"АТ ""АКБ ""Львів""",09801546,юридична особа
УГП,"Львівська область, Львів, вулиця Сербська, 1",70,2016-10-31,377239,Банківські послуги,Інші витрати,249860,Львівська обласна організація,40014820,Львівська область,"Сплата комісії за переказ коштів з поточного рахунку в операційний час за межі Банку за допомогою системи Клієнт-Банк по документу №15, від 31.10.2016. Без ПДВ.",2600477437,current,5.00,"АТ ""АКБ ""Львів""",09801546,юридична особа
УГП,"Львівська область, Львів, вулиця Гуцульська, 11А",66,2016-10-31,15,Повернення внесків приватних внесків (донорам),Повернення приватних внесків (донорам),249859,Львівська обласна організація,40014820,Львівська область,"Повернення платежу ""чл внески Ходорів"" 31.10.2016 зг.док. № G1028R1KR0 від 28.10.2016 у зв.з відсут.іден.даних, невідпов.Зак.Укр.""Про політ.партії в Україні""",2600477437,current,300.00,"ПАТ КБ ""Приватбанк""",14360570,юридична особа
УГП,,66,2016-10-31,15,Повернення внесків приватних внесків (донорам),Повернення приватних внесків (донорам),249808,Львівська обласна організація,40014820,Львівська область,"у зв.з відсут.іден. даних, невідпов.За к.Укр.""Про політ.партії в Україні""",2600477437,current,300.00,"ПАТ КБ ""Приватбанк""",14360570,юридична особа
УГП,"Львівська область, Львів, вулиця Сербська, 1",70,2016-10-31,416133,Банківські послуги,Інші витрати,249586,Центральний офіс,39481037,Україна,"Комісія за pозрахункове обслуговування Клієнтів по системі ""Клієнт-Банк"" за період 01.10.16-31.10.16 зг. договору. №N40.00.002175/РКО від 10.12.2014.",2600671275,current,50.00,"АТ ""АКБ ""Львів""",09801546,юридична особа
УГП,"Львівська область, Львів, вулиця Сербська, 1",70,2016-10-31,416131,Банківські послуги,Інші витрати,249585,Центральний офіс,39481037,Україна,Комісія за ведення функціонуючого рахунку за період 01.10.16-31.10.16 зг. договору. №Ш0.00.002175/РКО від 10.12.2014.,2600671275,current,100.00,"АТ ""АКБ ""Львів""",09801546,юридична особа
УГП,"Львівська область, Львів, вулиця Сербська, 1",70,2016-10-28,348166,Банківські послуги,Інші витрати,249584,Центральний офіс,39481037,Україна,"Сплата комісії за переказ коштів з поточного рахунку в операційний час за межі Банку за допомогою системи Клієнт-Банк по документу №127, від 28.10.2016. Без ПДВ",2600671275,current,5.00,"АТ ""АКБ ""Львів""",09801546,юридична особа
УГП,"Івано-Франківська область, Івано-Франківськ, вулиця Січових стрільців, 15",70,2016-10-21,1021Ь34Т7Л,Банківські послуги,Інші витрати,249764,Івано-Франківська обласна організація,40026836,Івано-Франківська область,Комісія за виплату по зарплатній відомості 10211003858 Зарплата аванс за жовтень 2016,26005052517967,current,5.03,"ПАТ КБ ""Приватбанк""",14360570,юридична особа
УГП,"Івано-Франківська область, Івано-Франківськ, вулиця Січових стрільців, 15",70,2016-10-21,1021Ь29КБ У,Банківські послуги,Інші витрати,249763,Івано-Франківська обласна організація,40026836,Івано-Франківська область,"Комісія за виконання платежів в національній валюті, згідно з відкритою офертою банку N б/н від 29.09.2015 та тарифів банку, без ПДВ.",26005052517967,current,3.00,"ПАТ КБ ""Приватбанк""",14360570,юридична особа
УГП,"Івано-Франківська область, Івано-Франківськ, вулиця Січових стрільців, 15",70,2016-10-21,1021Ь28ЬО У,Банківські послуги,Інші витрати,249762,Івано-Франківська обласна організація,40026836,Івано-Франківська область,"Комісія за виконання платежів в національній валюті, згідно з відкритою офертою банку N б/н від 29.09.2015 та тарифів банку, без ПДВ.",26005052517967,current,3.00,"ПАТ КБ ""Приватбанк""",14360570,юридична особа
УГП,"Івано-Франківська область, Івано-Франківськ, вулиця Січових стрільців, 15",70,2016-10-21,1021L26W7 У,Банківські послуги,Інші витрати,249761,Івано-Франківська обласна організація,40026836,Івано-Франківська область,"Комісія за виконання платежів в національній валюті, згідно з відкритою офертою банку N б/н від 29.09.2015 та тарифів банку, без ПДВ.",26005052517967,current,3.00,"ПАТ КБ ""Приватбанк""",14360570,юридична особа
УГП,"Івано-Франківська область, Івано-Франківськ, вулиця Незалежності, 46",61,2016-10-21,66,Військовий збір,Податкові платежі,249760,Івано-Франківська обласна організація,40026836,Івано-Франківська область,Військовий збір із авансу за жовтень 2016р,26005052517967,current,18.75,УДКСУ у м. Івано-Франківську,37952250,юридична особа
УГП,"Івано-Франківська область, Івано-Франківськ, вулиця Незалежності, 46",63,2016-10-21,65,Податок на доходи,Податкові платежі,249759,Івано-Франківська обласна організація,40026836,Івано-Франківська область,Податок з доходів фізичних осіб із авансу за жовтень 2016р,26005052517967,current,225.00,УДКСУ у м. Івано-Франківську,37952250,юридична особа
УГП,"Івано-Франківська область, Івано-Франківськ, вулиця Незалежності",62,2016-10-21,64,Сплата ЄСВ,Податкові платежі,249758,Івано-Франківська обласна організація,40026836,Івано-Франківська область,Сплата єдиного соціального внеску із авансу за жовтень 2016р,26005052517967,current,275.00,ДПІ в м. Івано-Франківську ГУ ДФС в Івано-Франківській області,39508514,юридична особа
УГП,"Івано-Франківська область, Івано-Франківськ",84,2016-10-21,72,"Заробітна плата, премії","Заробітна плата, лікарняні, вагітності, відрядження, компенсації",249655,Івано-Франківська обласна організація,40026836,Івано-Франківська область,Зарплата аванс за жовтень 2016,26005052517967,current,1005.00,Романчук Любомир Петрович,,фізична особа
УГП,"Львівська область, Львів, вулиця Сербська, 1",70,2016-10-21,257148,Банківські послуги,Інші витрати,249582,Центральний офіс,39481037,Україна,"Сплата комісії за переказ коштів з поточного рахунку в операційний час за межі Банку за допомогою системи Клієнт-Банк по документу №124, від 21.10.2016. Без ПДВ",2600671275,current,5.00,"АТ ""АКБ ""Львів""",09801546,юридична особа
УГП,"Львівська область, Львів, вулиця Сербська, 1",70,2016-10-21,257036,Банківські послуги,Інші витрати,249581,Центральний офіс,39481037,Україна,"Сплата комісії за переказ коштів з поточного рахунку в операційний час за межі Банку за допомогою системи Клієнт-Банк по документу №122, від 21.10.2016. Без ПДВ",2600671275,current,5.00,"АТ ""АКБ ""Львів""",09801546,юридична особа
УГП,"Львівська область, Львів, вулиця Сербська, 1",70,2016-10-21,257033,Банківські послуги,Інші витрати,249580,Центральний офіс,39481037,Україна,"Сплата комісії за переказ коштів з поточного рахунку в операційний час за межі Банку за допомогою системи Клієнт-Банк по документу №123, від 21.10.2016. Без ПДВ",2600671275,current,5.00,"АТ ""АКБ ""Львів""",09801546,юридична особа
УГП,"Львівська область, Львів, вулиця Сербська, 1",70,2016-10-21,126,Банківські послуги,Інші витрати,249579,Центральний офіс,39481037,Україна,Комісія банку за зарахування коштів на картки працівників заробітної плати за 1 пол.жовтня 2016р. згідно договору №N70.00.000051 від 11.05.2016р.,2600671275,current,53.61,"АТ ""АКБ ""Львів""",09801546,юридична особа
УГП,"Львівська область, Львів, вулиця Стрийська, 35",62,2016-10-21,124,Сплата ЄСВ,Податкові платежі,249578,Центральний офіс,39481037,Україна,"*;201;39481037; 22,0% нарах. єдиного внеску на зароб.плату за 1 пол.жовтня 2016р.- 2442,00 грн.",2600671275,current,2442.00,ДПІ у Франківському районі м. Львова,39508247,юридична особа
УГП,"Львівська область, Львів, вулиця Конотопська, 6",63,2016-10-21,123,Податок на доходи,Податкові платежі,249577,Центральний офіс,39481037,Україна,"*;101;39481037; податок з доходів фіз.осіб із зароб.плати за 1 пол.жовтня 2016р. 18% - 1998,00 грн..;;;",2600671275,current,1998.00,УДКСУ у Франківському районі м. Львова,37965138,юридична особа
УГП,"Львівська область, Львів, вулиця Конотопська, 6",61,2016-10-21,122,Військовий збір,Податкові платежі,249576,Центральний офіс,39481037,Україна,"*;101;39481037; утриманий військовий збір із зароб.плати за 1 пол.жовтня 2016р.,1,5% - 166,50 грн.;;;",2600671275,current,166.50,УДКСУ у Франківському районі м. Львова,37965138,юридична особа
УГП,"Львівська область, Львів",84,2016-10-21,125,"Заробітна плата, премії","Заробітна плата, лікарняні, вагітності, відрядження, компенсації",249335,Центральний офіс,39481037,Україна,Заробітна плата за 1 пол.жовтня 2016р.,2600671275,current,301.88,Герич Ганна Вікторівна,,фізична особа
УГП,Львівська область,84,2016-10-21,125,"Заробітна плата, премії","Заробітна плата, лікарняні, вагітності, відрядження, компенсації",249334,Центральний офіс,39481037,Україна,Заробітна плата за 1 пол.жовтня 2016р.,2600671275,current,1086.75,Федорович Уляна Орестівна,,фізична особа
УГП,"Львівська область, Львів",84,2016-10-21,125,"Заробітна плата, премії","Заробітна плата, лікарняні, вагітності, відрядження, компенсації",249333,Центральний офіс,39481037,Україна,Заробітна плата за 1 пол.жовтня 2016р.,2600671275,current,1207.50,Лозинський Роман Михайлович,,фізична особа
УГП,"Львівська область, Львів",84,2016-10-21,125,"Заробітна плата, премії","Заробітна плата, лікарняні, вагітності, відрядження, компенсації",249332,Центральний офіс,39481037,Україна,Заробітна плата за 1 пол.жовтня 2016р.,2600671275,current,2716.87,Гаврилко Іванна Володимирівна,,фізична особа
УГП,"Львівська область, Львів",84,2016-10-21,125,"Заробітна плата, премії","Заробітна плата, лікарняні, вагітності, відрядження, компенсації",249331,Центральний офіс,39481037,Україна,Заробітна плата за 1 пол.жовтня 2016р.,2600671275,current,3622.50,Панкевич Богдан Романович,,фізична особа
УГП,"Тернопільська область, Тернопіль, проспект Степана Бандери, 38",70,2016-10-19,1019ЫТ2К У,Банківські послуги,Інші витрати,249929,Тернопільська обласна організація,40011526,Тернопільська область,"Комісія за виконання платежів в національній валюті, згідно з відкритою офертою банку N б/н від 21.09.2015 та тарифів банку, без ПДВ.",26006055117228,current,3.00,"ПАТ КБ ""Приватбанк""",14360570,юридична особа
УГП,"Тернопільська область, Тернопіль, проспект Степана Бандери, 38",70,2016-10-19,1019Ь1Т2и У,Банківські послуги,Інші витрати,249928,Тернопільська обласна організація,40011526,Тернопільська область,"Комісія за виконання платежiв в національній валюті, згідно з відкритою офертою банку N б/н від 21.09.2015 та тарифів банку, без ПДВ.",26006055117228,current,3.00,"ПАТ КБ ""Приватбанк""",14360570,юридична особа
УГП,"Тернопільська область, Тернопіль",79,2016-10-19,47,"Оренда будинків і приміщень та експлуатаційні витрати (прибирання, страхування орендованих будинків, охорона, сигналізація, ремонт, вивіз сміття, тощо)",Оренда нерухомості,249884,Тернопільська обласна організація,40011526,Тернопільська область,Оплата за оренду згідно договору N28 від 01.11.2015р. за жовтень 2016р.,26006055117228,current,2500.68,Клепач Валентина Анатоліївна,,фізична особа
УГП,"Львівська область, Львів, вулиця Сербська, 1",70,2016-10-18,208578,Банківські послуги,Інші витрати,249858,Львівська обласна організація,40014820,Львівська область,Комісія за надання довідки стосовно руху коштів по рахунку зг. договору. №Ш0.00.002425/РКО від 17.09.2015,2600477437,current,50.00,"АТ ""АКБ ""Львів""",09801546,юридична особа
УГП,"Львівська область, Львів, вулиця Сербська, 1",70,2016-10-18,207976,Банківські послуги,Інші витрати,249575,Центральний офіс,39481037,Україна,Комісія за надання довідки стосовно руху коштів по рахунку та РКО зг. договору. №N40.00.002175/РКО від 10.12.2014 за,2600671275,current,50.00,"АТ ""АКБ ""Львів""",09801546,юридична особа
УГП,"Львівська область, Львів, вулиця Сербська, 1",70,2016-10-13,163165,Банківські послуги,Інші витрати,249857,Львівська обласна організація,40014820,Львівська область,"Сплата комісії за переказ коштів з поточного рахунку в операційний час за межі Банку за допомогою системи Клієнт-Банк по документу №14, від 13.10.2016. Без ПДВ.",2600477437,current,5.00,"АТ ""АКБ ""Львів""",09801546,юридична особа
УГП,"Львівська область, Яворівський район, Яворів, площа Ринок, 14",58,2016-10-13,14,"Виготовлення друкованих матеріалів (плакатів, листівок, буклетів та інших агітаційних матеріалів)",Друкована агітація,249856,Львівська обласна організація,40014820,Львівська область,"Оплата за друк газети ""Наша Галичина"" 9 зг.рах.№СФ-0001374 від 10.10.2016р., зг.дог.№01/16 від 21.01.2016р., в тому числі ПДВ - 8100.00 грн.",2600477437,current,48600.00,"ТОВ ""ВД ""Молода Галичина""",32148930,юридична особа
УГП,"Львівська область, Львів, вулиця Сербська, 1",70,2016-10-13,154070,Банківські послуги,Інші витрати,249574,Центральний офіс,39481037,Україна,"Сплата комісії за переказ коштів з поточного рахунку в операційний час за межі Банку за допомогою системи Клієнт-Банк по документу №120, від 13.10.2016. Без ПДВ",2600671275,current,5.00,"АТ ""АКБ ""Львів""",09801546,юридична особа
УГП,"Львівська область, Львів, вулиця Сербська, 1",70,2016-10-13,154067,Банківські послуги,Інші витрати,249573,Центральний офіс,39481037,Україна,"Сплата комісії за переказ коштів з поточного рахунку в операційний час в межах системи Банку за допомогою системи Клієнт-Банк по документу №121, від 13.10.2016.",2600671275,current,3.00,"АТ ""АКБ ""Львів""",09801546,юридична особа
УГП,"Львівська область, Львів, вулиця Сербська, 1",70,2016-10-11,129047,Банківські послуги,Інші витрати,249855,Львівська обласна організація,40014820,Львівська область,"Сплата комісії за переказ коштів з поточного рахунку в операційний час в межах системи Банку за допомогою системи Клієнт-Банк по документу №13, від 11.10.2016.",2600477437,current,3.00,"АТ ""АКБ ""Львів""",09801546,юридична особа
УГП,"Івано-Франківська область, Івано-Франківськ, вулиця Січових стрільців, 15",70,2016-10-11,1011Ы2УС У,Банківські послуги,Інші витрати,249757,Івано-Франківська обласна організація,40026836,Івано-Франківська область,"Комісія за виконання платежів в національній валюті, згідно з відкритою офертою банку N б/н від 29.09.2015 та тарифів банку, без ПДВ.",26005052517967,current,3.00,"ПАТ КБ ""Приватбанк""",14360570,юридична особа
УГП,"Івано-Франківська область, Івано-Франківськ, площа Міцкевича, 8",79,2016-10-11,63,"Оренда будинків і приміщень та експлуатаційні витрати (прибирання, страхування орендованих будинків, охорона, сигналізація, ремонт, вивіз сміття, тощо)",Оренда нерухомості,249756,Івано-Франківська обласна організація,40026836,Івано-Франківська область,Оплата за оренду приміщення за жовтень 2016 року згідно рахунку N СФ-0930019 від 30.09.2016р. Без ПДВ,26005052517967,current,3825.00,"ТОВ ""Крокус-Станіслав""",38162070,юридична особа
УГП,"Львівська область, Львів, вулиця Сербська, 1",70,2016-10-11,129102,Банківські послуги,Інші витрати,249570,Центральний офіс,39481037,Україна,"Сплата комісії за переказ коштів з поточного рахунку в операційний час за межі Банку за допомогою системи Клієнт-Банк по документу №119, від 11.10.2016. Без ПДВ",2600671275,current,5.00,"АТ ""АКБ ""Львів""",09801546,юридична особа
УГП,"Львівська область, Львів, вулиця Сербська, 1",70,2016-10-11,42612,Банківські послуги,Інші витрати,249569,Центральний офіс,39481037,Україна,"Сплата комісії за переказ коштів з поточного рахунку в операційний час за межі Банку за допомогою системи Клієнт-Банк по документу №118, від 11.10.2016. Без ПДВ",2600671275,current,5.00,"АТ ""АКБ ""Львів""",09801546,юридична особа
УГП,"Львівська область, Львів",79,2016-10-11,119,"Оренда будинків і приміщень та експлуатаційні витрати (прибирання, страхування орендованих будинків, охорона, сигналізація, ремонт, вивіз сміття, тощо)",Оренда нерухомості,249330,Центральний офіс,39481037,Україна,"Попередня оплата орендної плати за жовтень 2016р., згідно рахунку №2 від 03.10.2016р., згідно договору №01/2016 від 05.09.2016р., без ПДВ.",2600671275,current,5280.00,Монастирська Олеся Володимирівна,,фізична особа
УГП,"Івано-Франківська область, Івано-Франківськ, вулиця Січових стрільців, 15",70,2016-10-06,1006Ь3053Л,Банківські послуги,Інші витрати,249755,Івано-Франківська обласна організація,40026836,Івано-Франківська область,Комісія за виплату по зарплатній відомості 106992570 Зарплата за вересень 2016 року,26005052517967,current,5.04,"ПАТ КБ ""Приватбанк""",14360570,юридична особа
УГП,"Івано-Франківська область, Івано-Франківськ, вулиця Січових стрільців, 15",70,2016-10-06,1006Ь3054У,Банківські послуги,Інші витрати,249754,Івано-Франківська обласна організація,40026836,Івано-Франківська область,"Комісія за виконання платежів в національній валюті, згідно з відкритою офертою банку N б/н від 29.09.2015 та тарифів банку, без ПДВ.",26005052517967,current,3.00,"ПАТ КБ ""Приватбанк""",14360570,юридична особа
УГП,"Івано-Франківська область, Івано-Франківськ, вулиця Січових стрільців, 15",70,2016-10-06,1006Ь3056У,Банківські послуги,Інші витрати,249753,Івано-Франківська обласна організація,40026836,Івано-Франківська область,"Комісія за виконання платежів в національній валюті, згідно з відкритою офертою банку N б/н від 29.09.2015 та тарифів банку, без ПДВ.",26005052517967,current,3.00,"ПАТ КБ ""Приватбанк""",14360570,юридична особа
УГП,"Івано-Франківська область, Івано-Франківськ, вулиця Січових стрільців, 15",70,2016-10-06,1006Ь3058У,Банківські послуги,Інші витрати,249752,Івано-Франківська обласна організація,40026836,Івано-Франківська область,"Комісія за виконання платежів в національній валюті, згідно з відкритою офертою банку N б/н від 29.09.2015 та тарифів банку, без ПДВ.",26005052517967,current,3.00,"ПАТ КБ ""Приватбанк""",14360570,юридична особа
УГП,"Івано-Франківська область, Івано-Франківськ, вулиця Незалежності, 46",61,2016-10-06,61,Військовий збір,Податкові платежі,249751,Івано-Франківська обласна організація,40026836,Івано-Франківська область,Військовий з6ір із зарплати за вересень 2016р,26005052517967,current,18.75,УДКСУ у м. Івано-Франківську,37952250,юридична особа
УГП,"Івано-Франківська область, Івано-Франківськ, вулиця Незалежності, 46",63,2016-10-06,60,Податок на доходи,Податкові платежі,249750,Івано-Франківська обласна організація,40026836,Івано-Франківська область,Податок з доходів фізичних осіб із зарплати за вересень 2016р,26005052517967,current,225.00,УДКСУ у м. Івано-Франківську,37952250,юридична особа
УГП,"Івано-Франківська область, Івано-Франківськ, вулиця Незалежності",62,2016-10-06,59,Сплата ЄСВ,Податкові платежі,249749,Івано-Франківська обласна організація,40026836,Івано-Франківська область,Сплата єдиного соціального внеску із зарплати за вересень 2016р,26005052517967,current,275.00,ДПІ в м. Івано-Франківську ГУ ДФС в Івано-Франківській області,39508514,юридична особа
УГП,"Івано-Франківська область, Івано-Франківськ",84,2016-10-06,62,"Заробітна плата, премії","Заробітна плата, лікарняні, вагітності, відрядження, компенсації",249654,Івано-Франківська обласна організація,40026836,Івано-Франківська область,Зарплата за вересень 2016 року,26005052517967,current,1007.50,Романчук Любомир Петрович,,фізична особа
УГП,"Львівська область, Львів, вулиця Сербська, 1",70,2016-10-04,29521,Банківські послуги,Інші витрати,249853,Львівська обласна організація,40014820,Львівська область,"Сплата комісії за переказ коштів з поточного рахунку в операційний час за межі Банку за допомогою системи Клієнт-Банк по документу №12, від 04.10.2016. Без ПДВ.",2600477437,current,5.00,"АТ ""АКБ ""Львів""",09801546,юридична особа
УГП,"Львівська область, Львів, вулиця Гуцульська, 11А",66,2016-10-04,12,Повернення внесків приватних внесків (донорам),Повернення приватних внесків (донорам),249852,Львівська обласна організація,40014820,Львівська область,"Повернен.плат. Добровільна пожертва #Р24А140880981А57357 22.09.2016 зг.док. G0922SKT0N у зв.з відсут.іден.даних, невідпов.Зак.Укр.""Про політ.партії в Україні""",2600477437,current,500.00,"ПАТ КБ ""Приватбанк""",14360570,юридична особа
УГП,,66,2016-10-04,12_1,Повернення внесків приватних внесків (донорам),Повернення приватних внесків (донорам),249809,Львівська обласна організація,40014820,Львівська область,"у зв.з відсут.іден. даних, невідпов.За к.Укр.""Про політ.партії в Україні""",2600477437,current,500.00,"ПАТ КБ ""Приватбанк""",14360570,юридична особа
УГП,,66,2016-10-04,12,Повернення внесків приватних внесків (донорам),Повернення приватних внесків (донорам),249807,Львівська обласна організація,40014820,Львівська область,"у зв.з відсут.іден. даних, невідпов.За к.Укр.""Про політ.партії в Україні""",2600477437,current,500.00,"ПАТ КБ ""Приватбанк""",14360570,юридична особа
УГП,"Львівська область, Львів",79,2016-10-04,118,"Оренда будинків і приміщень та експлуатаційні витрати (прибирання, страхування орендованих будинків, охорона, сигналізація, ремонт, вивіз сміття, тощо)",Оренда нерухомості,249329,Центральний офіс,39481037,Україна,"Попередня оплата орендної плати за вересень 2017р., згідно рахунку №1 від 03.10.2016р., згідно договору №01/2016 від 05.09.2016р., без ПДВ.",2600671275,current,5280.00,Монастирська Олеся Володимирівна,,фізична особа
УГП,"Тернопільська область, Тернопіль, проспект Степана Бандери, 38",70,2016-10-03,AS69u3q1zp,Банківські послуги,Інші витрати,249927,Тернопільська обласна організація,40011526,Тернопільська область,"Комісія за обслуговування рахунку вересень 2016р. згідно договору банківського рахунку від 21.09.2015, без ПДВ",26006055117228,current,100.00,"ПАТ КБ ""Приватбанк""",14360570,юридична особа
УГП,"Івано-Франківська область, Івано-Франківськ, вулиця Січових стрільців, 15",70,2016-10-03,А869и3Шер,Банківські послуги,Інші витрати,249748,Івано-Франківська обласна організація,40026836,Івано-Франківська область,"Комісія за обслуговування рахунку вересень 2016р. згідно договору банківського рахунку від 29.09.2015, без ПДВ",26005052517967,current,100.00,"ПАТ КБ ""Приватбанк""",14360570,юридична особа
УГП,"Львівська область, Львів, вулиця Сербська, 1",70,2016-09-30,425909,Банківські послуги,Інші витрати,249851,Львівська обласна організація,40014820,Львівська область,"Комісія за pозрахункове обслуговування Клієнтів по системі ""Клієнт-Банк"" за період 01.09.16-30.09.16 зг. договору. №Ш0.00.002425/РКО від 17.09.2015.",2600477437,current,50.00,"АТ ""АКБ ""Львів""",09801546,юридична особа
УГП,"Львівська область, Львів, вулиця Сербська, 1",70,2016-09-30,425908,Банківські послуги,Інші витрати,249850,Львівська обласна організація,40014820,Львівська область,Комісія за ведення функціонуючого рахунку за період 01.09.16-30.09.16 зг. договору. №Ш0.00.002425/РКО від 17.09.2015.,2600477437,current,100.00,"АТ ""АКБ ""Львів""",09801546,юридична особа
УГП,"Львівська область, Львів, вулиця Сербська, 1",70,2016-09-30,380977,Банківські послуги,Інші витрати,249568,Центральний офіс,39481037,Україна,"Сплата комісії за переказ коштів з поточного рахунку в операційний час за межі Банку за допомогою системи Клієнт-Банк по документу №115, від 30.09.2016. Без ПДВ",2600671275,current,5.00,"АТ ""АКБ ""Львів""",09801546,юридична особа
УГП,"Львівська область, Львів, вулиця Сербська, 1",70,2016-09-30,380975,Банківські послуги,Інші витрати,249567,Центральний офіс,39481037,Україна,"Сплата комісії за переказ коштів з поточного рахунку в операційний час за межі Банку за допомогою системи Клієнт-Банк по документу №114, від 30.09.2016. Без ПДВ",2600671275,current,5.00,"АТ ""АКБ ""Львів""",09801546,юридична особа
УГП,"Львівська область, Львів, вулиця Сербська, 1",70,2016-09-30,380973,Банківські послуги,Інші витрати,249566,Центральний офіс,39481037,Україна,"Сплата комісії за переказ коштів з поточного рахунку в операційний час за межі Банку за допомогою системи Клієнт-Банк по документу №113, від 30.09.2016. Без ПДВ",2600671275,current,5.00,"АТ ""АКБ ""Львів""",09801546,юридична особа
УГП,"Львівська область, Львів, вулиця Сербська, 1",70,2016-09-30,117,Банківські послуги,Інші витрати,249565,Центральний офіс,39481037,Україна,Комісія банку за зарахування коштів на картки працівників заробітної плати за 2 пол.вересня 2016р. згідно договору №N70.00.000051 від 11.05.2016р.,2600671275,current,42.26,"АТ ""АКБ ""Львів""",09801546,юридична особа
УГП,"Львівська область, Львів, вулиця Стрийська, 35",62,2016-09-30,115,Сплата ЄСВ,Податкові платежі,249564,Центральний офіс,39481037,Україна,"22,0% нарах. єдиного внеску на зароб.плату за 2 пол.вересня 2016р.",2600671275,current,1925.00,ДПІ у Франківському районі м. Львова,39508247,юридична особа
УГП,"Львівська область, Львів, вулиця Конотопська, 6",63,2016-09-30,114,Податок на доходи,Податкові платежі,249563,Центральний офіс,39481037,Україна,податок з доходів фіз.осіб із зароб.плати за 2 пол.вересня 2016р.,2600671275,current,1575.00,УДКСУ у Франківському районі м. Львова,37965138,юридична особа
УГП,"Львівська область, Львів, вулиця Конотопська, 6",61,2016-09-30,113,Військовий збір,Податкові платежі,249562,Центральний офіс,39481037,Україна,військовий збір із зароб.плати за 2 пол.вересня 2016р.,2600671275,current,131.25,УДКСУ у Франківському районі м. Львова,37965138,юридична особа
УГП,"Львівська область, Львів, вулиця Сербська, 1",70,2016-09-30,428309,Банківські послуги,Інші витрати,249561,Центральний офіс,39481037,Україна,"Комісія за pозрахункове обслуговування Клієнтів по системі ""Клієнт-Банк"" за період 01.09.16-30.09.16 зг. договору. №N40.00.002175/РКО від 10.12.2014.",2600671275,current,50.00,"АТ ""АКБ ""Львів""",09801546,юридична особа
УГП,"Львівська область, Львів, вулиця Сербська, 1",70,2016-09-30,428307,Банківські послуги,Інші витрати,249560,Центральний офіс,39481037,Україна,Комісія за ведення функціонуючого рахунку за період 01.09.16-30.09.16 зг. договору. №Ш0.00.002175/РКО від 10.12.2014.,2600671275,current,100.00,"АТ ""АКБ ""Львів""",09801546,юридична особа
УГП,"Львівська область, Львів",84,2016-09-30,116,"Заробітна плата, премії","Заробітна плата, лікарняні, вагітності, відрядження, компенсації",249328,Центральний офіс,39481037,Україна,Заробітна платаза 2 пол.вересня 2016р.,2600671275,current,3018.75,Гаврилко Іванна Володимирівна,,фізична особа
УГП,"Львівська область, Львів",84,2016-09-30,116,"Заробітна плата, премії","Заробітна плата, лікарняні, вагітності, відрядження, компенсації",249327,Центральний офіс,39481037,Україна,Заробітна платаза 2 пол.вересня 2016р.,2600671275,current,4025.00,Панкевич Богдан Романович,,фізична особа
УГП,"Львівська область, Львів, вулиця Сербська, 1",70,2016-09-29,366710,Банківські послуги,Інші витрати,249559,Центральний офіс,39481037,Україна,"Сплата комісії за переказ коштів з поточного рахунку в операційний час за межі Банку за допомогою системи Клієнт-Банк по документу №112, від 29.09.2016. Без ПДВ",2600671275,current,5.00,"АТ ""АКБ ""Львів""",09801546,юридична особа
УГП,"Івано-Франківська область, Івано-Франківськ, вулиця Січових стрільців, 15",70,2016-09-23,0923Ь0Б24 А,Банківські послуги,Інші витрати,249747,Івано-Франківська обласна організація,40026836,Івано-Франківська область,Комісія за виплату по зарплатній відомості 923982290 Аванс за вересень 2016 року,26005052517967,current,5.03,"ПАТ КБ ""Приватбанк""",14360570,юридична особа
УГП,"Івано-Франківська область, Івано-Франківськ, вулиця Січових стрільців, 15",70,2016-09-23,0923Б0Б0Б У,Банківські послуги,Інші витрати,249746,Івано-Франківська обласна організація,40026836,Івано-Франківська область,"Комісія за виконання платежів в національній валюті, згідно з відкритою офертою банку N б/н від 29.09.2015 та тарифів банку, без ПДВ.",26005052517967,current,3.00,"ПАТ КБ ""Приватбанк""",14360570,юридична особа
УГП,"Івано-Франківська область, Івано-Франківськ, вулиця Січових стрільців, 15",70,2016-09-23,0923Ь0БУХ У,Банківські послуги,Інші витрати,249745,Івано-Франківська обласна організація,40026836,Івано-Франківська область,"Комісія за виконання платежів в національній валюті, згідно з відкритою офертою банку N б/н від 29.09.2015 та тарифів банку, без ПДВ.",26005052517967,current,3.00,"ПАТ КБ ""Приватбанк""",14360570,юридична особа
УГП,"Івано-Франківська область, Івано-Франківськ, вулиця Січових стрільців, 15",70,2016-09-23,0923Б0Б01У,Банківські послуги,Інші витрати,249744,Івано-Франківська обласна організація,40026836,Івано-Франківська область,"Комісія за виконання платежів в національній валюті, згідно з відкритою офертою банку N б/н від 29.09.2015 та тарифів банку, без ПДВ.",26005052517967,current,3.00,"ПАТ КБ ""Приватбанк""",14360570,юридична особа
УГП,"Івано-Франківська область, Івано-Франківськ, вулиця Незалежності, 46",61,2016-09-23,57,Військовий збір,Податкові платежі,249743,Івано-Франківська обласна організація,40026836,Івано-Франківська область,Військовий збір із авансу за вересень 2016р.,26005052517967,current,18.75,УДКСУ у м. Івано-Франківську,37952250,юридична особа
УГП,"Івано-Франківська область, Івано-Франківськ, вулиця Незалежності, 46",63,2016-09-23,56,Податок на доходи,Податкові платежі,249742,Івано-Франківська обласна організація,40026836,Івано-Франківська область,Податок з доходів фізичних осіб із авансу за вересень 2016р.,26005052517967,current,225.00,УДКСУ у м. Івано-Франківську,37952250,юридична особа
УГП,"Івано-Франківська область, Івано-Франківськ, вулиця Незалежності",62,2016-09-23,55,Сплата ЄСВ,Податкові платежі,249741,Івано-Франківська обласна організація,40026836,Івано-Франківська область,Сплата єдиного соціального внеску із авансу за вересень 2016р.,26005052517967,current,275.00,ДПІ в м. Івано-Франківську ГУ ДФС в Івано-Франківській області,39508514,юридична особа
УГП,"Івано-Франківська область, Івано-Франківськ",84,2016-09-23,58,"Заробітна плата, премії","Заробітна плата, лікарняні, вагітності, відрядження, компенсації",249653,Івано-Франківська обласна організація,40026836,Івано-Франківська область,Аванс за вересень 2016 року,26005052517967,current,1005.00,Романчук Любомир Петрович,,фізична особа
УГП,"Тернопільська область, Тернопіль, проспект Степана Бандери, 38",70,2016-09-19,0919Ь4ЛЖ У,Банківські послуги,Інші витрати,249926,Тернопільська обласна організація,40011526,Тернопільська область,"Комісія за виконання платежів в національній валюті, згідно з відкритою офертою банку N б/н від 21.09.2015 та тарифів банку, без ПДВ.",26006055117228,current,3.00,"ПАТ КБ ""Приватбанк""",14360570,юридична особа
УГП,"Тернопільська область, Тернопіль, проспект Степана Бандери, 38",70,2016-09-19,0919Ь4Л1Р У,Банківські послуги,Інші витрати,249924,Тернопільська обласна організація,40011526,Тернопільська область,"Комісія за виконання платежів в національній валюті, згідно з відкритою офертою банку N б/н від 21.09.2015 та тарифів банку, без ПДВ.",26006055117228,current,3.00,"ПАТ КБ ""Приватбанк""",14360570,юридична особа
УГП,"Тернопільська область, Тернопіль",79,2016-09-19,44,"Оренда будинків і приміщень та експлуатаційні витрати (прибирання, страхування орендованих будинків, охорона, сигналізація, ремонт, вивіз сміття, тощо)",Оренда нерухомості,249883,Тернопільська обласна організація,40011526,Тернопільська область,Оплата за оренду згідно договору N28 від 01.11.2015р. за вересень 2016р.,26006055117228,current,2500.68,Клепач Валентина Анатоліївна,,фізична особа
УГП,"Львівська область, Львів, вулиця Сербська, 1",70,2016-09-19,225451,Банківські послуги,Інші витрати,249557,Центральний офіс,39481037,Україна,"Сплата комісії за переказ коштів з поточного рахунку в операційний час за межі Банку за допомогою системи Клієнт-Банк по документу №109, від 19.09.2016. Без ПДВ",2600671275,current,5.00,"АТ ""АКБ ""Львів""",09801546,юридична особа
УГП,"Львівська область, Львів, вулиця Сербська, 1",70,2016-09-19,225450,Банківські послуги,Інші витрати,249556,Центральний офіс,39481037,Україна,"Сплата комісії за переказ коштів з поточного рахунку в операційний час за межі Банку за допомогою системи Клієнт-Банк по документу №108, від 19.09.2016. Без ПДВ",2600671275,current,5.00,"АТ ""АКБ ""Львів""",09801546,юридична особа
УГП,"Львівська область, Львів, вулиця Сербська, 1",70,2016-09-19,225449,Банківські послуги,Інші витрати,249555,Центральний офіс,39481037,Україна,"Сплата комісії за переказ коштів з поточного рахунку в операційний час за межі Банку за допомогою системи Клієнт-Банк по документу №107, від 19.09.2016. Без ПДВ",2600671275,current,5.00,"АТ ""АКБ ""Львів""",09801546,юридична особа
УГП,"Львівська область, Львів, вулиця Сербська, 1",70,2016-09-19,111,Банківські послуги,Інші витрати,249554,Центральний офіс,39481037,Україна,Комісія банку за зарахування коштів на картки працівників заробітної плати за 1 пол.вересня 2016р. згідно договору №N70.00.000051 від 11.05.2016р.,2600671275,current,42.26,"АТ ""АКБ ""Львів""",09801546,юридична особа
УГП,"Львівська область, Львів, вулиця Стрийська, 35",62,2016-09-19,109,Сплата ЄСВ,Податкові платежі,249553,Центральний офіс,39481037,Україна,"22,0% нарах. єдиного внеску на зароб.плату за 1 пол.вересня 2016р.",2600671275,current,1925.00,ДПІ у Франківському районі м. Львова,39508247,юридична особа
УГП,"Львівська область, Львів, вулиця Конотопська, 6",63,2016-09-19,108,Податок на доходи,Податкові платежі,249552,Центральний офіс,39481037,Україна,податок з доходів фіз.осіб із зароб.плати за 1 пол.вересня 2016р.,2600671275,current,1575.00,УДКСУ у Франківському районі м. Львова,37965138,юридична особа
УГП,"Львівська область, Львів, вулиця Конотопська, 6",61,2016-09-19,107,Військовий збір,Податкові платежі,249551,Центральний офіс,39481037,Україна,військовий збір із зароб.плати за 1 пол.вересня 2016р.,2600671275,current,131.25,УДКСУ у Франківському районі м. Львова,37965138,юридична особа
УГП,"Львівська область, Львів",84,2016-09-19,110,"Заробітна плата, премії","Заробітна плата, лікарняні, вагітності, відрядження, компенсації",249326,Центральний офіс,39481037,Україна,Заробітна плата за 1 пол.вересня 2016р.,2600671275,current,3018.75,Гаврилко Іванна Володимирівна,,фізична особа
УГП,"Львівська область, Львів",84,2016-09-19,110,"Заробітна плата, премії","Заробітна плата, лікарняні, вагітності, відрядження, компенсації",249325,Центральний офіс,39481037,Україна,Заробітна плата за 1 пол.вересня 2016р.,2600671275,current,4025.00,Панкевич Богдан Романович,,фізична особа
УГП,"Львівська область, Львів, вулиця Сербська, 1",70,2016-09-12,140878,Банківські послуги,Інші витрати,249550,Центральний офіс,39481037,Україна,"Сплата комісії за переказ коштів з поточного рахунку в операційний час за межі Банку за допомогою системи Клієнт-Банк по документу №106, від 12.09.2016. Без ПДВ",2600671275,current,5.00,"АТ ""АКБ ""Львів""",09801546,юридична особа
УГП,"Львівська область, Львів, вулиця Конотопська, 6",63,2016-09-12,106,Податок на доходи,Податкові платежі,249549,Центральний офіс,39481037,Україна,податок з доходів фізичних осіб із оренд.плати,2600671275,current,228.00,УДКСУ у Франківському районі м. Львова,37965138,юридична особа
УГП,"Івано-Франківська область, Івано-Франківськ, вулиця Січових стрільців, 15",70,2016-09-06,0906БШ74 У,Банківські послуги,Інші витрати,249740,Івано-Франківська обласна організація,40026836,Івано-Франківська область,"Комісія за виконання платежів в національній валюті, згідно з відкритою офертою банку N б/н від 29.09.2015 та тарифів банку, без ПДВ.",26005052517967,current,3.00,"ПАТ КБ ""Приватбанк""",14360570,юридична особа
УГП,"Івано-Франківська область, Івано-Франківськ, вулиця Січових стрільців, 15",70,2016-09-06,0906L1W98 А,Банківські послуги,Інші витрати,249739,Івано-Франківська обласна організація,40026836,Івано-Франківська область,Комісія за виплату по зарплатній відомості 96966977 Зарплата за серпень 2016 року,26005052517967,current,5.04,"ПАТ КБ ""Приватбанк""",14360570,юридична особа
УГП,"Івано-Франківська область, Івано-Франківськ, вулиця Січових стрільців, 15",70,2016-09-06,0906ЬШБР У,Банківські послуги,Інші витрати,249738,Івано-Франківська обласна організація,40026836,Івано-Франківська область,"Комісія за виконання платежів в національній валюті, згідно з відкритою офертою банку N б/н від 29.09.2015 та тарифів банку, без ПДВ.",26005052517967,current,3.00,"ПАТ КБ ""Приватбанк""",14360570,юридична особа
УГП,"Івано-Франківська область, Івано-Франківськ, вулиця Січових стрільців, 15",70,2016-09-06,0906ЬШ4У У,Банківські послуги,Інші витрати,249737,Івано-Франківська обласна організація,40026836,Івано-Франківська область,"Комісія за виконання платежів в національній валюті, згідно з відкритою офертою банку N б/н від 29.09.2015 та тарифів банку, без ПДВ.",26005052517967,current,3.00,"ПАТ КБ ""Приватбанк""",14360570,юридична особа
УГП,"Івано-Франківська область, Івано-Франківськ, вулиця Січових стрільців, 15",70,2016-09-06,090бымрг У,Банківські послуги,Інші витрати,249736,Івано-Франківська обласна організація,40026836,Івано-Франківська область,"Комісія за виконання платежів в національній валюті, згідно з відкритою офертою банку N б/н від 29.09.2015 та тарифів банку, без ПДВ.",26005052517967,current,3.00,"ПАТ КБ ""Приватбанк""",14360570,юридична особа
УГП,"Івано-Франківська область, Івано-Франківськ, площа Міцкевича, 8",79,2016-09-06,54,"Оренда будинків і приміщень та експлуатаційні витрати (прибирання, страхування орендованих будинків, охорона, сигналізація, ремонт, вивіз сміття, тощо)",Оренда нерухомості,249735,Івано-Франківська обласна організація,40026836,Івано-Франківська область,Оплата за оренду приміщення за вересень 2016 року,26005052517967,current,3836.00,"ТОВ ""Крокус-Станіслав""",38162070,юридична особа
УГП,"Івано-Франківська область, Івано-Франківськ, вулиця Незалежності, 46",61,2016-09-06,52,Військовий збір,Податкові платежі,249734,Івано-Франківська обласна організація,40026836,Івано-Франківська область,Військовий збір із зарплати за серпень 2016р.,26005052517967,current,18.75,УДКСУ у м. Івано-Франківську,37952250,юридична особа
УГП,"Івано-Франківська область, Івано-Франківськ, вулиця Незалежності",62,2016-09-06,51,Сплата ЄСВ,Податкові платежі,249733,Івано-Франківська обласна організація,40026836,Івано-Франківська область,Сплата єдиного соціального внеску із зарплати за серпень 2016р.,26005052517967,current,275.00,ДПІ в м. Івано-Франківську ГУ ДФС в Івано-Франківській області,39508514,юридична особа
УГП,"Івано-Франківська область, Івано-Франківськ, вулиця Незалежності, 46",63,2016-09-06,50,Податок на доходи,Податкові платежі,249732,Івано-Франківська обласна організація,40026836,Івано-Франківська область,Податок з доходів фізичних осіб із зарплати за серпень 2016р.,26005052517967,current,225.00,УДКСУ у м. Івано-Франківську,37952250,юридична особа
УГП,"Івано-Франківська область, Івано-Франківськ",84,2016-09-06,53,"Заробітна плата, премії","Заробітна плата, лікарняні, вагітності, відрядження, компенсації",249652,Івано-Франківська обласна організація,40026836,Івано-Франківська область,Зарплата за серпень 2016 року,26005052517967,current,1007.50,Романчук Любомир Петрович,,фізична особа
УГП,"Львівська область, Львів, вулиця Сербська, 1",70,2016-09-06,59801,Банківські послуги,Інші витрати,249548,Центральний офіс,39481037,Україна,"Сплата комісії за переказ коштів з поточного рахунку в операційний час за межі Банку за допомогою системи Клієнт-Банк по документу №102, від 06.09.2016. Без ПДВ",2600671275,current,5.00,"АТ ""АКБ ""Львів""",09801546,юридична особа
УГП,"Львівська область, Львів, вулиця Сербська, 1",70,2016-09-06,59795,Банківські послуги,Інші витрати,249547,Центральний офіс,39481037,Україна,"Сплата комісії за переказ коштів з поточного рахунку в операційний час за межі Банку за допомогою системи Клієнт-Банк по документу №101, від 06.09.2016. Без ПДВ",2600671275,current,5.00,"АТ ""АКБ ""Львів""",09801546,юридична особа
УГП,"Львівська область, Львів, вулиця Сербська, 1",70,2016-09-06,59791,Банківські послуги,Інші витрати,249546,Центральний офіс,39481037,Україна,"Сплата комісії за переказ коштів з поточного рахунку в операційний час за межі Банку за допомогою системи Клієнт-Банк по документу №100, від 06.09.2016. Без ПДВ",2600671275,current,5.00,"АТ ""АКБ ""Львів""",09801546,юридична особа
УГП,"Львівська область, Львів, вулиця Сербська, 1",70,2016-09-06,59803,Банківські послуги,Інші витрати,249545,Центральний офіс,39481037,Україна,"Сплата комісії за переказ коштів з поточного рахунку в операційний час за межі Банку за допомогою системи Клієнт-Банк по документу №105, від 06.09.2016. Без ПДВ",2600671275,current,5.00,"АТ ""АКБ ""Львів""",09801546,юридична особа
УГП,"Львівська область, Львів, вулиця Сербська, 1",70,2016-09-06,59779,Банківські послуги,Інші витрати,249544,Центральний офіс,39481037,Україна,"Сплата комісії за переказ коштів з поточного рахунку в операційний час за межі Банку за допомогою системи Клієнт-Банк по документу №99, від 06.09.2016. Без ПДВ.",2600671275,current,5.00,"АТ ""АКБ ""Львів""",09801546,юридична особа
УГП,"Львівська область, Львів, вулиця Сербська, 1",70,2016-09-06,104,Банківські послуги,Інші витрати,249542,Центральний офіс,39481037,Україна,Комісія банку за зарахування коштів на картки працівників заробітної плати за 2 пол.серпня 2016р. згідно договору №N70.00.000051 від 11.05.2016р.,2600671275,current,46.10,"АТ ""АКБ ""Львів""",09801546,юридична особа
УГП,"Львівська область, Львів, вулиця Стрийська, 35",62,2016-09-06,102,Сплата ЄСВ,Податкові платежі,249541,Центральний офіс,39481037,Україна,"22,0% нарах. єдиного внеску на зароб.плату за 2 пол.серпня 2016р.",2600671275,current,2100.00,ДПІ у Франківському районі м. Львова,39508247,юридична особа
УГП,"Львівська область, Львів, вулиця Конотопська, 6",63,2016-09-06,101,Податок на доходи,Податкові платежі,249540,Центральний офіс,39481037,Україна,податок з доходів фіз.осіб із зароб.плати за 2 пол.серпня 2016р.,2600671275,current,1718.18,УДКСУ у Франківському районі м. Львова,37965138,юридична особа
УГП,"Львівська область, Львів, вулиця Конотопська, 6",61,2016-09-06,100,Військовий збір,Податкові платежі,249539,Центральний офіс,39481037,Україна,військовий збір із зароб.плати за 2 пол.серпня 2016р.,2600671275,current,143.18,УДКСУ у Франківському районі м. Львова,37965138,юридична особа
УГП,"Львівська область, Львів",84,2016-09-06,103,"Заробітна плата, премії","Заробітна плата, лікарняні, вагітності, відрядження, компенсації",249324,Центральний офіс,39481037,Україна,Заробітна плата за 2 пол.серпня 2016р.,2600671275,current,3293.19,Гаврилко Іванна Володимирівна,,фізична особа
УГП,"Львівська область, Львів",84,2016-09-06,103,"Заробітна плата, премії","Заробітна плата, лікарняні, вагітності, відрядження, компенсації",249323,Центральний офіс,39481037,Україна,Заробітна плата за 2 пол.серпня 2016р.,2600671275,current,4390.91,Панкевич Богдан Романович,,фізична особа
УГП,"Тернопільська область, Тернопіль, проспект Степана Бандери, 38",70,2016-09-05,ЛБ69525ї6р,Банківські послуги,Інші витрати,249923,Тернопільська обласна організація,40011526,Тернопільська область,"Комісія за обслуговування рахунку серпень 2016р. згідно договору банківського рахунку від 21.09.2015, без ПДВ",26006055117228,current,100.00,"ПАТ КБ ""Приватбанк""",14360570,юридична особа
УГП,"Івано-Франківська область, Івано-Франківськ, вулиця Січових стрільців, 15",70,2016-09-05,AS69518fqp,Банківські послуги,Інші витрати,249731,Івано-Франківська обласна організація,40026836,Івано-Франківська область,"Комісія за обслуговування рахунку серпень 2016р. згідно договору банківського рахунку від 29.09.2015, без ПДВ",26005052517967,current,100.00,"ПАТ КБ ""Приватбанк""",14360570,юридична особа
УГП,"Тернопільська область, Тернопіль, проспект Степана Бандери, 38",70,2016-08-31,0831Ь1К8Б У,Банківські послуги,Інші витрати,249922,Тернопільська обласна організація,40011526,Тернопільська область,"Комісія за виконання платежiв в національній валюті, згідно з відкритою офертою банку N б/н від 21.09.2015 та тарифів банку, без ПДВ.",26006055117228,current,3.00,"ПАТ КБ ""Приватбанк""",14360570,юридична особа
УГП,"Тернопільська область, Тернопіль",43,2016-08-31,43,Інші витрати,Інші витрати,249882,Тернопільська обласна організація,40011526,Тернопільська область,Оплата згідно рах. N126 від 29.08.2016р.,26006055117228,current,6843.00,Глогусь Тетяна Іванівна,,фізична особа
УГП,"Львівська область, Львів, вулиця Сербська, 1",70,2016-08-31,495624,Банківські послуги,Інші витрати,249849,Львівська обласна організація,40014820,Львівська область,"Комісія за pозрахункове обслуговування Клієнтів по системі ""Клієнт-Банк"" за період 01.08.16-31.08.16 зг. договору. №Ш0.00.002425/РКО",2600477437,current,50.00,"АТ ""АКБ ""Львів""",09801546,юридична особа
УГП,"Львівська область, Львів, вулиця Сербська, 1",70,2016-08-31,495623,Банківські послуги,Інші витрати,249848,Львівська обласна організація,40014820,Львівська область,Комісія за ведення функціонуючого рахунку за період 01.08.16-31.08.16 зг. договору. №Ш0.00.002425/РКО від 17.09.2015 Без ПДВ.,2600477437,current,100.00,"АТ ""АКБ ""Львів""",09801546,юридична особа
УГП,"Львівська область, Львів, вулиця Сербська, 1",70,2016-08-31,436116,Банківські послуги,Інші витрати,249847,Львівська обласна організація,40014820,Львівська область,"Сплата комісії за переказ коштів з поточного рахунку в операційний час за межі Банку за допомогою системи Клієнт-Банк по документу №11, від 31.08.2016. Без ПДВ.",2600477437,current,5.00,"АТ ""АКБ ""Львів""",09801546,юридична особа
УГП,"Львівська область, Яворівський район, Яворів, площа Ринок, 14",58,2016-08-31,11,"Виготовлення друкованих матеріалів (плакатів, листівок, буклетів та інших агітаційних матеріалів)",Друкована агітація,249846,Львівська обласна організація,40014820,Львівська область,"Оплата за друк газети ""Наша Галичина"" 8",2600477437,current,23760.00,"ТОВ ""ВД ""Молода Галичина""",32148930,юридична особа
УГП,"Львівська область, Львів, вулиця Сербська, 1",70,2016-08-31,495844,Банківські послуги,Інші витрати,249537,Центральний офіс,39481037,Україна,"Комісія за pозрахункове обслуговування Клієнтів по системі ""Клієнт-Банк"" за період 01.08.16-31.08.16 зг. договору. №N40.00.002175/РКО від 10.12.2014 Без ПДВ.",2600671275,current,50.00,"АТ ""АКБ ""Львів""",09801546,юридична особа
УГП,"Львівська область, Львів, вулиця Сербська, 1",70,2016-08-31,495843,Банківські послуги,Інші витрати,249536,Центральний офіс,39481037,Україна,Комісія за ведення функціонуючого рахунку за період 01.08.16-31.08.16 зг. договору. №Ш0.00.002175/РКО від 10.12.2014 Без ПДВ.,2600671275,current,100.00,"АТ ""АКБ ""Львів""",09801546,юридична особа
УГП,"Львівська область, Львів, вулиця Сербська, 1",70,2016-08-30,418320,Банківські послуги,Інші витрати,249535,Центральний офіс,39481037,Україна,"Сплата комісії за переказ коштів з поточного рахунку в операційний час в межах системи Банку за допомогою системи Клієнт-Банк по документу №98, від",2600671275,current,3.00,"АТ ""АКБ ""Львів""",09801546,юридична особа
УГП,"Львівська область, Львів, вулиця Сербська, 1",70,2016-08-30,418113,Банківські послуги,Інші витрати,249534,Центральний офіс,39481037,Україна,"Сплата комісії за переказ коштів з поточного рахунку в операційний час за межі Банку за допомогою системи Клієнт-Банк по документу №97, від 30.08.2016. Без ПДВ.",2600671275,current,5.00,"АТ ""АКБ ""Львів""",09801546,юридична особа
УГП,"Львівська область, Львів, вулиця Сербська, 1",70,2016-08-30,417392,Банківські послуги,Інші витрати,249533,Центральний офіс,39481037,Україна,"Сплата комісії за переказ коштів з поточного рахунку в операційний час за межі Банку за допомогою системи Клієнт-Банк по документу №96, від 30.08.2016. Без ПДВ.",2600671275,current,5.00,"АТ ""АКБ ""Львів""",09801546,юридична особа
УГП,"Львівська область, Львів, вулиця Друкарська, 6",49,2016-08-30,96,Публікування матеріалів у друкованих ЗМІ,Реклама в друкованих ЗМІ,249530,Центральний офіс,39481037,Україна,Оплата за послуги з розміщ.рекламних матеріалів,2600671275,current,20000.00,"Підприємство ""Форум видавців"" ГО ""Форум видавців""",30388577,юридична особа
УГП,"Тернопільська область, Тернопіль, бульвар Тараса Шевченка, 3",60,2016-08-29,42,Інші податки,Податкові платежі,249921,Тернопільська обласна організація,40011526,Тернопільська область,Адміністративний збір за проведення державної реєстрації юридичних осіб-підприємців.,26006055117228,current,410.00,УДКСУ у м. Тернопіль,37977726,юридична особа
УГП,"Тернопільська область, Тернопіль, проспект Степана Бандери, 38",70,2016-08-29,0829Ы935У,Банківські послуги,Інші витрати,249920,Тернопільська обласна організація,40011526,Тернопільська область,"Комісія за виконання платежів в національній валюті, згідно з відкритою офертою банку N б/н від 21.09.2015 та тарифів банку, без ПДВ.",26006055117228,current,3.00,"ПАТ КБ ""Приватбанк""",14360570,юридична особа
УГП,"Івано-Франківська область, Івано-Франківськ, вулиця Січових стрільців, 15",70,2016-08-29,0829Б22РБ А,Банківські послуги,Інші витрати,249730,Івано-Франківська обласна організація,40026836,Івано-Франківська область,Комісія за виплату по зарплатній відомості 829960723 Аванс за серпень 2016 року,26005052517967,current,5.03,"ПАТ КБ ""Приватбанк""",14360570,юридична особа
УГП,"Івано-Франківська область, Івано-Франківськ, вулиця Січових стрільців, 15",70,2016-08-29,0829Ь22Ь0У,Банківські послуги,Інші витрати,249729,Івано-Франківська обласна організація,40026836,Івано-Франківська область,"Комісія за виконання платежів в національній валюта, згідно з відкритою офертою банку N б/н від 29.09.2015 та тарифів банку, без ПДВ.",26005052517967,current,3.00,"ПАТ КБ ""Приватбанк""",14360570,юридична особа
УГП,"Івано-Франківська область, Івано-Франківськ, вулиця Січових стрільців, 15",70,2016-08-29,0829Ь22МБ У,Банківські послуги,Інші витрати,249728,Івано-Франківська обласна організація,40026836,Івано-Франківська область,"Комісія за виконання платежів в національній валюті, згідно з відкритою офертою банку N б/н від 29.09.2015 та тарифів банку, без ПДВ.",26005052517967,current,3.00,"ПАТ КБ ""Приватбанк""",14360570,юридична особа
УГП,"Івано-Франківська область, Івано-Франківськ, вулиця Січових стрільців, 15",70,2016-08-29,0829Ь22МХ У,Банківські послуги,Інші витрати,249727,Івано-Франківська обласна організація,40026836,Івано-Франківська область,"Комісія за виконання платежів в національній валюті, згідно з відкритою офертою банку N б/н від 29.09.2015 та тарифів банку, без ПДВ.",26005052517967,current,3.00,"ПАТ КБ ""Приватбанк""",14360570,юридична особа
УГП,"Івано-Франківська область, Івано-Франківськ, вулиця Незалежності, 46",61,2016-08-29,48,Військовий збір,Податкові платежі,249726,Івано-Франківська обласна організація,40026836,Івано-Франківська область,Військовий збір із авансу за серпень 2016р.,26005052517967,current,18.75,УДКСУ у м. Івано-Франківську,37952250,юридична особа
УГП,"Івано-Франківська область, Івано-Франківськ, вулиця Незалежності",62,2016-08-29,47,Сплата ЄСВ,Податкові платежі,249725,Івано-Франківська обласна організація,40026836,Івано-Франківська область,*;101;40026836;Сплата єдиного соціального внеску із авансу за серпень 2016р;;;,26005052517967,current,275.00,ДПІ в м. Івано-Франківську ГУ ДФС в Івано-Франківській області,39508514,юридична особа
УГП,"Івано-Франківська область, Івано-Франківськ, вулиця Незалежності, 46",63,2016-08-29,46,Податок на доходи,Податкові платежі,249724,Івано-Франківська обласна організація,40026836,Івано-Франківська область,Податок з доходів фізичних осіб із авансу за серпень 2016р.,26005052517967,current,225.00,УДКСУ у м. Івано-Франківську,37952250,юридична особа
УГП,"Івано-Франківська область, Івано-Франківськ",84,2016-08-29,49,"Заробітна плата, премії","Заробітна плата, лікарняні, вагітності, відрядження, компенсації",249651,Івано-Франківська обласна організація,40026836,Івано-Франківська область,Аванс за серпень 2016 року,26005052517967,current,1005.00,Романчук Любомир Петрович,,фізична особа
УГП,"Львівська область, Львів, вулиця Сербська, 1",70,2016-08-25,348200,Банківські послуги,Інші витрати,249845,Львівська обласна організація,40014820,Львівська область,"Сплата комісії за переказ коштів з поточного рахунку в операційний час за межі Банку за допомогою системи Клієнт-Банк по документу №10, від 25.08.2016. Без ПДВ.",2600477437,current,5.00,"АТ ""АКБ ""Львів""",09801546,юридична особа
УГП,"Львівська область, Львів, проспект В'ячеслава Чорновола, 7",69,2016-08-25,10,Організація заходів та інші організаційні послуги,Організація заходів та інші організаційні послуги,249844,Львівська обласна організація,40014820,Львівська область,"Оплата за оренду конференц залу згідно рахунку-факт. № СФ-0000986 від 25.08.2016р., в тому числі ПДВ 116,67грн.",2600477437,current,700.00,"ТОВ ""Готель ""Львів""",13836941,юридична особа
УГП,"Львівська область, Львів, вулиця Сербська, 1",70,2016-08-25,329650,Банківські послуги,Інші витрати,249529,Центральний офіс,39481037,Україна,"Сплата комісії за переказ коштів з поточного рахунку в операційний час за межі Банку за допомогою системи Клієнт-Банк по документу №95, від 25.08.2016. Без ПДВ.",2600671275,current,5.00,"АТ ""АКБ ""Львів""",09801546,юридична особа
УГП,"Львівська область, Львів, вулиця Конотопська, 6",63,2016-08-25,95,Податок на доходи,Податкові платежі,249528,Центральний офіс,39481037,Україна,податок з доходів фізичних осіб із оренд.плати,2600671275,current,1368.00,УДКСУ у Франківському районі м. Львова,37965138,юридична особа
УГП,"Львівська область, Львів, вулиця Сербська, 1",70,2016-08-22,291388,Банківські послуги,Інші витрати,249527,Центральний офіс,39481037,Україна,"Сплата комісії за переказ коштів з поточного рахунку в операційний час за межі Банку за допомогою системи Клієнт-Банк по документу №92, від 22.08.2016. Без ПДВ.",2600671275,current,5.00,"АТ ""АКБ ""Львів""",09801546,юридична особа
УГП,"Львівська область, Львів, вулиця Сербська, 1",70,2016-08-22,291387,Банківські послуги,Інші витрати,249526,Центральний офіс,39481037,Україна,"Сплата комісії за переказ коштів з поточного рахунку в операційний час за межі Банку за допомогою системи Клієнт-Банк по документу №91, від 22.08.2016. Без ПДВ.",2600671275,current,5.00,"АТ ""АКБ ""Львів""",09801546,юридична особа
УГП,"Львівська область, Львів, вулиця Сербська, 1",70,2016-08-22,291386,Банківські послуги,Інші витрати,249525,Центральний офіс,39481037,Україна,"Сплата комісії за переказ коштів з поточного рахунку в операційний час за межі Банку за допомогою системи Клієнт-Банк по документу №90, від 22.08.2016. Без ПДВ.",2600671275,current,5.00,"АТ ""АКБ ""Львів""",09801546,юридична особа
УГП,"Львівська область, Львів, вулиця Сербська, 1",70,2016-08-22,94,Банківські послуги,Інші витрати,249524,Центральний офіс,39481037,Україна,Комісія банку за зарахування коштів на картки працівників заробітної плати за 1 пол.серпня 2016р. згідно договору №N70.00.000051 від 11.05.2016р.,2600671275,current,38.42,"АТ ""АКБ ""Львів""",09801546,юридична особа
УГП,"Львівська область, Львів, вулиця Конотопська, 6",61,2016-08-22,92,Військовий збір,Податкові платежі,249523,Центральний офіс,39481037,Україна,військовий збір із зароб.плати за 1 пол.серпня 2016р.,2600671275,current,119.32,УДКСУ у Франківському районі м. Львова,37965138,юридична особа
УГП,"Львівська область, Львів, вулиця Стрийська, 35",62,2016-08-22,91,Сплата ЄСВ,Податкові платежі,249522,Центральний офіс,39481037,Україна,"22,0% нарах. єдиного внеску на зароб.плату за 1 пол.серпня 2016р.",2600671275,current,1750.00,ДПІ у Франківському районі м. Львова,39508247,юридична особа
УГП,"Львівська область, Львів, вулиця Конотопська, 6",63,2016-08-22,90,Податок на доходи,Податкові платежі,249521,Центральний офіс,39481037,Україна,податок з доходів фіз.осіб із зароб.плати за 1 пол.серпня 2016р.,2600671275,current,1431.82,УДКСУ у Франківському районі м. Львова,37965138,юридична особа
УГП,"Львівська область, Львів, вулиця Сербська, 1",70,2016-08-22,ПН32675РК О,Банківські послуги,Інші витрати,249520,Центральний офіс,39481037,Україна,Комісія за послуги Банку,2600671275,current,30.00,"АТ ""АКБ ""Львів""",09801546,юридична особа
УГП,"Львівська область, Львів, вулиця Сербська, 1",70,2016-08-22,ПН32673РК О,Банківські послуги,Інші витрати,249519,Центральний офіс,39481037,Україна,Комісія за послуги Банку,2600671275,current,15.00,"АТ ""АКБ ""Львів""",09801546,юридична особа
УГП,"Львівська область, Львів",84,2016-08-22,93,"Заробітна плата, премії","Заробітна плата, лікарняні, вагітності, відрядження, компенсації",249322,Центральний офіс,39481037,Україна,Заробітна плата за 1 пол.серпня 2016р.,2600671275,current,2744.31,Гаврилко Іванна Володимирівна,,фізична особа
УГП,"Львівська область, Львів",84,2016-08-22,93,"Заробітна плата, премії","Заробітна плата, лікарняні, вагітності, відрядження, компенсації",249321,Центральний офіс,39481037,Україна,Заробітна плата за 1 пол.серпня 2016р.,2600671275,current,3659.09,Панкевич Богдан Романович,,фізична особа
УГП,"Тернопільська область, Тернопіль, проспект Степана Бандери, 38",70,2016-08-15,0815Ь3Є0У У,Банківські послуги,Інші витрати,249919,Тернопільська обласна організація,40011526,Тернопільська область,"Комісія за виконання платежів в національній валюті, згідно з відкритою офертою банку N б/н від 21.09.2015 та тарифів банку, без ПДВ.",26006055117228,current,3.00,"ПАТ КБ ""Приватбанк""",14360570,юридична особа
УГП,"Тернопільська область, Тернопіль, проспект Степана Бандери, 38",70,2016-08-15,0815Ь3Є14 У,Банківські послуги,Інші витрати,249918,Тернопільська обласна організація,40011526,Тернопільська область,"Комісія за виконання платежів в національній валюті, згідно з відкритою офертою банку N б/н від 21.09.2015 та тарифів банку, без ПДВ.",26006055117228,current,3.00,"ПАТ КБ ""Приватбанк""",14360570,юридична особа
УГП,"Тернопільська область, Тернопіль",79,2016-08-15,40,"Оренда будинків і приміщень та експлуатаційні витрати (прибирання, страхування орендованих будинків, охорона, сигналізація, ремонт, вивіз сміття, тощо)",Оренда нерухомості,249881,Тернопільська обласна організація,40011526,Тернопільська область,Оплата за оренду згідно договору N28 від 01.11.2015р. за серпень 2016р.,26006055117228,current,2500.68,Клепач Валентина Анатоліївна,,фізична особа
УГП,"Львівська область, Львів, вулиця Сербська, 1",70,2016-08-11,177339,Банківські послуги,Інші витрати,249518,Центральний офіс,39481037,Україна,"Сплата комісії за переказ коштів з поточного рахунку в операційний час за межі Банку за допомогою системи Клієнт-Банк по документу №88, від 11.08.2016. Без ПДВ.",2600671275,current,5.00,"АТ ""АКБ ""Львів""",09801546,юридична особа
УГП,"Івано-Франківська область, Івано-Франківськ, вулиця Січових стрільців, 15",70,2016-08-10,0810Ь0Р70 У,Банківські послуги,Інші витрати,249723,Івано-Франківська обласна організація,40026836,Івано-Франківська область,"Комісія за виконання платежів в національній валюті, згідно з відкритою офертою банку N б/н від 29.09.2015 та тарифів банку, без ПДВ.",26005052517967,current,3.00,"ПАТ КБ ""Приватбанк""",14360570,юридична особа
УГП,"Івано-Франківська область, Івано-Франківськ, площа Міцкевича, 8",79,2016-08-10,45,"Оренда будинків і приміщень та експлуатаційні витрати (прибирання, страхування орендованих будинків, охорона, сигналізація, ремонт, вивіз сміття, тощо)",Оренда нерухомості,249722,Івано-Франківська обласна організація,40026836,Івано-Франківська область,Оплата за оренду приміщення за серпень 2016 року,26005052517967,current,3828.00,"ТОВ ""Крокус-Станіслав""",38162070,юридична особа
УГП,"Львівська область, Львів, вулиця Сербська, 1",70,2016-08-10,162434,Банківські послуги,Інші витрати,249516,Центральний офіс,39481037,Україна,"Сплата комісії за переказ коштів з поточного рахунку в операційний час за межі Банку за допомогою системи Клієнт-Банк по документу №87, від 10.08.2016. Без ПДВ.",2600671275,current,5.00,"АТ ""АКБ ""Львів""",09801546,юридична особа
УГП,"Львівська область, Львів, вулиця Сербська, 1",70,2016-08-10,162432,Банківські послуги,Інші витрати,249515,Центральний офіс,39481037,Україна,"Сплата комісії за переказ коштів з поточного рахунку в операційний час за межі Банку за допомогою системи Клієнт-Банк по документу №86, від 10.08.2016. Без ПДВ.",2600671275,current,5.00,"АТ ""АКБ ""Львів""",09801546,юридична особа
УГП,"Львівська область, Львів, вулиця Сербська, 1",70,2016-08-10,162071,Банківські послуги,Інші витрати,249514,Центральний офіс,39481037,Україна,"Сплата комісії за переказ коштів з поточного рахунку в операційний час за межі Банку за допомогою системи Клієнт-Банк по документу №85, від 10.08.2016. Без ПДВ.",2600671275,current,5.00,"АТ ""АКБ ""Львів""",09801546,юридична особа
УГП,"Львівська область, Львів, вулиця Конотопська, 6",63,2016-08-10,86,Податок на доходи,Податкові платежі,249513,Центральний офіс,39481037,Україна,податок з доходів фізичних осіб із оренд.плати за серпень 2016р.,2600671275,current,1927.80,УДКСУ у Франківському районі м. Львова,37965138,юридична особа
УГП,"Львівська область, Львів, вулиця Конотопська, 6",61,2016-08-10,85,Військовий збір,Податкові платежі,249512,Центральний офіс,39481037,Україна,військовий збір із оренд.плати за серпень 2016р.,2600671275,current,160.65,УДКСУ у Франківському районі м. Львова,37965138,юридична особа
УГП,"Львівська область, Львів",79,2016-08-10,87,"Оренда будинків і приміщень та експлуатаційні витрати (прибирання, страхування орендованих будинків, охорона, сигналізація, ремонт, вивіз сміття, тощо)",Оренда нерухомості,249320,Центральний офіс,39481037,Україна,Оплата за оренду приміщення за серпень 2016р.,2600671275,current,8621.55,Дмитрик Володимир Петрович,,фізична особа
УГП,"Івано-Франківська область, Івано-Франківськ, вулиця Січових стрільців, 15",70,2016-08-05,0805Ь396БЛ,Банківські послуги,Інші витрати,249721,Івано-Франківська обласна організація,40026836,Івано-Франківська область,Комісія за виплату по зарплатній відомості 85946747 Зарплата за липень 2016 року,26005052517967,current,5.03,"ПАТ КБ ""Приватбанк""",14360570,юридична особа
УГП,"Івано-Франківська область, Івано-Франківськ, вулиця Січових стрільців, 15",70,2016-08-05,0805Ь393У У,Банківські послуги,Інші витрати,249720,Івано-Франківська обласна організація,40026836,Івано-Франківська область,"Комісія за виконання платежів в національній валюті, згідно з відкритою офертою банку N б/н від 29.09.2015 та тарифів банку, без ПДВ.",26005052517967,current,3.00,"ПАТ КБ ""Приватбанк""",14360570,юридична особа
УГП,"Івано-Франківська область, Івано-Франківськ, вулиця Січових стрільців, 15",70,2016-08-05,0805Ь3940У,Банківські послуги,Інші витрати,249719,Івано-Франківська обласна організація,40026836,Івано-Франківська область,"Комісія за виконання платежів в національній валюті, згідно з відкритою офертою банку N б/н від 29.09.2015 та тарифів банку, без ПДВ.",26005052517967,current,3.00,"ПАТ КБ ""Приватбанк""",14360570,юридична особа
УГП,"Івано-Франківська область, Івано-Франківськ, вулиця Січових стрільців, 15",70,2016-08-05,0805Ь3943У,Банківські послуги,Інші витрати,249718,Івано-Франківська обласна організація,40026836,Івано-Франківська область,"Комісія за виконання платежів в національній валюті, згідно з відкритою офертою банку N б/н від 29.09.2015 та тарифів банку, без ПДВ.",26005052517967,current,3.00,"ПАТ КБ ""Приватбанк""",14360570,юридична особа
УГП,"Івано-Франківська область, Івано-Франківськ, вулиця Незалежності, 46",61,2016-08-05,43,Військовий збір,Податкові платежі,249717,Івано-Франківська обласна організація,40026836,Івано-Франківська область,Військовий збір із зарплати за липень 2016р.,26005052517967,current,18.75,УДКСУ у м. Івано-Франківську,37952250,юридична особа
УГП,"Івано-Франківська область, Івано-Франківськ, вулиця Незалежності, 46",63,2016-08-05,42,Податок на доходи,Податкові платежі,249716,Івано-Франківська обласна організація,40026836,Івано-Франківська область,Податок з доходів фізичних осіб із зарплати за липень 2016р.,26005052517967,current,225.00,УДКСУ у м. Івано-Франківську,37952250,юридична особа
УГП,"Івано-Франківська область, Івано-Франківськ, вулиця Незалежності",62,2016-08-05,41,Сплата ЄСВ,Податкові платежі,249715,Івано-Франківська обласна організація,40026836,Івано-Франківська область,Сплата єдиного соціального внеску із зарплати за липень 2016р.,26005052517967,current,275.00,ДПІ в м. Івано-Франківську ГУ ДФС в Івано-Франківській області,39508514,юридична особа
УГП,"Івано-Франківська область, Івано-Франківськ",84,2016-08-05,44,"Заробітна плата, премії","Заробітна плата, лікарняні, вагітності, відрядження, компенсації",249650,Івано-Франківська обласна організація,40026836,Івано-Франківська область,Зарплата за липень 2016 року,26005052517967,current,1006.50,Романчук Любомир Петрович,,фізична особа
УГП,"Львівська область, Львів, вулиця Сербська, 1",70,2016-08-05,96110,Банківські послуги,Інші витрати,249511,Центральний офіс,39481037,Україна,"Сплата комісії за переказ коштів з поточного рахунку в операційний час за межі Банку за допомогою системи Клієнт-Банк по документу №79, від 05.08.2016. Без ПДВ.",2600671275,current,5.00,"АТ ""АКБ ""Львів""",09801546,юридична особа
УГП,"Львівська область, Львів, вулиця Сербська, 1",70,2016-08-05,97628,Банківські послуги,Інші витрати,249510,Центральний офіс,39481037,Україна,"Сплата комісії за переказ коштів з поточного рахунку в операційний час за межі Банку за допомогою системи Клієнт-Банк по документу №82, від 05.08.2016. Без ПДВ.",2600671275,current,5.00,"АТ ""АКБ ""Львів""",09801546,юридична особа
УГП,"Львівська область, Львів, вулиця Сербська, 1",70,2016-08-05,97625,Банківські послуги,Інші витрати,249509,Центральний офіс,39481037,Україна,"Сплата комісії за переказ коштів з поточного рахунку в операційний час за межі Банку за допомогою системи Клієнт-Банк по документу №81, від 05.08.2016. Без ПДВ.",2600671275,current,5.00,"АТ ""АКБ ""Львів""",09801546,юридична особа
УГП,"Львівська область, Львів, вулиця Сербська, 1",70,2016-08-05,96963,Банківські послуги,Інші витрати,249508,Центральний офіс,39481037,Україна,"Сплата комісії за переказ коштів з поточного рахунку в операційний час за межі Банку за допомогою системи Клієнт-Банк по документу №80, від 05.08.2016. Без ПДВ.",2600671275,current,5.00,"АТ ""АКБ ""Львів""",09801546,юридична особа
УГП,"Львівська область, Львів, вулиця Сербська, 1",70,2016-08-05,84,Банківські послуги,Інші витрати,249507,Центральний офіс,39481037,Україна,Комісія банку за зарахування коштів на картки працівників заробітної плати за 2 пол.липня 2016р. згідно договору №N70.00.000051 від 11.05.2016р.,2600671275,current,40.25,"АТ ""АКБ ""Львів""",09801546,юридична особа
УГП,"Львівська область, Львів, вулиця Стрийська, 35",62,2016-08-05,82,Сплата ЄСВ,Податкові платежі,249506,Центральний офіс,39481037,Україна,"22,0% нарах. єдиного внеску на зароб.плату за 2 пол.липня 2016р.",2600671275,current,1833.33,ДПІ у Франківському районі м. Львова,39508247,юридична особа
УГП,"Львівська область, Львів, вулиця Конотопська, 6",63,2016-08-05,81,Податок на доходи,Податкові платежі,249505,Центральний офіс,39481037,Україна,податок з доходів фіз.осіб із зароб.плати за 2 пол.липня 2016р.,2600671275,current,1500.00,УДКСУ у Франківському районі м. Львова,37965138,юридична особа
УГП,"Львівська область, Львів, вулиця Конотопська, 6",61,2016-08-05,80,Військовий збір,Податкові платежі,249504,Центральний офіс,39481037,Україна,утриманий військовий збір із зароб.плати за 2 пол.липня 2016р.,2600671275,current,125.00,УДКСУ у Франківському районі м. Львова,37965138,юридична особа
УГП,"Львівська область, Львів",84,2016-08-05,83,"Заробітна плата, премії","Заробітна плата, лікарняні, вагітності, відрядження, компенсації",249319,Центральний офіс,39481037,Україна,Заробітна плата за 2 пол. липня 2016р.,2600671275,current,2875.00,Гаврилко Іванна Володимирівна,,фізична особа
УГП,"Львівська область, Львів",84,2016-08-05,83,"Заробітна плата, премії","Заробітна плата, лікарняні, вагітності, відрядження, компенсації",249318,Центральний офіс,39481037,Україна,Заробітна плата за 2 пол. липня 2016р.,2600671275,current,3833.33,Панкевич Богдан Романович,,фізична особа
УГП,"Львівська область, Львів, вулиця Сербська, 1",70,2016-08-03,77739,Банківські послуги,Інші витрати,249843,Львівська обласна організація,40014820,Львівська область,Нарахування комісії за надання довідки стосовно наявності відкритого поточного рахунку та РКО зг. договору. №Ш0.00.002425/РКО від 17.09.2015,2600477437,current,50.00,"АТ ""АКБ ""Львів""",09801546,юридична особа
УГП,"Львівська область, Львів, вулиця Сербська, 1",70,2016-08-03,77750,Банківські послуги,Інші витрати,249502,Центральний офіс,39481037,Україна,Нарахування комісії за надання довідки стосовно наявності відкритого поточного рахунку та РКО зг. договору. №N40.00.002175/РКО від 10.12.2014,2600671275,current,50.00,"АТ ""АКБ ""Львів""",09801546,юридична особа
УГП,"Тернопільська область, Тернопіль, проспект Степана Бандери, 38",70,2016-08-01,АБ67ї4п9ір,Банківські послуги,Інші витрати,249916,Тернопільська обласна організація,40011526,Тернопільська область,"Комісія за обслуговування рахунку липень 2016р. згідно договору банківського рахунку від 21.09.2015, без ПДВ",26006055117228,current,100.00,"ПАТ КБ ""Приватбанк""",14360570,юридична особа
УГП,"Івано-Франківська область, Івано-Франківськ, вулиця Січових стрільців, 15",70,2016-08-01,АБ67і3н|ер,Банківські послуги,Інші витрати,249714,Івано-Франківська обласна організація,40026836,Івано-Франківська область,"Комісія за обслуговування рахунку липень 2016р. згідно договору банківського рахунку від 29.09.2015, без ПДВ",26005052517967,current,100.00,"ПАТ КБ ""Приватбанк""",14360570,юридична особа
УГП,"Львівська область, Львів, вулиця Сербська, 1",70,2016-07-29,148717,Банківські послуги,Інші витрати,249842,Львівська обласна організація,40014820,Львівська область,"Комісія за pозрахункове обслуговування Клієнтів по системі ""Клієнт-Банк"" за період 01.07.16-31.07.16 зг. договору. №Ш0.00.002425/РКО від 17.09.2015 Без ПДВ.",2600477437,current,50.00,"АТ ""АКБ ""Львів""",09801546,юридична особа
УГП,"Львівська область, Львів, вулиця Сербська, 1",70,2016-07-29,135593,Банківські послуги,Інші витрати,249841,Львівська обласна організація,40014820,Львівська область,Нарахування комісії за надання довідки стосовно наявності відкритого поточного рахунку та РКО зг. договору. №Ш0.00.002425/РКО від 17.09.2015,2600477437,current,50.00,"АТ ""АКБ ""Львів""",09801546,юридична особа
УГП,"Львівська область, Львів, вулиця Сербська, 1",70,2016-07-29,148716,Банківські послуги,Інші витрати,249840,Львівська обласна організація,40014820,Львівська область,Комісія за ведення функціонуючого рахунку за період 01.07.16-31.07.16 зг. договору. №Ш0.00.002425/Рт від 17.09.2015,2600477437,current,100.00,"АТ ""АКБ ""Львів""",09801546,юридична особа
УГП,"Львівська область, Львів, вулиця Сербська, 1",70,2016-07-29,152746,Банківські послуги,Інші витрати,249501,Центральний офіс,39481037,Україна,"Комісія за pозрахункове обслуговування Клієнтів по системі ""Клієнт-Банк"" за період 01.07.16-31.07.16 зг. договору. №N40.00.002175/РКО від 10.12.2014 Без ПДВ.",2600671275,current,50.00,"АТ ""АКБ ""Львів""",09801546,юридична особа
УГП,"Львівська область, Львів, вулиця Сербська, 1",70,2016-07-29,152745,Банківські послуги,Інші витрати,249500,Центральний офіс,39481037,Україна,Комісія за ведення функціонуючого рахунку за період 01.07.16-31.07.16 зг. договору. №Ш0.00.002175/РКО від 10.12.2014 Без ПДВ.,2600671275,current,100.00,"АТ ""АКБ ""Львів""",09801546,юридична особа
УГП,"Львівська область, Львів, вулиця Сербська, 1",70,2016-07-28,129309,Банківські послуги,Інші витрати,249499,Центральний офіс,39481037,Україна,Нарахування комісії за надання довідки стосовно наявності відкритого поточного рахунку та РКО зг. договору. №N40.00.002175/РКО від 10.12.2014,2600671275,current,50.00,"АТ ""АКБ ""Львів""",09801546,юридична особа
УГП,"Івано-Франківська область, Івано-Франківськ, вулиця Січових стрільців, 15",70,2016-07-22,0722Б0СББ А,Банківські послуги,Інші витрати,249713,Івано-Франківська обласна організація,40026836,Івано-Франківська область,Комісія за виплату по зарплатній відомості 722936318 Аванс за липень 2016 року,26005052517967,current,5.03,"ПАТ КБ ""Приватбанк""",14360570,юридична особа
УГП,"Івано-Франківська область, Івано-Франківськ, вулиця Січових стрільців, 15",70,2016-07-22,0722Б0СБ2 У,Банківські послуги,Інші витрати,249712,Івано-Франківська обласна організація,40026836,Івано-Франківська область,"Комісія за виконання платежів в національній валюті, згідно з відкритою офертою банку N б/н від 29.09.2015 та тарифів банку, без ПДВ.",26005052517967,current,3.00,"ПАТ КБ ""Приватбанк""",14360570,юридична особа
УГП,"Івано-Франківська область, Івано-Франківськ, вулиця Січових стрільців, 15",70,2016-07-22,0722Б0СБ3 У,Банківські послуги,Інші витрати,249711,Івано-Франківська обласна організація,40026836,Івано-Франківська область,"Комісія за виконання платежів в національній валюті, згідно з відкритою офертою банку N б/н від 29.09.2015 та тарифів банку, без ПДВ.",26005052517967,current,3.00,"ПАТ КБ ""Приватбанк""",14360570,юридична особа
УГП,"Івано-Франківська область, Івано-Франківськ, вулиця Січових стрільців, 15",70,2016-07-22,0722Б0СБТ У,Банківські послуги,Інші витрати,249710,Івано-Франківська обласна організація,40026836,Івано-Франківська область,"Комісія за виконання платежів в національній валюті, згідно з відкритою офертою банку N б/н від 29.09.2015 та тарифів банку, без ПДВ.",26005052517967,current,3.00,"ПАТ КБ ""Приватбанк""",14360570,юридична особа
УГП,"Івано-Франківська область, Івано-Франківськ, вулиця Незалежності, 46",61,2016-07-22,39,Військовий збір,Податкові платежі,249709,Івано-Франківська обласна організація,40026836,Івано-Франківська область,Військовий з6ір із авансу за липень 2016р.,26005052517967,current,18.75,УДКСУ у м. Івано-Франківську,37952250,юридична особа
УГП,"Івано-Франківська область, Івано-Франківськ, вулиця Незалежності, 46",63,2016-07-22,38,Податок на доходи,Податкові платежі,249708,Івано-Франківська обласна організація,40026836,Івано-Франківська область,Податок з доходів фізичних огіб із авансу за липень 2016р.,26005052517967,current,225.00,УДКСУ у м. Івано-Франківську,37952250,юридична особа
УГП,"Івано-Франківська область, Івано-Франківськ, вулиця Незалежності",62,2016-07-22,37,Сплата ЄСВ,Податкові платежі,249707,Івано-Франківська обласна організація,40026836,Івано-Франківська область,Сплата єдиного соціального внеску із авансу за липень 2016р.,26005052517967,current,275.00,ДПІ в м. Івано-Франківську ГУ ДФС в Івано-Франківській області,39508514,юридична особа
УГП,"Івано-Франківська область, Івано-Франківськ",84,2016-07-22,40,"Заробітна плата, премії","Заробітна плата, лікарняні, вагітності, відрядження, компенсації",249649,Івано-Франківська обласна організація,40026836,Івано-Франківська область,Зарплата за липень 2016 року,26005052517967,current,1006.00,Романчук Любомир Петрович,,фізична особа
УГП,"Львівська область, Львів, вулиця Сербська, 1",70,2016-07-18,ТК.332599.,Банківські послуги,Інші витрати,249498,Центральний офіс,39481037,Україна,За розрахункове обслуговування за період 15/07/2016 - 15/07/2016 згідно угоди від 10/12/2014 -за зовнішні платежі,2600671275,current,15.00,"АТ ""АКБ ""Львів""",09801546,юридична особа
УГП,"Львівська область, Львів, вулиця Сербська, 1",70,2016-07-15,78,Банківські послуги,Інші витрати,249497,Центральний офіс,39481037,Україна,Комісія банку за зарахування коштів на картки працівників заробітної плати за 1 пол.липня 2016р. згідно договору №N70.00.000051 від 11.05.2016р.,2600671275,current,44.28,"АТ ""АКБ ""Львів""",09801546,юридична особа
УГП,"Львівська область, Львів, вулиця Стрийська, 35",62,2016-07-15,76,Сплата ЄСВ,Податкові платежі,249496,Центральний офіс,39481037,Україна,"22,0% нарах. єдиного внеску на зароб.плату за 1 пол.липня 2016р.",2600671275,current,2016.67,ДПІ у Франківському районі м. Львова,39508247,юридична особа
УГП,"Львівська область, Львів, вулиця Конотопська, 6",63,2016-07-15,75,Податок на доходи,Податкові платежі,249495,Центральний офіс,39481037,Україна,податок з доходів фіз.осіб із зароб.плати за 1 пол.липня 2016р.,2600671275,current,1650.00,УДКСУ у Франківському районі м. Львова,37965138,юридична особа
УГП,"Львівська область, Львів, вулиця Конотопська, 6",61,2016-07-15,74,Військовий збір,Податкові платежі,249494,Центральний офіс,39481037,Україна,військовий збір із зароб.плати за 1 пол.липня 2016р.,2600671275,current,137.50,УДКСУ у Франківському районі м. Львова,37965138,юридична особа
УГП,"Львівська область, Львів",84,2016-07-15,77,"Заробітна плата, премії","Заробітна плата, лікарняні, вагітності, відрядження, компенсації",249317,Центральний офіс,39481037,Україна,Заробітна плата за 1 пол. липня 2016р.,2600671275,current,3162.50,Гаврилко Іванна Володимирівна,,фізична особа
УГП,"Львівська область, Львів",84,2016-07-15,77,"Заробітна плата, премії","Заробітна плата, лікарняні, вагітності, відрядження, компенсації",249316,Центральний офіс,39481037,Україна,Заробітна плата за 1 пол. липня 2016р.,2600671275,current,4216.67,Панкевич Богдан Романович,,фізична особа
УГП,"Тернопільська область, Тернопіль, проспект Степана Бандери, 38",70,2016-07-13,0713Б2Р1У У,Банківські послуги,Інші витрати,249915,Тернопільська обласна організація,40011526,Тернопільська область,"Комісія за виконання платежів в національній валюті, згідно з відкритою офертою банку N б/н від 21.09.2015 та тарифів банку, без ПДВ.",26006055117228,current,3.00,"ПАТ КБ ""Приватбанк""",14360570,юридична особа
УГП,"Тернопільська область, Тернопіль, проспект Степана Бандери, 38",70,2016-07-13,0713Ь2Р2г У,Банківські послуги,Інші витрати,249913,Тернопільська обласна організація,40011526,Тернопільська область,"Комісія за виконання платежів в національній валюті, згідно з відкритою офертою банку N б/н від 21.09.2015 та тарифів банку, без ПДВ.",26006055117228,current,3.00,"ПАТ КБ ""Приватбанк""",14360570,юридична особа
УГП,"Тернопільська область, Тернопіль",79,2016-07-13,38,"Оренда будинків і приміщень та експлуатаційні витрати (прибирання, страхування орендованих будинків, охорона, сигналізація, ремонт, вивіз сміття, тощо)",Оренда нерухомості,249880,Тернопільська обласна організація,40011526,Тернопільська область,Оплата за оренду згідно договору N28 від 01.11.2015р. за липень 2016р.,26006055117228,current,2500.68,Клепач Валентина Анатоліївна,,фізична особа
УГП,"Львівська область, Львів, вулиця Сербська, 1",70,2016-07-13,ТК.365595.,Банківські послуги,Інші витрати,249839,Львівська обласна організація,40014820,Львівська область,За розрахункове обслуговування за період 12/07/2016 - 12/07/2016 згідно угоди від 17/09/2015 -за зовнішні платежі,2600477437,current,5.00,"АТ ""АКБ ""Львів""",09801546,юридична особа
УГП,"Тернопільська область, Тернопіль, проспект Степана Бандери, 38",70,2016-07-12,0712АСХ9М А,Банківські послуги,Інші витрати,249912,Тернопільська обласна організація,40011526,Тернопільська область,"Комісія за внесення коштів на рахунок, згідно з відкритою офертою банку N б/н від 21.09.2015 та тарифів банку, сума 1030.00 грн. від 12.07.2016, без ПДВ.",26006055117228,current,5.00,"ПАТ КБ ""Приватбанк""",14360570,юридична особа
УГП,"Львівська область, Львів, вулиця Гуцульська, 11А",66,2016-07-12,10,Повернення внесків приватних внесків (донорам),Повернення приватних внесків (донорам),249838,Львівська обласна організація,40014820,Львівська область,"Поверн.плат.ʼСплата членських внесків #Р24А106414191А65185ʼ 11.07.16 зг.док. G0711 SNHZ9_7B024/12 у звʼязку з відсутністю ідент.даних та невідповідністю ЗУ ""Про політичні партії в Україні""",2600477437,current,30.00,"ПАТ КБ ""Приватбанк""",14360570,юридична особа
УГП,"Львівська область, Львів, вулиця Гуцульська, 11А",66,2016-07-12,10,Повернення внесків приватних внесків (донорам),Повернення приватних внесків (донорам),249806,Львівська обласна організація,40014820,Львівська область,"у зв.з відсут.іден. даних, невідпов.За к.Укр.""Про політ.партії в Україні""",2600477437,current,30.00,"ПАТ КБ ""Приватбанк""",14360570,юридична особа
УГП,"Івано-Франківська область, Івано-Франківськ, вулиця Січових стрільців, 15",70,2016-07-12,0712Ь0015У,Банківські послуги,Інші витрати,249706,Івано-Франківська обласна організація,40026836,Івано-Франківська область,"Комісія за виконання платежів в національній валюті, згідно з відкритою офертою банку N б/н від 29.09.2015 та тарифів банку, без ПДВ.",26005052517967,current,3.00,"ПАТ КБ ""Приватбанк""",14360570,юридична особа
УГП,"Івано-Франківська область, Івано-Франківськ, площа Міцкевича, 8",79,2016-07-12,36,"Оренда будинків і приміщень та експлуатаційні витрати (прибирання, страхування орендованих будинків, охорона, сигналізація, ремонт, вивіз сміття, тощо)",Оренда нерухомості,249705,Івано-Франківська обласна організація,40026836,Івано-Франківська область,Оплата за оренду приміщення за липень 2016 року,26005052517967,current,3676.00,"ТОВ ""Крокус-Станіслав""",38162070,юридична особа
УГП,"Львівська область, Львів, вулиця Сербська, 1",70,2016-07-12,ТК.332599.,Банківські послуги,Інші витрати,249493,Центральний офіс,39481037,Україна,За розрахункове обслуговування за період 11/07/2016 - 11/07/2016 згідно угоди від 10/12/2014 -за зовнішні платежі,2600671275,current,5.00,"АТ ""АКБ ""Львів""",09801546,юридична особа
УГП,"Львівська область, Львів, вулиця Сербська, 1",70,2016-07-11,ТК.332599.,Банківські послуги,Інші витрати,249492,Центральний офіс,39481037,Україна,За розрахункове обслуговування за період 08/07/2016 - 08/07/2016 згідно угоди від 10/12/2014 -за зовнішні платежі,2600671275,current,15.00,"АТ ""АКБ ""Львів""",09801546,юридична особа
УГП,"Львівська область, Львів, вулиця Сербська, 1",70,2016-07-08,ТК.365595.,Банківські послуги,Інші витрати,249837,Львівська обласна організація,40014820,Львівська область,За розрахункове обслуговування за період 07/07/2016 - 07/07/2016 згідно угоди від 17/09/2015 -за зовнішні платежі,2600477437,current,5.00,"АТ ""АКБ ""Львів""",09801546,юридична особа
УГП,"Львівська область, Львів, вулиця Сербська, 1",70,2016-07-08,ТК.332599.,Банківські послуги,Інші витрати,249490,Центральний офіс,39481037,Україна,За розрахункове обслуговування за період 07/07/2016 - 07/07/2016 згідно угоди від 10/12/2014 -за зовнішні платежі,2600671275,current,15.00,"АТ ""АКБ ""Львів""",09801546,юридична особа
УГП,"Львівська область, Львів, вулиця Конотопська, 6",63,2016-07-08,71,Податок на доходи,Податкові платежі,249489,Центральний офіс,39481037,Україна,податок з доходів фізичних осіб із оренд.плати за липень 2016р.,2600671275,current,1927.80,УДКСУ у Франківському районі м. Львова,37965138,юридична особа
УГП,"Львівська область, Львів, вулиця Конотопська, 6",61,2016-07-08,70,Військовий збір,Податкові платежі,249488,Центральний офіс,39481037,Україна,військовий збір із оренд.плати за липень 2016р.,2600671275,current,160.65,УДКСУ у Франківському районі м. Львова,37965138,юридична особа
УГП,"Львівська область, Львів",79,2016-07-08,72,"Оренда будинків і приміщень та експлуатаційні витрати (прибирання, страхування орендованих будинків, охорона, сигналізація, ремонт, вивіз сміття, тощо)",Оренда нерухомості,249315,Центральний офіс,39481037,Україна,Оплата за оренду приміщення за липень 2016р.,2600671275,current,8621.55,Дмитрик Володимир Петрович,,фізична особа
УГП,"Львівська область, Львів, вулиця Гуцульська, 11А",66,2016-07-07,8,Повернення внесків приватних внесків (донорам),Повернення приватних внесків (донорам),249836,Львівська обласна організація,40014820,Львівська область,"Повернення плат.ʼчленський внесок #P24AШ4263745A94860ʼ від 06.07.16 № G0706S6DH9_760 20/2, у звʼязку з відсутністю ідент.даних та невідповідністю ЗУ ""Про політичні партії в Україні""",2600477437,current,100.00,"ПАТ КБ ""Приватбанк""",14360570,юридична особа
УГП,"Львівська область, Львів, вулиця Гуцульська, 11А",66,2016-07-07,8,Повернення внесків приватних внесків (донорам),Повернення приватних внесків (донорам),249805,Львівська обласна організація,40014820,Львівська область,"у зв.з відсут.іден. даних, невідпов.За к.Укр.""Про політ.партії в Україні""",2600477437,current,100.00,"ПАТ КБ ""Приватбанк""",14360570,юридична особа
УГП,"Львівська область, Львів, вулиця Сербська, 1",70,2016-07-07,69,Банківські послуги,Інші витрати,249487,Центральний офіс,39481037,Україна,Комісія банку за зарахування коштів на картки працівників заробітної плати за 2 пол.червня 2016р.,2600671275,current,38.04,"АТ ""АКБ ""Львів""",09801546,юридична особа
УГП,"Львівська область, Львів, вулиця Стрийська, 35",62,2016-07-07,67,Сплата ЄСВ,Податкові платежі,249486,Центральний офіс,39481037,Україна,нарах. єдиний внесок на зароб.плату за 2 пол.червня 2016р,2600671275,current,1732.50,ДПІ у Франківському районі м. Львова,39508247,юридична особа
УГП,"Львівська область, Львів, вулиця Конотопська, 6",63,2016-07-07,66,Податок на доходи,Податкові платежі,249485,Центральний офіс,39481037,Україна,податок з доходів фіз.осіб із зароб.плати за 2 пол.червня 2016р.,2600671275,current,1417.50,УДКСУ у Франківському районі м. Львова,37965138,юридична особа
УГП,"Львівська область, Львів, вулиця Конотопська, 6",61,2016-07-07,65,Військовий збір,Податкові платежі,249484,Центральний офіс,39481037,Україна,військовий збір із зароб.плати за 2 пол.червня 2016р.,2600671275,current,118.12,УДКСУ у Франківському районі м. Львова,37965138,юридична особа
УГП,"Львівська область, Львів",84,2016-07-07,68,"Заробітна плата, премії","Заробітна плата, лікарняні, вагітності, відрядження, компенсації",249314,Центральний офіс,39481037,Україна,Заробітнав плата за 2 пол. червня 2016р.,2600671275,current,2716.88,Гаврилко Іванна Володимирівна,,фізична особа
УГП,"Львівська область, Львів",84,2016-07-07,68,"Заробітна плата, премії","Заробітна плата, лікарняні, вагітності, відрядження, компенсації",249313,Центральний офіс,39481037,Україна,Заробітна плата за 2 пол. червня 2016р.,2600671275,current,3622.50,Панкевич Богдан Романович,,фізична особа
УГП,"Івано-Франківська область, Івано-Франківськ, вулиця Січових стрільців, 15",70,2016-07-06,0706Ы8К0 А,Банківські послуги,Інші витрати,249704,Івано-Франківська обласна організація,40026836,Івано-Франківська область,Комісія за виплату по зарплатній відомості 76925307 Зарплата за червень 2016 року,26005052517967,current,4.76,"ПАТ КБ ""Приватбанк""",14360570,юридична особа
УГП,"Івано-Франківська область, Івано-Франківськ, вулиця Січових стрільців, 15",70,2016-07-06,0706Ы8КХ У,Банківські послуги,Інші витрати,249703,Івано-Франківська обласна організація,40026836,Івано-Франківська область,"Комісія за виконання платежів в національній валюті, згідно з відкритою офертою банку N б/н від 29.09.2015 та тарифів банку, без ПДВ.",26005052517967,current,3.00,"ПАТ КБ ""Приватбанк""",14360570,юридична особа
УГП,"Івано-Франківська область, Івано-Франківськ, вулиця Січових стрільців, 15",70,2016-07-06,0706Ы8КИ У,Банківські послуги,Інші витрати,249702,Івано-Франківська обласна організація,40026836,Івано-Франківська область,"Комісія за виконання платежів в національній валюті, згідно з відкритою офертою банку N б/н від 29.09.2015 та тарифів банку, без ПДВ.",26005052517967,current,3.00,"ПАТ КБ ""Приватбанк""",14360570,юридична особа
УГП,"Івано-Франківська область, Івано-Франківськ, вулиця Січових стрільців, 15",70,2016-07-06,0706Ы8КТ У,Банківські послуги,Інші витрати,249701,Івано-Франківська обласна організація,40026836,Івано-Франківська область,"Комісія за виконання платежів в національній валюті, згідно з відкритою офертою банку N б/н від 29.09.2015 та тарифів банку, без ПДВ.",26005052517967,current,3.00,"ПАТ КБ ""Приватбанк""",14360570,юридична особа
УГП,"Івано-Франківська область, Івано-Франківськ, вулиця Незалежності, 46",61,2016-07-06,34,Військовий збір,Податкові платежі,249700,Івано-Франківська обласна організація,40026836,Івано-Франківська область,Військовий збір із зарплати за червень 2016р,26005052517967,current,17.50,УДКСУ у м. Івано-Франківську,37952250,юридична особа
УГП,"Івано-Франківська область, Івано-Франківськ, вулиця Незалежності, 46",63,2016-07-06,33,Податок на доходи,Податкові платежі,249699,Івано-Франківська обласна організація,40026836,Івано-Франківська область,Податок з доходів фізичних осіб із зарплати за червень 2016р.,26005052517967,current,215.00,УДКСУ у м. Івано-Франківську,37952250,юридична особа
УГП,"Івано-Франківська область, Івано-Франківськ, вулиця Незалежності",62,2016-07-06,32,Сплата ЄСВ,Податкові платежі,249698,Івано-Франківська обласна організація,40026836,Івано-Франківська область,Сплата єдиного соціального внеску із зарплати за червень 2016р.,26005052517967,current,260.00,ДПІ в м. Івано-Франківську ГУ ДФС в Івано-Франківській області,39508514,юридична особа
УГП,"Івано-Франківська область, Івано-Франківськ",84,2016-07-06,35,"Заробітна плата, премії","Заробітна плата, лікарняні, вагітності, відрядження, компенсації",249648,Івано-Франківська обласна організація,40026836,Івано-Франківська область,Зарплата за червень 2016 року,26005052517967,current,952.50,Романчук Любомир Петрович,,фізична особа
УГП,"Львівська область, Львів, вулиця Сербська, 1",70,2016-07-05,ТК.365597.,Банківські послуги,Інші витрати,249835,Львівська обласна організація,40014820,Львівська область,Нарахування абонплати згідно договору за Червень 2016 року по рахунку № 2600477437,2600477437,current,100.00,"АТ ""АКБ ""Львів""",09801546,юридична особа
УГП,"Львівська область, Львів, вулиця Сербська, 1",70,2016-07-05,ТК.332601.,Банківські послуги,Інші витрати,249483,Центральний офіс,39481037,Україна,Нарахування абонплати згідно договору за Червень 2016 року по рахунку № 2600671275,2600671275,current,100.00,"АТ ""АКБ ""Львів""",09801546,юридична особа
УГП,"Тернопільська область, Тернопіль, проспект Степана Бандери, 38",70,2016-07-01,АБ66и0х8пр,Банківські послуги,Інші витрати,249911,Тернопільська обласна організація,40011526,Тернопільська область,"Комісія за обслуговування рахунку червень 2016р. згідно договору банківського рахунку від 21.09.2015, без ПДВ",26006055117228,current,100.00,"ПАТ КБ ""Приватбанк""",14360570,юридична особа
УГП,"Івано-Франківська область, Івано-Франківськ, вулиця Січових стрільців, 15",70,2016-07-01,Л866и12еир,Банківські послуги,Інші витрати,249697,Івано-Франківська обласна організація,40026836,Івано-Франківська область,"Комісія за обслуговування рахунку червень 2016р. згідно договору банківського рахунку від 29.09.2015, без ПДВ",26005052517967,current,100.00,"ПАТ КБ ""Приватбанк""",14360570,юридична особа
УГП,"Львівська область, Львів, вулиця Сербська, 1",70,2016-07-01,ТЯ.332599,Банківські послуги,Інші витрати,249482,Центральний офіс,39481037,Україна,За розрахункове обслуговування за період 30/06/2016 - 30/06/2016 згідно угоди від 10/12/2014 -за зовнішні платежі,2600671275,current,5.00,"АТ ""АКБ ""Львів""",09801546,юридична особа
УГП,"Львівська область, Львів, вулиця Сербська, 1",70,2016-06-30,908024,Банківські послуги,Інші витрати,249480,Центральний офіс,39481037,Україна,Комісія банку за послуги по системі ʼплатежі від населенняʼ без ПДВ,2600671275,current,40.00,"АТ ""АКБ ""Львів""",09801546,юридична особа
УГП,"Львівська область, Львів, вулиця Сербська, 1",70,2016-06-29,ТК.367448.,Банківські послуги,Інші витрати,249834,Львівська обласна організація,40014820,Львівська область,Нарахування абонплати згідно договору від 01/10/2015 за період з 26/05/2016 по 25/06/2016.,2600477437,current,50.00,"АТ ""АКБ ""Львів""",09801546,юридична особа
УГП,"Львівська область, Львів, вулиця Сербська, 1",70,2016-06-29,ТК332599.,Банківські послуги,Інші витрати,249479,Центральний офіс,39481037,Україна,За розрахункове обслуговування - за зовнішні платежі,2600671275,current,5.00,"АТ ""АКБ ""Львів""",09801546,юридична особа
УГП,"Львівська область, Львів, вулиця Сербська, 1",70,2016-06-29,ТК365431.,Банківські послуги,Інші витрати,249478,Центральний офіс,39481037,Україна,Нарахування абонплати згідно договору від 16/09/2015 за період з 26/05/2016 по 25/06/2016.,2600671275,current,50.00,"АТ ""АКБ ""Львів""",09801546,юридична особа
УГП,"Тернопільська область, Тернопіль, проспект Степана Бандери, 38",70,2016-06-24,0624Ь1УИУ У,Банківські послуги,Інші витрати,249910,Тернопільська обласна організація,40011526,Тернопільська область,"Комісія за виконання платежiв в національній валюті, згідно з відкритою офертою банку N б/н від 21.09.2015 та тарифів банку, без ПДВ.",26006055117228,current,3.00,"ПАТ КБ ""Приватбанк""",14360570,юридична особа
УГП,"Тернопільська область, Тернопіль",43,2016-06-24,37,Інші витрати,Інші витрати,249879,Тернопільська обласна організація,40011526,Тернопільська область,Оплата згідно рах. N86 від 22.06.2016р.,26006055117228,current,6793.00,Глогусь Тетяна Іванівна,,фізична особа
УГП,"Івано-Франківська область, Івано-Франківськ, вулиця Січових стрільців, 15",70,2016-06-23,0623Ь2Є13Л,Банківські послуги,Інші витрати,249696,Івано-Франківська обласна організація,40026836,Івано-Франківська область,Комісія за виплату по зарплатній відомості 623916537 Аванс за червень 2016 року,26005052517967,current,5.30,"ПАТ КБ ""Приватбанк""",14360570,юридична особа
УГП,"Івано-Франківська область, Івано-Франківськ",84,2016-06-23,31,"Заробітна плата, премії","Заробітна плата, лікарняні, вагітності, відрядження, компенсації",249647,Івано-Франківська обласна організація,40026836,Івано-Франківська область,Аванс за червень 2016 року,26005052517967,current,1060.00,Романчук Любомир Петрович,,фізична особа
УГП,"Львівська область, Львів, вулиця Сербська, 1",70,2016-06-23,899413,Банківські послуги,Інші витрати,249476,Центральний офіс,39481037,Україна,Комісія банку за послуги по системі ʼплатежі від населенняʼ без ПДВ,2600671275,current,35.00,"АТ ""АКБ ""Львів""",09801546,юридична особа
УГП,"Івано-Франківська область, Івано-Франківськ, вулиця Січових стрільців, 15",70,2016-06-22,0622Ь3ОУБ X,Банківські послуги,Інші витрати,249695,Івано-Франківська обласна організація,40026836,Івано-Франківська область,"Комісія за викон. платежу 30 від 22.06.2016, 290.00 в нац. валюті в післяопераційний час, згідно з відкритою офертою банку № б/н від 29.09.2015 без ПДВ",26005052517967,current,0.58,"ПАТ КБ ""Приватбанк""",14360570,юридична особа
УГП,"Івано-Франківська область, Івано-Франківськ, вулиця Січових стрільців, 15",70,2016-06-22,0622Ь3ОУБ У,Банківські послуги,Інші витрати,249694,Івано-Франківська обласна організація,40026836,Івано-Франківська область,"Комісія за виконання платежів в національній валюту згідно з відкритою офертою банку N б/н від 29.09.2015 та тарифів банку, без ПДВ.",26005052517967,current,3.00,"ПАТ КБ ""Приватбанк""",14360570,юридична особа
УГП,"Івано-Франківська область, Івано-Франківськ, вулиця Незалежності",62,2016-06-22,30,Сплата ЄСВ,Податкові платежі,249693,Івано-Франківська обласна організація,40026836,Івано-Франківська область,Сплата єдиного соціального внеску із авансу за червень 2016р,26005052517967,current,290.00,ДПІ в м. Івано-Франківську ГУ ДФС в Івано-Франківській області,39508514,юридична особа
УГП,"Івано-Франківська область, Івано-Франківськ, вулиця Січових стрільців, 15",70,2016-06-22,0622Б3М4Р У,Банківські послуги,Інші витрати,249692,Івано-Франківська обласна організація,40026836,Івано-Франківська область,"Комісія за виконання платежів в національній валюті, згідно з відкритою офертою банку N б/н від 29.09.2015 та тарифів банку, без ПДВ.",26005052517967,current,3.00,"ПАТ КБ ""Приватбанк""",14360570,юридична особа
УГП,"Івано-Франківська область, Івано-Франківськ, вулиця Незалежності, 46",63,2016-06-22,27,Податок на доходи,Податкові платежі,249691,Івано-Франківська обласна організація,40026836,Івано-Франківська область,Податок з доходів фізичних осіб із авансу за Червень 2016р,26005052517967,current,235.00,УДКСУ у м. Івано-Франківську,37952250,юридична особа
УГП,"Івано-Франківська область, Івано-Франківськ, вулиця Січових стрільців, 15",70,2016-06-22,0622Б3М4Б У,Банківські послуги,Інші витрати,249690,Івано-Франківська обласна організація,40026836,Івано-Франківська область,"Комісія за виконання платежів в національній валюті, згідно з відкритою офертою банку N б/н від 29.09.2015 та тарифів банку, без ПДВ.",26005052517967,current,3.00,"ПАТ КБ ""Приватбанк""",14360570,юридична особа
УГП,"Івано-Франківська область, Івано-Франківськ, вулиця Незалежності, 46",61,2016-06-22,28,Військовий збір,Податкові платежі,249689,Івано-Франківська обласна організація,40026836,Івано-Франківська область,Військовий збір із авансу за червень 2016р,26005052517967,current,20.00,УДКСУ у м. Івано-Франківську,37952250,юридична особа
УГП,"Львівська область, Львів, вулиця Сербська, 1",70,2016-06-21,ТК.365595.,Банківські послуги,Інші витрати,249833,Львівська обласна організація,40014820,Львівська область,За розрахункове обслуговування - за зовнішні платежі,2600477437,current,5.00,"АТ ""АКБ ""Львів""",09801546,юридична особа
УГП,"Львівська область, Львів, вулиця Сербська, 1",70,2016-06-21,ТК.332600.,Банківські послуги,Інші витрати,249475,Центральний офіс,39481037,Україна,За розрахункове обслуговування - за внутрібанківські платежі,2600671275,current,3.00,"АТ ""АКБ ""Львів""",09801546,юридична особа
УГП,"Львівська область, Яворівський район, Яворів, площа Ринок, 14",58,2016-06-17,7,"Виготовлення друкованих матеріалів (плакатів, листівок, буклетів та інших агітаційних матеріалів)",Друкована агітація,249832,Львівська обласна організація,40014820,Львівська область,"Оплата за друк газети ""Наша Галичина"" 7",2600477437,current,11025.00,"ТОВ ""ВД ""Молода Галичина""",32148930,юридична особа
УГП,"Львівська область, Львів, вулиця Сербська, 1",70,2016-06-17,ТК.332599.,Банківські послуги,Інші витрати,249474,Центральний офіс,39481037,Україна,За розрахункове обслуговування - за зовнішні платежі,2600671275,current,15.00,"АТ ""АКБ ""Львів""",09801546,юридична особа
УГП,"Львівська область, Львів, вулиця Сербська, 1",70,2016-06-17,888488,Банківські послуги,Інші витрати,249473,Центральний офіс,39481037,Україна,Комісія банку за послуги по системі ʼплатежі від населенняʼ без ПДВ,2600671275,current,55.00,"АТ ""АКБ ""Львів""",09801546,юридична особа
УГП,"Львівська область, Львів, вулиця Сербська, 1",70,2016-06-16,884721,Банківські послуги,Інші витрати,249471,Центральний офіс,39481037,Україна,Комісія банку за послуги по системі ʼ платежі від населенняʼ без ПДВ,2600671275,current,60.00,"АТ ""АКБ ""Львів""",09801546,юридична особа
УГП,"Львівська область, Львів, вулиця Сербська, 1",70,2016-06-16,61,Банківські послуги,Інші витрати,249470,Центральний офіс,39481037,Україна,Комісія банку за зарахування коштів на картки працівників заробітної плати за 1 пол.червня 2016р.,2600671275,current,46.49,"АТ ""АКБ ""Львів""",09801546,юридична особа
УГП,"Львівська область, Львів, вулиця Стрийська, 35",62,2016-06-16,59,Сплата ЄСВ,Податкові платежі,249469,Центральний офіс,39481037,Україна,"22,0% нарахованого єдиного внеску на зароб.плату за 1 пол.червня 2016р.",2600671275,current,2117.50,ДПІ у Франківському районі м. Львова,39508247,юридична особа
УГП,"Львівська область, Львів, вулиця Конотопська, 6",63,2016-06-16,58,Податок на доходи,Податкові платежі,249468,Центральний офіс,39481037,Україна,податок з доходів фіз.осіб із зароб.плати за 1 пол.червня 2016р.,2600671275,current,1732.50,УДКСУ у Франківському районі м. Львова,37965138,юридична особа
УГП,"Львівська область, Львів, вулиця Конотопська, 6",61,2016-06-16,57,Військовий збір,Податкові платежі,249467,Центральний офіс,39481037,Україна,утриманий військовий збір із зароб.плати за 1 пол.червня 2016р.,2600671275,current,144.38,УДКСУ у Франківському районі м. Львова,37965138,юридична особа
УГП,"Львівська область, Львів",84,2016-06-16,60,"Заробітна плата, премії","Заробітна плата, лікарняні, вагітності, відрядження, компенсації",249312,Центральний офіс,39481037,Україна,Кошти для перерахування на карткові рахунки працівників заробіт. плати за 1 пол. червня 2016р.,2600671275,current,3320.62,Гаврилко Іванна Володимирівна,,фізична особа
УГП,"Львівська область, Львів",84,2016-06-16,60,"Заробітна плата, премії","Заробітна плата, лікарняні, вагітності, відрядження, компенсації",249311,Центральний офіс,39481037,Україна,Кошти для перерахування на карткові рахунки працівників заробіт. плати за 1 пол. червня 2016р.,2600671275,current,4427.50,Панкевич Богдан Романович,,фізична особа
УГП,"Тернопільська область, Тернопіль, проспект Степана Бандери, 38",70,2016-06-15,0615Ь3СБО У,Банківські послуги,Інші витрати,249908,Тернопільська обласна організація,40011526,Тернопільська область,"Комісія за виконання платежів в національній валюті, згідно з відкритою офертою банку N б/н від 21.09.2015 та тарифів банку, без ПДВ.",26006055117228,current,3.00,"ПАТ КБ ""Приватбанк""",14360570,юридична особа
УГП,"Тернопільська область, Тернопіль, проспект Степана Бандери, 38",70,2016-06-15,0615Б3СБ3 У,Банківські послуги,Інші витрати,249907,Тернопільська обласна організація,40011526,Тернопільська область,"Комісія за виконання платежів в національній валюті, згідно з відкритою офертою банку N б/н від 21.09.2015 та тарифів банку, без ПДВ.",26006055117228,current,3.00,"ПАТ КБ ""Приватбанк""",14360570,юридична особа
УГП,"Тернопільська область, Тернопіль",79,2016-06-15,35,"Оренда будинків і приміщень та експлуатаційні витрати (прибирання, страхування орендованих будинків, охорона, сигналізація, ремонт, вивіз сміття, тощо)",Оренда нерухомості,249878,Тернопільська обласна організація,40011526,Тернопільська область,Оплата за оренду згідно договору N28 від 01.11.2015р. за червень 2016р.,26006055117228,current,2500.68,Клепач Валентина Анатоліївна,,фізична особа
УГП,"Львівська область, Львів, вулиця Сербська, 1",70,2016-06-13,ТК.332600.,Банківські послуги,Інші витрати,249466,Центральний офіс,39481037,Україна,За розрахункове обслуговування - за внутрібанківські платежі,2600671275,current,3.00,"АТ ""АКБ ""Львів""",09801546,юридична особа
УГП,"Львівська область, Львів, вулиця Сербська, 1",70,2016-06-13,ТК.332599.,Банківські послуги,Інші витрати,249465,Центральний офіс,39481037,Україна,За розрахункове обслуговування - за зовнішні платежі,2600671275,current,15.00,"АТ ""АКБ ""Львів""",09801546,юридична особа
УГП,"Львівська область, Львів, вулиця Сербська, 1",70,2016-06-10,873092,Банківські послуги,Інші витрати,249464,Центральний офіс,39481037,Україна,Комісія банку за послуги по системі ʼплатежі від населенняʼ без ПДВ,2600671275,current,40.00,"АТ ""АКБ ""Львів""",09801546,юридична особа
УГП,"Львівська область, Львів, вулиця Конотопська, 6/8",63,2016-06-10,54,Податок на доходи,Податкові платежі,249463,Центральний офіс,39481037,Україна,податок з доходів фізичних осіб із оренд.плати за червень 2016р.,2600671275,current,1927.80,УДКСУ у Франківському районі м. Львова,37965138,юридична особа
УГП,"Львівська область, Львів, вулиця Конотопська, 6/8",61,2016-06-10,53,Військовий збір,Податкові платежі,249462,Центральний офіс,39481037,Україна,військовий збір із оренд.плати за червень 2016р.,2600671275,current,160.65,УДКСУ у Франківському районі м. Львова,37965138,юридична особа
УГП,"Львівська область, Львів",58,2016-06-10,56,"Виготовлення друкованих матеріалів (плакатів, листівок, буклетів та інших агітаційних матеріалів)",Друкована агітація,249310,Центральний офіс,39481037,Україна,Оплата за брошури,2600671275,current,8000.00,Походжай Микола Михайлович,,фізична особа
УГП,"Львівська область, Львів",79,2016-06-10,55,"Оренда будинків і приміщень та експлуатаційні витрати (прибирання, страхування орендованих будинків, охорона, сигналізація, ремонт, вивіз сміття, тощо)",Оренда нерухомості,249309,Центральний офіс,39481037,Україна,Оплата за оренду приміщення за червень 2016р.,2600671275,current,8621.55,Дмитрик Володимир Петрович,,фізична особа
УГП,"Дніпропетровська область, Дніпро́, вулиця Набережна Перемоги, 50",70,2016-06-09,0609Б222РУ,Банківські послуги,Інші витрати,249688,Івано-Франківська обласна організація,40026836,Івано-Франківська область,"Комісія за виконання платежів в національній валюті, згідно з відкритою офертою банку N б/н від 29.09.2015 та тарифів банку, без ПДВ.",26005052517967,current,3.00,"ПАТ КБ ""Приватбанк""",14360570,юридична особа
УГП,"Івано-Франківська область, Івано-Франківськ, площа Міцкевича, 8",79,2016-06-09,26,"Оренда будинків і приміщень та експлуатаційні витрати (прибирання, страхування орендованих будинків, охорона, сигналізація, ремонт, вивіз сміття, тощо)",Оренда нерухомості,249687,Івано-Франківська обласна організація,40026836,Івано-Франківська область,Оплата за оренду приміщення за червень 2016 року,26005052517967,current,3662.00,"ТОВ ""Крокус-Станіслав""",38162070,юридична особа
УГП,"Львівська область, Львів, вулиця Сербська, 1",70,2016-06-09,871238,Банківські послуги,Інші витрати,249461,Центральний офіс,39481037,Україна,Комісія банку за послуги по системі ʼплатежі від населенняʼ без ПДВ,2600671275,current,50.00,"АТ ""АКБ ""Львів""",09801546,юридична особа
УГП,"Львівська область, Львів, вулиця Сербська, 1",70,2016-06-07,ТК.365597.,Банківські послуги,Інші витрати,249831,Львівська обласна організація,40014820,Львівська область,Нарахування абонплати згідно договору за Травень 2016 року по рахунку № 2600477437,2600477437,current,100.00,"АТ ""АКБ ""Львів""",09801546,юридична особа
УГП,"Львівська область, Львів, вулиця Сербська, 1",70,2016-06-07,ТК.332601.,Банківські послуги,Інші витрати,249460,Центральний офіс,39481037,Україна,Нарахування абонплати згідно договору за Травень 2016 року по рахунку № 2600671275,2600671275,current,100.00,"АТ ""АКБ ""Львів""",09801546,юридична особа
УГП,"Івано-Франківська область, Івано-Франківськ, вулиця Січових стрільців, 15",70,2016-06-06,0606Ь2ТМ4 Л,Банківські послуги,Інші витрати,249686,Івано-Франківська обласна організація,40026836,Івано-Франківська область,Комісія за виплату по зарплатній відомості 66904524 Зарплата за травень 2016 року,26005052517967,current,4.06,"ПАТ КБ ""Приватбанк""",14360570,юридична особа
УГП,"Івано-Франківська область, Івано-Франківськ, вулиця Січових стрільців, 15",70,2016-06-06,0606Ь2ТМЛ У,Банківські послуги,Інші витрати,249685,Івано-Франківська обласна організація,40026836,Івано-Франківська область,"Комісія за виконання платежів в національній валюті, згідно з відкритою офертою банку N б/н від 29.09.2015 та тарифів банку, без ПДВ.",26005052517967,current,3.00,"ПАТ КБ ""Приватбанк""",14360570,юридична особа
УГП,"Івано-Франківська область, Івано-Франківськ, вулиця Незалежності, 46",63,2016-06-06,24,Податок на доходи,Податкові платежі,249684,Івано-Франківська обласна організація,40026836,Івано-Франківська область,Податок з доходів фізичних осіб із зарплати за травень 2016р,26005052517967,current,335.00,УДКСУ у м. Івано-Франківську,37952250,юридична особа
УГП,"Івано-Франківська область, Івано-Франківськ, вулиця Січових стрільців, 15",70,2016-06-06,0606Ь2ТЬТ У,Банківські послуги,Інші витрати,249683,Івано-Франківська обласна організація,40026836,Івано-Франківська область,"Комісія за виконання платежів в національній валюті, згідно з відкритою офертою банку N б/н від 29.09.2015 та тарифів банку, без ПДВ.",26005052517967,current,3.00,"ПАТ КБ ""Приватбанк""",14360570,юридична особа
УГП,"Івано-Франківська область, Івано-Франківськ, вулиця Незалежності, 46",61,2016-06-06,26,Військовий збір,Податкові платежі,249682,Івано-Франківська обласна організація,40026836,Івано-Франківська область,Військовий збір із зарплати за травень 2016р,26005052517967,current,17.50,УДКСУ у м. Івано-Франківську,37952250,юридична особа
УГП,"Івано-Франківська область, Івано-Франківськ, вулиця Січових стрільців, 15",70,2016-06-06,0606Ь2ТЬЬ У,Банківські послуги,Інші витрати,249681,Івано-Франківська обласна організація,40026836,Івано-Франківська область,"Комісія за виконання платежів в національній валюті, згідно з відкритою офертою банку N б/н від 29.09.2015 та тарифів банку, без ПДВ.",26005052517967,current,3.00,"ПАТ КБ ""Приватбанк""",14360570,юридична особа
УГП,"Івано-Франківська область, Івано-Франківськ, вулиця Незалежності",62,2016-06-06,25,Сплата ЄСВ,Податкові платежі,249680,Івано-Франківська обласна організація,40026836,Івано-Франківська область,Сплата єдиного соціального внеску із зарплати за травень 2016р,26005052517967,current,260.00,ДПІ в м. Івано-Франківську ГУ ДФС в Івано-Франківській області,39508514,юридична особа
УГП,"Івано-Франківська область, Івано-Франківськ",84,2016-06-06,27,"Заробітна плата, премії","Заробітна плата, лікарняні, вагітності, відрядження, компенсації",249646,Івано-Франківська обласна організація,40026836,Івано-Франківська область,Зарплата за травень 2016 року,26005052517967,current,812.50,Романчук Любомир Петрович,,фізична особа
УГП,"Львівська область, Львів, вулиця Сербська, 1",70,2016-06-02,ТК.332599.,Банківські послуги,Інші витрати,249459,Центральний офіс,39481037,Україна,За розрахункове обслуговування - за зовнішні платежі,2600671275,current,10.00,"АТ ""АКБ ""Львів""",09801546,юридична особа
УГП,"Тернопільська область, Тернопіль, проспект Степана Бандери, 38",70,2016-06-01,АБ65у4п13р,Банківські послуги,Інші витрати,249906,Тернопільська обласна організація,40011526,Тернопільська область,"Комісія за обслуговування рахунку травень 2016р. згідно договору банківського рахунку від 21.09.2015, без ПДВ",26006055117228,current,100.00,"ПАТ КБ ""Приватбанк""",14360570,юридична особа
УГП,"Івано-Франківська область, Івано-Франківськ, вулиця Січових стрільців, 15",70,2016-06-01,Л865у00с4р,Банківські послуги,Інші витрати,249679,Івано-Франківська обласна організація,40026836,Івано-Франківська область,"Комісія за обслуговування рахунку за травень 2016 р. згідно договору банківського рахунку від 29.09.2015, без ПДВ.",26005052517967,current,100.00,"ПАТ КБ ""Приватбанк""",14360570,юридична особа
УГП,"Львівська область, Львів, вулиця Сербська, 1",70,2016-06-01,ТК.332599.,Банківські послуги,Інші витрати,249458,Центральний офіс,39481037,Україна,За розрахункове обслуговування - за зовнішні платежі,2600671275,current,15.00,"АТ ""АКБ ""Львів""",09801546,юридична особа
УГП,"Львівська область, Львів, вулиця Сербська, 1",70,2016-06-01,856913,Банківські послуги,Інші витрати,249457,Центральний офіс,39481037,Україна,Комісія банку за послуги по системі ʼплатежі від населенняʼ без ПДВ,2600671275,current,25.00,"АТ ""АКБ ""Львів""",09801546,юридична особа
УГП,"Львівська область, Львів, вулиця Сербська, 1",70,2016-05-31,50,Банківські послуги,Інші витрати,249454,Центральний офіс,39481037,Україна,Комісія банку за зарахування коштів на картки працівників заробітної плати за 2 пол.травня 2016р.,2600671275,current,30.51,"АТ ""АКБ ""Львів""",09801546,юридична особа
УГП,"Львівська область, Львів, вулиця Стрийська, 35",62,2016-05-31,48,Сплата ЄСВ,Податкові платежі,249453,Центральний офіс,39481037,Україна,"22,0% нарах.єдиного внеску на зароб.плату за 2 пол.травня 2016р.",2600671275,current,1389.47,ДПІ у Франківському районі м. Львова,39508247,юридична особа
УГП,"Львівська область, Львів, вулиця Конотопська, 6/8",63,2016-05-31,47,Податок на доходи,Податкові платежі,249452,Центральний офіс,39481037,Україна,податок з доходів фіз.осіб із зароб.плати за 2 пол.травня 2016р.,2600671275,current,1136.84,УДКСУ у Франківському районі м. Львова,37965138,юридична особа
УГП,"Львівська область, Львів, вулиця Конотопська, 6/8",61,2016-05-31,46,Військовий збір,Податкові платежі,249451,Центральний офіс,39481037,Україна,утриманий військовий збір із зароб.плати за 2 пол.травня 2016р.,2600671275,current,94.74,УДКСУ у Франківському районі м. Львова,37965138,юридична особа
УГП,"Львівська область, Львів",84,2016-05-31,49,"Заробітна плата, премії","Заробітна плата, лікарняні, вагітності, відрядження, компенсації",249308,Центральний офіс,39481037,Україна,Кошти для перерахування на карткові рахунки працівників заробіт. плати за 2 пол. травня 2016р.,2600671275,current,5084.21,Панкевич Богдан Романович,,фізична особа
УГП,"Львівська область, Львів, вулиця Сербська, 1",70,2016-05-30,852990,Банківські послуги,Інші витрати,249450,Центральний офіс,39481037,Україна,Комісія банку за послуги по системі ʼ платежі від населенняʼ без ПДВ,2600671275,current,60.00,"АТ ""АКБ ""Львів""",09801546,юридична особа
УГП,"Тернопільська область, Тернопіль, проспект Степана Бандери, 38",70,2016-05-27,0527L0IQW У,Банківські послуги,Інші витрати,249905,Тернопільська обласна організація,40011526,Тернопільська область,"Комісія за виконання платежiв в національній валюті, згідно з відкритою офертою банку N б/н від 21.09.2015 та тарифів банку, без ПДВ.",26006055117228,current,3.00,"ПАТ КБ ""Приватбанк""",14360570,юридична особа
УГП,"Тернопільська область, Тернопіль, бульвар Тараса Шевченка, 3",60,2016-05-27,34,Інші податки,Податкові платежі,249904,Тернопільська обласна організація,40011526,Тернопільська область,Адміністративний збір за проведення державної реєстрації юридичних осіб-підприємців.,26006055117228,current,410.00,УДКСУ у м. Тернопіль,37977726,юридична особа
УГП,"Львівська область, Львів, вулиця Сербська, 1",70,2016-05-26,ТК.367448.,Банківські послуги,Інші витрати,249830,Львівська обласна організація,40014820,Львівська область,Нарахування абонплати згідно договору від 01/10/2015 за період з 26/04/2016 по 25/05/2016.,2600477437,current,50.00,"АТ ""АКБ ""Львів""",09801546,юридична особа
УГП,"Львівська область, Львів, вулиця Сербська, 1",70,2016-05-26,ТК.365431.,Банківські послуги,Інші витрати,249449,Центральний офіс,39481037,Україна,Нарахування абонплати згідно договору від 16/09/2015 за період з 26/04/2016 по 25/05/2016.,2600671275,current,50.00,"АТ ""АКБ ""Львів""",09801546,юридична особа
УГП,"Львівська область, Львів, вулиця Сербська, 1",70,2016-05-23,ТК.332599.,Банківські послуги,Інші витрати,249448,Центральний офіс,39481037,Україна,За розрахункове обслуговування - за зовнішні платежі,2600671275,current,15.00,"АТ ""АКБ ""Львів""",09801546,юридична особа
УГП,"Львівська область, Львів, вулиця Сербська, 1",70,2016-05-20,ТК.365595.,Банківські послуги,Інші витрати,249829,Львівська обласна організація,40014820,Львівська область,За розрахункове обслуговування - за зовнішні платежі,2600477437,current,5.00,"АТ ""АКБ ""Львів""",09801546,юридична особа
УГП,"Івано-Франківська область, Івано-Франківськ, вулиця Січових стрільців, 15",70,2016-05-20,0520Ь1ЬЮЛ,Банківські послуги,Інші витрати,249678,Івано-Франківська обласна організація,40026836,Івано-Франківська область,Комиссия за відомість 520893791 Аванс за травень 2016 року,26005052517967,current,6.00,"ПАТ КБ ""Приватбанк""",14360570,юридична особа
УГП,"Івано-Франківська область, Івано-Франківськ, вулиця Січових стрільців, 15",70,2016-05-20,0520Ь1КОЬ У,Банківські послуги,Інші витрати,249677,Івано-Франківська обласна організація,40026836,Івано-Франківська область,"Комісія за дебетовий платіж N 22 від 20.05.2016 по рахунку, згідно договору банківського рахунку N б/н від 29.09.2015 без ПДВ",26005052517967,current,3.00,"ПАТ КБ ""Приватбанк""",14360570,юридична особа
УГП,"Івано-Франківська область, Івано-Франківськ, вулиця Незалежності, 46",63,2016-05-20,22,Податок на доходи,Податкові платежі,249676,Івано-Франківська обласна організація,40026836,Івано-Франківська область,Податок з доходів фізичних осіб із авансу за травень 2016р,26005052517967,current,115.00,УДКСУ у м. Івано-Франківську,37952250,юридична особа
УГП,"Івано-Франківська область, Івано-Франківськ, вулиця Січових стрільців, 15",70,2016-05-20,0520Ь1КОТ У,Банківські послуги,Інші витрати,249675,Івано-Франківська обласна організація,40026836,Івано-Франківська область,"Комісія за дебетовий платіж N 20 від 20.05.2016 по рахунку, згідно договору банківського рахунку N б/н від 29.09.2015 без ПДВ",26005052517967,current,3.00,"ПАТ КБ ""Приватбанк""",14360570,юридична особа
УГП,"Івано-Франківська область, Івано-Франківськ, вулиця Незалежності, 46",61,2016-05-20,20,Військовий збір,Податкові платежі,249674,Івано-Франківська обласна організація,40026836,Івано-Франківська область,Військовий збір із авансу за травень 2016р,26005052517967,current,20.00,УДКСУ у м. Івано-Франківську,37952250,юридична особа
УГП,"Івано-Франківська область, Івано-Франківськ, вулиця Січових стрільців, 15",70,2016-05-20,0520Ь1КИБ У,Банківські послуги,Інші витрати,249673,Івано-Франківська обласна організація,40026836,Івано-Франківська область,"Комісія за дебетовий платіж N 21 від 20.05.2016 по рахунку, згідно договору банківського рахунку N б/н від 29.09.2015 без ПДВ",26005052517967,current,3.00,"ПАТ КБ ""Приватбанк""",14360570,юридична особа
УГП,"Івано-Франківська область, Івано-Франківськ, вулиця Незалежності",62,2016-05-20,21,Сплата ЄСВ,Податкові платежі,249672,Івано-Франківська обласна організація,40026836,Івано-Франківська область,Сплата єдиного внеску із авансу за травень 2016р,26005052517967,current,290.00,ДПІ в м. Івано-Франківську ГУ ДФС в Івано-Франківській області,39508514,юридична особа
УГП,"Івано-Франківська область, Івано-Франківськ",84,2016-05-20,23,"Заробітна плата, премії","Заробітна плата, лікарняні, вагітності, відрядження, компенсації",249645,Івано-Франківська обласна організація,40026836,Івано-Франківська область,Аванс за травень 2016 року,26005052517967,current,1200.00,Романчук Любомир Петрович,,фізична особа
УГП,"Львівська область, Львів, вулиця Сербська, 1",70,2016-05-20,ТК.332600.,Банківські послуги,Інші витрати,249447,Центральний офіс,39481037,Україна,За розрахункове обслуговування - за внутрібанківські платежі,2600671275,current,3.00,"АТ ""АКБ ""Львів""",09801546,юридична особа
УГП,"Львівська область, Львів, вулиця Сербська, 1",70,2016-05-20,45,Банківські послуги,Інші витрати,249446,Центральний офіс,39481037,Україна,Комісія банку за зарахування коштів на картки працівників заробітної плати за 1 пол.травня 2016р.,2600671275,current,17.80,"АТ ""АКБ ""Львів""",09801546,юридична особа
УГП,"Львівська область, Львів, вулиця Стрийська, 35",62,2016-05-20,43,Сплата ЄСВ,Податкові платежі,249445,Центральний офіс,39481037,Україна,"22,0% нарах.єдиного внеску на зароб. плату за 1 пол.травня 2016р.",2600671275,current,810.53,ДПІ у Франківському районі м. Львова,39508247,юридична особа
УГП,"Львівська область, Львів, вулиця Конотопська, 6",63,2016-05-20,42,Податок на доходи,Податкові платежі,249444,Центральний офіс,39481037,Україна,податок з доходів фіз.осіб із зароб.плати за 1 пол.травня 2016р.,2600671275,current,663.16,УДКСУ у Франківському районі м. Львова,37965138,юридична особа
УГП,"Львівська область, Львів, вулиця Конотопська, 6/8",61,2016-05-20,41,Військовий збір,Податкові платежі,249443,Центральний офіс,39481037,Україна,утриманий військовий збір із зароб.плати за 1 пол.травня 2016р.,2600671275,current,55.26,УДКСУ у Франківському районі м. Львова,37965138,юридична особа
УГП,"Львівська область, Львів",84,2016-05-20,44,"Заробітна плата, премії","Заробітна плата, лікарняні, вагітності, відрядження, компенсації",249307,Центральний офіс,39481037,Україна,Кошти для перерахування на карткові рахунки працівників заробіт.плати за 1 пол. травня 2016р.,2600671275,current,2965.79,Панкевич Богдан Романович,,фізична особа
УГП,"Львівська область, Яворівський район, Яворів, площа Ринок, 14",58,2016-05-19,6,"Виготовлення друкованих матеріалів (плакатів, листівок, буклетів та інших агітаційних матеріалів)",Друкована агітація,249828,Львівська обласна організація,40014820,Львівська область,"Оплата за друк газети ""Наша Галичина"" 6",2600477437,current,18000.00,"ТОВ ""ВД ""Молода Галичина""",32148930,юридична особа
УГП,"Львівська область, Львів, вулиця Сербська, 1",70,2016-05-19,833913,Банківські послуги,Інші витрати,249442,Центральний офіс,39481037,Україна,Комісія банку за послуги надані по системі ʼплатежі від населенняʼ без ПДВ,2600671275,current,60.00,"АТ ""АКБ ""Львів""",09801546,юридична особа
УГП,"Львівська область, Львів, вулиця Сербська, 1",70,2016-05-18,ТК.332599.,Банківські послуги,Інші витрати,249440,Центральний офіс,39481037,Україна,За розрахункове обслуговування - за зовнішні платежі,2600671275,current,5.00,"АТ ""АКБ ""Львів""",09801546,юридична особа
УГП,"Львівська область, Львів, вулиця Сербська, 1",70,2016-05-18,832079,Банківські послуги,Інші витрати,249439,Центральний офіс,39481037,Україна,Комісія банку за послуги надані по системі ʼплатежі від населенняʼ без ПДВ,2600671275,current,50.00,"АТ ""АКБ ""Львів""",09801546,юридична особа
УГП,"Львівська область, Львів, вулиця Сербська, 1",70,2016-05-17,ТК.332599.,Банківські послуги,Інші витрати,249438,Центральний офіс,39481037,Україна,За розрахункове обслуговування - за зовнішні платежі,2600671275,current,10.00,"АТ ""АКБ ""Львів""",09801546,юридична особа
УГП,"Львівська область, Львів, вулиця Сербська, 1",70,2016-05-17,826799,Банківські послуги,Інші витрати,249437,Центральний офіс,39481037,Україна,Комісія банку за послуги надані по системі ʼплатежі від населенняʼ без ПДВ,2600671275,current,25.00,"АТ ""АКБ ""Львів""",09801546,юридична особа
УГП,"Львівська область, Яворівський район, Рясне-Руське, вулиця Свободи, 5",49,2016-05-17,39,Публікування матеріалів у друкованих ЗМІ,Реклама в друкованих ЗМІ,249436,Центральний офіс,39481037,Україна,"Оплата за рекл.-інформац.послуги у газеті ""Експрес""",2600671275,current,4788.00,"ТОВ ""Газета ""Експрес”""",30823524,юридична особа
УГП,"Тернопільська область, Тернопіль, проспект Степана Бандери, 38",70,2016-05-16,0516Ь2в21 У,Банківські послуги,Інші витрати,249903,Тернопільська обласна організація,40011526,Тернопільська область,"Комісія за дебетовий платіж N 33 від 16.05.2016 по рахунку, згідно договору банківського рахунку N б/н від 21.09.2015 без ПДВ",26006055117228,current,3.00,"ПАТ КБ ""Приватбанк""",14360570,юридична особа
УГП,"Тернопільська область, Тернопіль, проспект Степана Бандери, 38",70,2016-05-16,0516Ь2И0в У,Банківські послуги,Інші витрати,249901,Тернопільська обласна організація,40011526,Тернопільська область,"Комісія за дебетовий платіж N 31 від 16.05.2016 по рахунку, згідно договору банківського рахунку N б/н від 21.09.2015 без ПДВ",26006055117228,current,3.00,"ПАТ КБ ""Приватбанк""",14360570,юридична особа
УГП,"Тернопільська область, Тернопіль, проспект Степана Бандери, 38",70,2016-05-16,0516Б2И0М У32,Банківські послуги,Інші витрати,249900,Тернопільська обласна організація,40011526,Тернопільська область,"Комісія за дебетовий платіж N 32 від 16.05.2016 по рахунку, згідно договору банківського рахунку N б/н від 21.09.2015 без ПДВ",26006055117228,current,3.00,"ПАТ КБ ""Приватбанк""",14360570,юридична особа
УГП,"Тернопільська область, Тернопіль",43,2016-05-16,31,Інші витрати,Інші витрати,249877,Тернопільська обласна організація,40011526,Тернопільська область,Оплата згідно рах. N62 від 13.05.2016р.,26006055117228,current,6790.00,Глогусь Тетяна Іванівна,,фізична особа
УГП,"Тернопільська область, Тернопіль",79,2016-05-16,32,"Оренда будинків і приміщень та експлуатаційні витрати (прибирання, страхування орендованих будинків, охорона, сигналізація, ремонт, вивіз сміття, тощо)",Оренда нерухомості,249876,Тернопільська обласна організація,40011526,Тернопільська область,Оплата за оренду згідно договору N28 від 01.11.2015р. за травень 2016р.,26006055117228,current,2500.68,Клепач Валентина Анатоліївна,,фізична особа
УГП,"Київ, вулиця Кирилівська, 102",72,2016-05-16,38,"Придбання, ремонт офісної техніки та програмного забезпечення (Бухгалтерські програми, Ліга.закон, домени)",Придбання офісної техніки та програмного забезпечення,249435,Центральний офіс,39481037,Україна,"Оплата за обр.даних,видачу сертифік.ключа ЄЦП для юр.ос.на 1 рік",2600671275,current,192.00,"ТОВ ""Центр сертифікації ключів ""Україна""",36865753,юридична особа
УГП,"Львівська область, Львів, вулиця Сербська, 1",70,2016-05-13,821180,Банківські послуги,Інші витрати,249433,Центральний офіс,39481037,Україна,Комісія банку за послуги по системі ʼ платежі від населенняʼ без ПДВ,2600671275,current,45.00,"АТ ""АКБ ""Львів""",09801546,юридична особа
УГП,"Львівська область, Львів, вулиця Сербська, 1",70,2016-05-12,ТК.332599.,Банківські послуги,Інші витрати,249432,Центральний офіс,39481037,Україна,За розрахункове обслуговування - за зовнішні платежі,2600671275,current,5.00,"АТ ""АКБ ""Львів""",09801546,юридична особа
УГП,"Івано-Франківська область, Івано-Франківськ, вулиця Січових стрільців, 15",70,2016-05-11,0511Б0ХББ У,Банківські послуги,Інші витрати,249671,Івано-Франківська обласна організація,40026836,Івано-Франківська область,"Комісія за дебетовий платіж N 19 від 11.05.2016 по рахунку, згідно договору банківського рахунку N б/н від 29.09.2015 без ПДВ",26005052517967,current,3.00,"ПАТ КБ ""Приватбанк""",14360570,юридична особа
УГП,"Івано-Франківська область, Івано-Франківськ, площа Міцкевича, 8",79,2016-05-11,19,"Оренда будинків і приміщень та експлуатаційні витрати (прибирання, страхування орендованих будинків, охорона, сигналізація, ремонт, вивіз сміття, тощо)",Оренда нерухомості,249670,Івано-Франківська обласна організація,40026836,Івано-Франківська область,Оплата за оренду приміщення за травень 2016 року,26005052517967,current,3786.00,"ТОВ ""Крокус-Станіслав""",38162070,юридична особа
УГП,"Львівська область, Львів, вулиця Сербська, 1",70,2016-05-11,814633,Банківські послуги,Інші витрати,249431,Центральний офіс,39481037,Україна,Комісія банку за послуги по системі ʼплатежі від населенняʼ без ПДВ,2600671275,current,20.00,"АТ ""АКБ ""Львів""",09801546,юридична особа
УГП,"Львівська область, Яворівський район, Рясне-Руське, вулиця Свободи, 5",49,2016-05-11,36,Публікування матеріалів у друкованих ЗМІ,Реклама в друкованих ЗМІ,249430,Центральний офіс,39481037,Україна,"Оплата за рекламно-інформаційні послуги у газеті ""Експрес""",2600671275,current,4788.00,"ТОВ ""Газета ""Експрес”""",30823524,юридична особа
УГП,"Львівська область, Львів, вулиця Сербська, 1",70,2016-05-06,ТК.365597.,Банківські послуги,Інші витрати,249827,Львівська обласна організація,40014820,Львівська область,Нарахування абонплати згідно договору за Квітень 2016 року по рахунку № 2600477437,2600477437,current,100.00,"АТ ""АКБ ""Львів""",09801546,юридична особа
УГП,"Львівська область, Львів, вулиця Сербська, 1",70,2016-05-06,ТК332599.,Банківські послуги,Інші витрати,249429,Центральний офіс,39481037,Україна,За розрахункове обслуговування - за зовнішні платежі,2600671275,current,15.00,"АТ ""АКБ ""Львів""",09801546,юридична особа
УГП,"Львівська область, Львів, вулиця Сербська, 1",70,2016-05-06,ТК.332601.,Банківські послуги,Інші витрати,249428,Центральний офіс,39481037,Україна,Нарахування абонплати згідно договору за Квітень 2016 року по рахунку № 2600671275,2600671275,current,100.00,"АТ ""АКБ ""Львів""",09801546,юридична особа
УГП,"Івано-Франківська область, Івано-Франківськ, вулиця Січових стрільців, 15",70,2016-05-05,0505Ь3БРБ А,Банківські послуги,Інші витрати,249669,Івано-Франківська обласна організація,40026836,Івано-Франківська область,Комиссия за відомість 55883637 Зарплата за квітень 2016 року,26005052517967,current,6.52,"ПАТ КБ ""Приватбанк""",14360570,юридична особа
УГП,"Івано-Франківська область, Івано-Франківськ, вулиця Січових стрільців, 15",70,2016-05-05,0505Б3БУБ У,Банківські послуги,Інші витрати,249668,Івано-Франківська обласна організація,40026836,Івано-Франківська область,"Комісія за дебетовий платіж N 18 від 05.05.2016 по рахунку, згідно договору банківського рахунку N б/н від 29.09.2015 без ПДВ",26005052517967,current,3.00,"ПАТ КБ ""Приватбанк""",14360570,юридична особа
УГП,"Івано-Франківська область, Івано-Франківськ, вулиця Січових стрільців, 15",62,2016-05-05,18,Сплата ЄСВ,Податкові платежі,249667,Івано-Франківська обласна організація,40026836,Івано-Франківська область,Сплата єдиного внеску із зарплати за квітень 2016р,26005052517967,current,356.19,"ПАТ КБ ""Приватбанк""",14360570,юридична особа
УГП,"Івано-Франківська область, Івано-Франківськ, вулиця Січових стрільців, 15",70,2016-05-05,0505Ь3Б09 У,Банківські послуги,Інші витрати,249666,Івано-Франківська обласна організація,40026836,Івано-Франківська область,"Комісія за дебетовий платіж N 17 від 05.05.2016 по рахунку, згідно договору банківського рахунку N б/н від 29.09.2015 без ПДВ",26005052517967,current,3.00,"ПАТ КБ ""Приватбанк""",14360570,юридична особа
УГП,"Івано-Франківська область, Івано-Франківськ, вулиця Незалежності, 46",63,2016-05-05,17,Податок на доходи,Податкові платежі,249665,Івано-Франківська обласна організація,40026836,Івано-Франківська область,Податок з доходів фізичних осіб із зарплати за квітень 2016р,26005052517967,current,291.43,УДКСУ у м. Івано-Франківську,37952250,юридична особа
УГП,"Івано-Франківська область, Івано-Франківськ, вулиця Січових стрільців, 15",70,2016-05-05,0505Ь3БРИ У,Банківські послуги,Інші витрати,249664,Івано-Франківська обласна організація,40026836,Івано-Франківська область,"Комісія за дебетовий платіж N 15 від 05.05.2016 по рахунку, згідно договору банківського рахунку N б/н від 29.09.2015 без ПДВ",26005052517967,current,3.00,"ПАТ КБ ""Приватбанк""",14360570,юридична особа
УГП,"Івано-Франківська область, Івано-Франківськ, вулиця Незалежності, 46",61,2016-05-05,15,Військовий збір,Податкові платежі,249663,Івано-Франківська обласна організація,40026836,Івано-Франківська область,Військовий збір із зарплати за квітень 2016р,26005052517967,current,24.29,УДКСУ у м. Івано-Франківську,37952250,юридична особа
УГП,"Івано-Франківська область, Івано-Франківськ",84,2016-05-05,16,"Заробітна плата, премії","Заробітна плата, лікарняні, вагітності, відрядження, компенсації",249644,Івано-Франківська обласна організація,40026836,Івано-Франківська область,Зарплата за квітень 2016 року,26005052517967,current,1303.33,Романчук Любомир Петрович,,фізична особа
УГП,"Львівська область, Львів, вулиця Сербська, 1",70,2016-05-05,807916,Банківські послуги,Інші витрати,249427,Центральний офіс,39481037,Україна,Комісія банку за послуги по системі ʼплатежі від населенняʼ без ПДВ,2600671275,current,40.00,"АТ ""АКБ ""Львів""",09801546,юридична особа
УГП,"Львівська область, Львів, вул. Виговського І., 34",63,2016-05-05,35,Податок на доходи,Податкові платежі,249426,Центральний офіс,39481037,Україна,податок з доходів фізичних осіб із оренд.плати за травень 2016р.,2600671275,current,1368.00,УДКСУ у Залізничному районі м. Львова,38007594,юридична особа
УГП,"Львівська область, Львів, вулиця Конотопська, 6/8",61,2016-05-05,34,Військовий збір,Податкові платежі,249425,Центральний офіс,39481037,Україна,військовий збір із оренд.плати за травень 2016р.,2600671275,current,114.00,УДКСУ у Франківському районі м. Львова,37965138,юридична особа
УГП,"Львівська область, Львів",79,2016-05-05,33,"Оренда будинків і приміщень та експлуатаційні витрати (прибирання, страхування орендованих будинків, охорона, сигналізація, ремонт, вивіз сміття, тощо)",Оренда нерухомості,249306,Центральний офіс,39481037,Україна,Оплата за оренду приміщення за травень 2016р.,2600671275,current,6118.00,Дмитрик Володимир Петрович,,фізична особа
УГП,"Тернопільська область, Тернопіль, проспект Степана Бандери, 38",70,2016-05-04,АБ64ї47рср,Банківські послуги,Інші витрати,249899,Тернопільська обласна організація,40011526,Тернопільська область,"Комісія за обслуговування рахунку квітень 2016р. згідно договору банківського рахунку від 21.09.2015, без ПДВ",26006055117228,current,100.00,"ПАТ КБ ""Приватбанк""",14360570,юридична особа
УГП,"Івано-Франківська область, Івано-Франківськ, вулиця Січових стрільців, 15",70,2016-05-04,Л864і4гхрр,Банківські послуги,Інші витрати,249662,Івано-Франківська обласна організація,40026836,Івано-Франківська область,"Комісія за обслуговування рахунку квітень 2016р. згідно договору банківського рахунку від 29.09.2015, без ПДВ",26005052517967,current,100.00,"ПАТ КБ ""Приватбанк""",14360570,юридична особа
УГП,"Львівська область, Львів, вулиця Сербська, 1",70,2016-04-29,ТК332599.,Банківські послуги,Інші витрати,249424,Центральний офіс,39481037,Україна,За розрахункове обслуговування - за зовнішні платежі,2600671275,current,5.00,"АТ ""АКБ ""Львів""",09801546,юридична особа
УГП,"Львівська область, Львів, вулиця Сербська, 1",70,2016-04-28,ТЯ.367448.,Банківські послуги,Інші витрати,249826,Львівська обласна організація,40014820,Львівська область,Нарахування абонплати згідно договору від 01/10/2015 за період з 26/03/2016 по 25/04/2016.,2600477437,current,50.00,"АТ ""АКБ ""Львів""",09801546,юридична особа
УГП,"Львівська область, Львів, вулиця Сербська, 1",70,2016-04-28,802889,Банківські послуги,Інші витрати,249423,Центральний офіс,39481037,Україна,Комісія банку за послуги по системі ʼ платежі від населенняʼ без ПДВ,2600671275,current,35.00,"АТ ""АКБ ""Львів""",09801546,юридична особа
УГП,"Львівська область, Львів, вулиця Сербська, 1",70,2016-04-28,ТК365431.,Банківські послуги,Інші витрати,249422,Центральний офіс,39481037,Україна,Нарахування абонплати згідно договору від 16/09/2015 за період з 26/03/2016 по 25/04/2016.,2600671275,current,50.00,"АТ ""АКБ ""Львів""",09801546,юридична особа
УГП,"Львівська область, Львів, вулиця Сербська, 1",70,2016-04-27,ТК.332599.,Банківські послуги,Інші витрати,249420,Центральний офіс,39481037,Україна,За розрахункове обслуговування - за зовнішні платежі,2600671275,current,10.00,"АТ ""АКБ ""Львів""",09801546,юридична особа
УГП,"Львівська область, Львів, вулиця Сербська, 1",70,2016-04-26,798689,Банківські послуги,Інші витрати,249419,Центральний офіс,39481037,Україна,Комісія банку за послуги по системі ʼ платежі від населенняʼ без ПДВ,2600671275,current,25.00,"АТ ""АКБ ""Львів""",09801546,юридична особа
УГП,"Львівська область, Львів, проспект Червоної Калини, 66",60,2016-04-26,31,Інші податки,Податкові платежі,249418,Центральний офіс,39481037,Україна,"Судовий збір, за позовом Політичної партії ""Українська Галицька Партія"", Сихівський районний суд м.Львова",2600671275,current,551.21,УДКСУ у Сихівському районі м. Львова,38007636,юридична особа
УГП,"Львівська область, Львів",69,2016-04-26,30,Організація заходів та інші організаційні послуги,Організація заходів та інші організаційні послуги,249305,Центральний офіс,39481037,Україна,Оплата за прес-конференцію,2600671275,current,2500.00,Шостак Ольга Василівна,,фізична особа
УГП,"Львівська область, Львів, вулиця Сербська, 1",70,2016-04-19,ТЯ.332599,Банківські послуги,Інші витрати,249417,Центральний офіс,39481037,Україна,За розрахункове обслуговування - за зовнішні платежі,2600671275,current,5.00,"АТ ""АКБ ""Львів""",09801546,юридична особа
УГП,"Київська обл., Києво-Святошинський район, Чайки, вулиця Валентини Чайки, 16",66,2016-04-18,29,Повернення внесків приватних внесків (донорам),Повернення приватних внесків (донорам),249416,Центральний офіс,39481037,Україна,"Повернення платежу Членські внескизвʼязку із невідповідністю вимогам Закону України ""Про політичні партії в Україні"" та Статуту ПП ""УГП"".",2600671275,current,400.00,"ТОВ ""ФК"" ""КОНТРАКТОВИЙ ДIМ""",35442539,юридична особа
УГП,"Київська обл., Києво-Святошинський район, Чайки, вулиця Валентини Чайки, 16",66,2016-04-18,29,Повернення внесків приватних внесків (донорам),Повернення приватних внесків (донорам),249295,Центральний офіс,39481037,Україна,"у звʼязку із невідповідн істю вимогам Закону України ""Про політичні партії в Україні"" та Статуту ПП ""УГП"".",2600671275,current,400.00,"ТОВ ""ФК"" ""КОНТРАКТОВИЙ ДIМ""",35442539,юридична особа
УГП,"Івано-Франківська область, Івано-Франківськ, площа Міцкевича, 8",79,2016-04-15,13,"Оренда будинків і приміщень та експлуатаційні витрати (прибирання, страхування орендованих будинків, охорона, сигналізація, ремонт, вивіз сміття, тощо)",Оренда нерухомості,249661,Івано-Франківська обласна організація,40026836,Івано-Франківська область,Оплата за оренду приміщення за квітень 2016,26005052517967,current,2880.00,"ТОВ ""Крокус-Станіслав""",38162070,юридична особа
УГП,"Івано-Франківська область, Івано-Франківськ, вулиця Січових стрільців, 15",70,2016-04-15,0415Ь3^7 У,Банківські послуги,Інші витрати,249660,Івано-Франківська обласна організація,40026836,Івано-Франківська область,"Комісія за дебетовий платіж N 13 від 15.04.2016 по рахунку, згідно договору банківського рахунку N б/н від 29.09.2015 без ПДВ",26005052517967,current,3.00,"ПАТ КБ ""Приватбанк""",14360570,юридична особа
УГП,"Львівська область, Львів, вулиця Сербська, 1",70,2016-04-15,ТК.332599.,Банківські послуги,Інші витрати,249415,Центральний офіс,39481037,Україна,За розрахункове обслуговування - за зовнішні платежі,2600671275,current,10.00,"АТ ""АКБ ""Львів""",09801546,юридична особа
УГП,"Львівська область, Яворівський район, Рясне-Руське, вулиця Свободи, 5",49,2016-04-14,28,Публікування матеріалів у друкованих ЗМІ,Реклама в друкованих ЗМІ,249414,Центральний офіс,39481037,Україна,"Оплата за рекл.-інформац.послуги у газеті ""Експрес""",2600671275,current,4788.00,"ТОВ ""Газета ""Експрес”""",30823524,юридична особа
УГП,"Львівська область, Львів, вулиця Сербська, 1",70,2016-04-13,773272,Банківські послуги,Інші витрати,249412,Центральний офіс,39481037,Україна,Комісія банку за послуги по системі ʼплатежі від населенняʼ без ПДВ,2600671275,current,40.00,"АТ ""АКБ ""Львів""",09801546,юридична особа
УГП,"Тернопільська область, Тернопіль, проспект Степана Бандери, 38",70,2016-04-11,0411Ь303И У,Банківські послуги,Інші витрати,249898,Тернопільська обласна організація,40011526,Тернопільська область,"Комісія за дебетовий платіж N 30 від 11.04.2016 по рахунку, згідно договору банківського рахунку N б/н від 21.09.2015 без ПДВ",26006055117228,current,3.00,"ПАТ КБ ""Приватбанк""",14360570,юридична особа
УГП,"Тернопільська область, Тернопіль",79,2016-04-11,30,"Оренда будинків і приміщень та експлуатаційні витрати (прибирання, страхування орендованих будинків, охорона, сигналізація, ремонт, вивіз сміття, тощо)",Оренда нерухомості,249875,Тернопільська обласна організація,40011526,Тернопільська область,Оплата за оренду згідно договору N28 від 01.11.2015р. за квітень 2016р.,26006055117228,current,2500.68,Клепач Валентина Анатоліївна,,фізична особа
УГП,"Львівська область, Львів, вулиця Сербська, 1",70,2016-04-11,ТК.365595.,Банківські послуги,Інші витрати,249825,Львівська обласна організація,40014820,Львівська область,За розрахункове обслуговування- за зовнішні платежі,2600477437,current,5.00,"АТ ""АКБ ""Львів""",09801546,юридична особа
УГП,"Львівська область, Яворівський район, Яворів, площа Ринок, 14",58,2016-04-08,5,"Виготовлення друкованих матеріалів (плакатів, листівок, буклетів та інших агітаційних матеріалів)",Друкована агітація,249824,Львівська обласна організація,40014820,Львівська область,"Оплата за друк газети ""Наша Галичина""5",2600477437,current,19938.00,"ТОВ ""ВД ""Молода Галичина""",32148930,юридична особа
УГП,"Львівська область, Львів, вулиця Сербська, 1",70,2016-04-08,ТК.332599.,Банківські послуги,Інші витрати,249411,Центральний офіс,39481037,Україна,За розрахункове обслуговування - за зовнішні платежі,2600671275,current,15.00,"АТ ""АКБ ""Львів""",09801546,юридична особа
УГП,"Львівська область, Львів, вулиця Сербська, 1",70,2016-04-07,763177,Банківські послуги,Інші витрати,249410,Центральний офіс,39481037,Україна,Комісія банку за послуги по системі ʼ платежі від населенняʼ без ПДВ,2600671275,current,35.00,"АТ ""АКБ ""Львів""",09801546,юридична особа
УГП,"Львівська область, Львів, вулиця Конотопська, 6/8",63,2016-04-07,25,Податок на доходи,Податкові платежі,249409,Центральний офіс,39481037,Україна,податок з доходів фізичних осіб із оренд.плати за квітень 2016р.,2600671275,current,1368.00,УДКСУ у Франківському районі м. Львова,37965138,юридична особа
УГП,"Львівська область, Львів, вулиця Конотопська, 6/8",61,2016-04-07,24,Військовий збір,Податкові платежі,249408,Центральний офіс,39481037,Україна,військовий збір із оренд.плати за квітень 2016р.,2600671275,current,114.00,УДКСУ у Франківському районі м. Львова,37965138,юридична особа
УГП,"Львівська область, Львів",79,2016-04-07,26,"Оренда будинків і приміщень та експлуатаційні витрати (прибирання, страхування орендованих будинків, охорона, сигналізація, ремонт, вивіз сміття, тощо)",Оренда нерухомості,249304,Центральний офіс,39481037,Україна,Оплата за оренду приміщення за квітень 2016р.,2600671275,current,6118.00,Дмитрик Володимир Петрович,,фізична особа
УГП,"Львівська область, Львів, вулиця Сербська, 1",70,2016-04-06,ТК332599.,Банківські послуги,Інші витрати,249407,Центральний офіс,39481037,Україна,За розрахункове обслуговування - за зовнішні платежі,2600671275,current,5.00,"АТ ""АКБ ""Львів""",09801546,юридична особа
УГП,"Львівська область, Львів, вулиця Сербська, 1",70,2016-04-05,ТК.365597.,Банківські послуги,Інші витрати,249823,Львівська обласна організація,40014820,Львівська область,Нарахування абонплати згідно договору за Березень 2016 року по рахунку № 2600477437,2600477437,current,100.00,"АТ ""АКБ ""Львів""",09801546,юридична особа
УГП,"Львівська область, Львів, вулиця Сербська, 1",70,2016-04-05,ТК332599.,Банківські послуги,Інші витрати,249406,Центральний офіс,39481037,Україна,За розрахункове обслуговування - за зовнішні платежі,2600671275,current,5.00,"АТ ""АКБ ""Львів""",09801546,юридична особа
УГП,"Львівська область, Львів, вулиця Сербська, 1",70,2016-04-05,ТК.332601.,Банківські послуги,Інші витрати,249405,Центральний офіс,39481037,Україна,Нарахування абонплати згідно договору за Березень 2016 року по рахунку № 2600671275,2600671275,current,100.00,"АТ ""АКБ ""Львів""",09801546,юридична особа
УГП,"Львівська область, Яворівський район, Рясне-Руське, вулиця Свободи, 5",49,2016-04-05,23,Публікування матеріалів у друкованих ЗМІ,Реклама в друкованих ЗМІ,249404,Центральний офіс,39481037,Україна,"Оплата за рекл.-інформац.послуги у газеті ""Експрес""",2600671275,current,4788.00,"ТОВ ""Газета ""Експрес”""",30823524,юридична особа
УГП,"Тернопільська область, Тернопіль, проспект Степана Бандери, 38",70,2016-04-01,АБ63у53Грр,Банківські послуги,Інші витрати,249897,Тернопільська обласна організація,40011526,Тернопільська область,"Комісія за обслуговування рахунку березень 2016р. згідно договору банківського рахунку від 21.09.2015, без ПДВ",26006055117228,current,100.00,"ПАТ КБ ""Приватбанк""",14360570,юридична особа
УГП,"Київ, вулиця Терещенківська, 11А",49,2016-04-01,22,Публікування матеріалів у друкованих ЗМІ,Реклама в друкованих ЗМІ,249403,Центральний офіс,39481037,Україна,"Оплата за проведення перереєстрації газети ""Наша Галичина"" згідно рішення та нак.№684/5 від 12.03.16р., без ПДВ.",2600671275,current,425.00,ГУ ДКСУ у м. Києві,37993783,юридична особа
УГП,"Львівська область, Львів, вулиця Сербська, 1",70,2016-03-31,ТК.367448.,Банківські послуги,Інші витрати,249822,Львівська обласна організація,40014820,Львівська область,Нарахування абонплати згідно договору від 01/10/2015 за період з 26/02/2016 по 25/03/2016.,2600477437,current,50.00,"АТ ""АКБ ""Львів""",09801546,юридична особа
УГП,"Львівська область, Львів, вулиця Сербська, 1",70,2016-03-31,ТК.365431.,Банківські послуги,Інші витрати,249402,Центральний офіс,39481037,Україна,Нарахування абонплати згідно договору від 16/09/2015 за період з 26/02/2016 по 25/03/2016.,2600671275,current,50.00,"АТ ""АКБ ""Львів""",09801546,юридична особа
УГП,"Львівська область, Львів, вулиця Сербська, 1",70,2016-03-30,ТК.332599.,Банківські послуги,Інші витрати,249401,Центральний офіс,39481037,Україна,За розрахункове обслуговування за період 29/03/2016 - 29/03/2016 згідно угоди від 10/12/2014 -за зовнішні платежі,2600671275,current,5.00,"АТ ""АКБ ""Львів""",09801546,юридична особа
УГП,"Львівська область, Львів, вулиця Сербська, 1",70,2016-03-29,747731,Банківські послуги,Інші витрати,249400,Центральний офіс,39481037,Україна,Комісія банку за послуги надані фіз. особам по системі ʼплатежі від населенняʼ 29.03.2016 без ПДВ,2600671275,current,50.00,"АТ ""АКБ ""Львів""",09801546,юридична особа
УГП,"Львівська область, Львів, вулиця Сербська, 1",70,2016-03-29,747738,Банківські послуги,Інші витрати,249399,Центральний офіс,39481037,Україна,Комісія банку за послуги надані фіз. особам по системі ʼ платежі від населенняʼ 29.03.2016 без ПДВ,2600671275,current,50.00,"АТ ""АКБ ""Львів""",09801546,юридична особа
УГП,"Львівська область, Львів",72,2016-03-29,21,"Придбання, ремонт офісної техніки та програмного забезпечення (Бухгалтерські програми, Ліга.закон, домени)",Придбання офісної техніки та програмного забезпечення,249303,Центральний офіс,39481037,Україна,"Оплата за розробку сайту УГП згідно рахунку-фактури №УКП2 від 14.03.2016р., без ПДВ.",2600671275,current,15000.00,Дереворіз Михайло Васильович,,фізична особа
УГП,"Львівська область, Львів, вулиця Сербська, 1",70,2016-03-25,ТК.332599.,Банківські послуги,Інші витрати,249398,Центральний офіс,39481037,Україна,За розрахункове обслуговування за період 24/03/2016 - 24/03/2016 згідно угоди від 10/12/2014 -за зовнішні платежі,2600671275,current,5.00,"АТ ""АКБ ""Львів""",09801546,юридична особа
УГП,"Львівська область, Львів, вулиця Сербська, 1",70,2016-03-24,ТК.332599.,Банківські послуги,Інші витрати,249397,Центральний офіс,39481037,Україна,За розрахункове обслуговування за період 23/03/2016 - 23/03/2016 згідно угоди від 10/12/2014 -за зовнішні платежі,2600671275,current,5.00,"АТ ""АКБ ""Львів""",09801546,юридична особа
